Workbook

Sheet CoverSheet
A3: Electricity Distribution Business
A4: Price-Quality Regulation 1 April 2020 Reset
A5: Determination and reasons paper table and chart book - EDB DPP3 draft
A6: Draft determination
A17: Published 29 May 2019 v1

Sheet Table of Contents
A1: Table of Contents
B4: Sheet Name | C4: Link
B5: Inputs | C5: Inputs
B6: Calculations | C6: Calculations
B7: Outputs | C7: Outputs
B8: External charts | C8: External charts
B9: Outputs - Determination | C9: Outputs - Determination

Sheet Description
A1: Description
B2: This model has been prepared and published for consultation purposes only.
B5: General description
B6: This Chart book presents all charts and tables of the Electricity Distribution DPP model outputs used in the Draft determination.
B9: Notes:
A10: 1 | B10: Financial values in the Input sheet are expressed in NZD'000 unless otherwise indicated.
A11: 2 | B11: Financial values in the Output sheet may be displayed in units other than '000s.
A12: 3 | B12: Annual values relate to years ending on 31 March.
A13: 4 | B13: All input data are located on the Inputs sheet.
A14: 5 | B14: All calculations are on the Calculations sheet.
A15: 6 | B15: All outputs are on the Outputs sheet.
A16: 7 | B16: Table and Figure identifiers and titles do not match the identifiers and titles in the models or the Reasons paper.
B18: Model suite
B19: Data flow map of the draft EDB DPP3 (1 April 2020–31 March 2025) model suite

Sheet Inputs
A1: Inputs
A4: ='[1]Chartbook outputs'!A5 -> Table 2.2 | B4: ='[1]Chartbook outputs'!B5 -> Starting prices and rates of change
B5: ='[1]Chartbook outputs'!B6 -> Supplier | C5: ='[1]Chartbook outputs'!C6 -> MAR (industry-wide X factor) 2021 | D5: ='[1]Chartbook outputs'!D6 -> Alternative X factor
B6: ='[1]Chartbook outputs'!B7 -> Alpine Energy | C6: ='[1]Chartbook outputs'!C7 -> 45361.38032 | D6: ='[1]Chartbook outputs'!D7 -> 0
B7: ='[1]Chartbook outputs'!B8 -> Aurora Energy | C7: ='[1]Chartbook outputs'!C8 -> 72030.72752 | D7: ='[1]Chartbook outputs'!D8 -> -0.089
B8: ='[1]Chartbook outputs'!B9 -> Centralines | C8: ='[1]Chartbook outputs'!C9 -> 9398.539633 | D8: ='[1]Chartbook outputs'!D9 -> 0
B9: ='[1]Chartbook outputs'!B10 -> EA Networks | C9: ='[1]Chartbook outputs'!C10 -> 37696.14503 | D9: ='[1]Chartbook outputs'!D10 -> 0
B10: ='[1]Chartbook outputs'!B11 -> Eastland Network | C10: ='[1]Chartbook outputs'!C11 -> 25055.11062 | D10: ='[1]Chartbook outputs'!D11 -> 0
B11: ='[1]Chartbook outputs'!B12 -> Electricity Invercargill | C11: ='[1]Chartbook outputs'!C12 -> 12291.59231 | D11: ='[1]Chartbook outputs'!D12 -> 0
B12: ='[1]Chartbook outputs'!B13 -> Horizon Energy | C12: ='[1]Chartbook outputs'!C13 -> 25008.55222 | D12: ='[1]Chartbook outputs'!D13 -> 0
B13: ='[1]Chartbook outputs'!B14 -> Nelson Electricity | C13: ='[1]Chartbook outputs'!C14 -> 5588.24628 | D13: ='[1]Chartbook outputs'!D14 -> 0
B14: ='[1]Chartbook outputs'!B15 -> Network Tasman | C14: ='[1]Chartbook outputs'!C15 -> 28780.563 | D14: ='[1]Chartbook outputs'!D15 -> 0
B15: ='[1]Chartbook outputs'!B16 -> Orion NZ | C15: ='[1]Chartbook outputs'!C16 -> 161170.0707 | D15: ='[1]Chartbook outputs'!D16 -> 0
B16: ='[1]Chartbook outputs'!B17 -> OtagoNet | C16: ='[1]Chartbook outputs'!C17 -> 25084.60058 | D16: ='[1]Chartbook outputs'!D17 -> 0
B17: ='[1]Chartbook outputs'!B18 -> The Lines Company | C17: ='[1]Chartbook outputs'!C18 -> 33943.50402 | D17: ='[1]Chartbook outputs'!D18 -> 0
B18: ='[1]Chartbook outputs'!B19 -> Top Energy | C18: ='[1]Chartbook outputs'!C19 -> 42189.2595 | D18: ='[1]Chartbook outputs'!D19 -> 0
B19: ='[1]Chartbook outputs'!B20 -> Unison Networks | C19: ='[1]Chartbook outputs'!C20 -> 102250.9767 | D19: ='[1]Chartbook outputs'!D20 -> 0
B20: ='[1]Chartbook outputs'!B21 -> Vector Lines | C20: ='[1]Chartbook outputs'!C21 -> 403345.7655 | D20: ='[1]Chartbook outputs'!D21 -> 0
A23: ='[2]Chartbook outputs'!A45 -> Figure 5.1 | B23: ='[2]Chartbook outputs'!B45 -> Proposed changes in allowable revenue from 2019/2020 to 2020/2021
B24: ='[2]Chartbook outputs'!B46 -> Distributor | C24: ='[2]Chartbook outputs'!C46 -> Revenue increase from 2019/20 estimate of allowable revenue to 2020/21 MAR
B25: ='[2]Chartbook outputs'!B47 -> Alpine Energy | C25: ='[2]Chartbook outputs'!C47 -> -0.07486059981
B26: ='[2]Chartbook outputs'!B48 -> Aurora Energy | C26: ='[2]Chartbook outputs'!C48 -> 0.08871702153
B27: ='[2]Chartbook outputs'!B49 -> Centralines | C27: ='[2]Chartbook outputs'!C49 -> -0.3384089514
B28: ='[2]Chartbook outputs'!B50 -> EA Networks | C28: ='[2]Chartbook outputs'!C50 -> 0.002805552061
B29: ='[2]Chartbook outputs'!B51 -> Eastland Network | C29: ='[2]Chartbook outputs'!C51 -> -0.09382184791
B30: ='[2]Chartbook outputs'!B52 -> Electricity Invercargill | C30: ='[2]Chartbook outputs'!C52 -> -0.09936904522
B31: ='[2]Chartbook outputs'!B53 -> Horizon Energy | C31: ='[2]Chartbook outputs'!C53 -> 0.0703334934
B32: ='[2]Chartbook outputs'!B54 -> Nelson Electricity | C32: ='[2]Chartbook outputs'!C54 -> -0.1815460046
B33: ='[2]Chartbook outputs'!B55 -> Network Tasman | C33: ='[2]Chartbook outputs'!C55 -> 0.05423336989
B34: ='[2]Chartbook outputs'!B56 -> Orion NZ | C34: ='[2]Chartbook outputs'!C56 -> -0.0432849356
B35: ='[2]Chartbook outputs'!B57 -> OtagoNet | C35: ='[2]Chartbook outputs'!C57 -> -0.0798480411
B36: ='[2]Chartbook outputs'!B58 -> The Lines Company | C36: ='[2]Chartbook outputs'!C58 -> -0.1822458026
B37: ='[2]Chartbook outputs'!B59 -> Top Energy | C37: ='[2]Chartbook outputs'!C59 -> -0.0436340438
B38: ='[2]Chartbook outputs'!B60 -> Unison Networks | C38: ='[2]Chartbook outputs'!C60 -> -0.1021738088
B39: ='[2]Chartbook outputs'!B61 -> Vector Lines | C39: ='[2]Chartbook outputs'!C61 -> -0.03488567466
A41: ='[2]Chartbook outputs'!A63 -> Figure X.X | B41: ='[2]Chartbook outputs'!B63 -> Constant price revenue growth, 2017/18 to 2019/20
B42: ='[2]Chartbook outputs'!B64 -> Distributor | C42: ='[2]Chartbook outputs'!C64 -> Annual constant price revenue growth, 2017/18 to 2019/20
B43: ='[2]Chartbook outputs'!B65 -> Alpine Energy | C43: ='[2]Chartbook outputs'!C65 -> -0.01023555793
B44: ='[2]Chartbook outputs'!B66 -> Aurora Energy | C44: ='[2]Chartbook outputs'!C66 -> 0.0206725243
B45: ='[2]Chartbook outputs'!B67 -> Centralines | C45: ='[2]Chartbook outputs'!C67 -> 0.004098564133
B46: ='[2]Chartbook outputs'!B68 -> EA Networks | C46: ='[2]Chartbook outputs'!C68 -> 0.01407934192
B47: ='[2]Chartbook outputs'!B69 -> Eastland Network | C47: ='[2]Chartbook outputs'!C69 -> 0.005853212276
B48: ='[2]Chartbook outputs'!B70 -> Electricity Invercargill | C48: ='[2]Chartbook outputs'!C70 -> -0.005176679358
B49: ='[2]Chartbook outputs'!B71 -> Horizon Energy | C49: ='[2]Chartbook outputs'!C71 -> 0.003710874151
B50: ='[2]Chartbook outputs'!B72 -> Nelson Electricity | C50: ='[2]Chartbook outputs'!C72 -> -0.004333806535
B51: ='[2]Chartbook outputs'!B73 -> Network Tasman | C51: ='[2]Chartbook outputs'!C73 -> -0.02339188847
B52: ='[2]Chartbook outputs'!B74 -> Orion NZ | C52: ='[2]Chartbook outputs'!C74 -> 0.00805535657
B53: ='[2]Chartbook outputs'!B75 -> OtagoNet | C53: ='[2]Chartbook outputs'!C75 -> 0.01069963184
B54: ='[2]Chartbook outputs'!B76 -> The Lines Company | C54: ='[2]Chartbook outputs'!C76 -> 0.02111220795
B55: ='[2]Chartbook outputs'!B77 -> Top Energy | C55: ='[2]Chartbook outputs'!C77 -> -0.03771909849
B56: ='[2]Chartbook outputs'!B78 -> Unison Networks | C56: ='[2]Chartbook outputs'!C78 -> 0.01705365482
B57: ='[2]Chartbook outputs'!B79 -> Vector Lines | C57: ='[2]Chartbook outputs'!C79 -> 0.005556338011
A60: ='[1]Chartbook outputs'!A23 -> Table 5.2 | B60: ='[1]Chartbook outputs'!B23 -> Maximum allowable revenue in each year of the regulatory period ($m)
B61: ='[1]Chartbook outputs'!B24 -> Supplier | C61: ='[1]Chartbook outputs'!C24 -> PV at 1 Apr 2020 of MAR before tax over the regulatory period (Applicable X) | D61: ='[1]Chartbook outputs'!D24 -> MAR (applicable X factor) 2021 | E61: ='[1]Chartbook outputs'!E24 -> MAR (applicable X factor) 2022 | F61: ='[1]Chartbook outputs'!F24 -> MAR (applicable X factor) 2023 | G61: ='[1]Chartbook outputs'!G24 -> MAR (applicable X factor) 2024 | H61: ='[1]Chartbook outputs'!H24 -> MAR (applicable X factor) 2025 | I61: Sum of forecast net allowable revenue for the DPP regulatory period
B62: ='[1]Chartbook outputs'!B25 -> Alpine Energy | C62: ='[1]Chartbook outputs'!C25 -> 207660.3982 | D62: ='[1]Chartbook outputs'!D25 -> 45361.38032 | E62: ='[1]Chartbook outputs'!E25 -> 46302.60737 | F62: ='[1]Chartbook outputs'!F25 -> 47259.52792 | G62: ='[1]Chartbook outputs'!G25 -> 48220.47165 | H62: ='[1]Chartbook outputs'!H25 -> 49184.88109 | I62: =SUM('[1]Chartbook outputs'!D25:H25) -> 236328.8683
B63: ='[1]Chartbook outputs'!B26 -> Aurora Energy | C63: ='[1]Chartbook outputs'!C26 -> 391914.4852 | D63: ='[1]Chartbook outputs'!D26 -> 72030.72752 | E63: ='[1]Chartbook outputs'!E26 -> 80069.08527 | F63: ='[1]Chartbook outputs'!F26 -> 88997.2687 | G63: ='[1]Chartbook outputs'!G26 -> 98888.69213 | H63: ='[1]Chartbook outputs'!H26 -> 109843.5814 | I63: =SUM('[1]Chartbook outputs'!D26:H26) -> 449829.3551
B64: ='[1]Chartbook outputs'!B27 -> Centralines | C64: ='[1]Chartbook outputs'!C27 -> 43025.68549 | D64: ='[1]Chartbook outputs'!D27 -> 9398.539633 | E64: ='[1]Chartbook outputs'!E27 -> 9593.554857 | F64: ='[1]Chartbook outputs'!F27 -> 9791.821657 | G64: ='[1]Chartbook outputs'!G27 -> 9990.922031 | H64: ='[1]Chartbook outputs'!H27 -> 10190.74047 | I64: =SUM('[1]Chartbook outputs'!D27:H27) -> 48965.57865
B65: ='[1]Chartbook outputs'!B28 -> EA Networks | C65: ='[1]Chartbook outputs'!C28 -> 172569.6271 | D65: ='[1]Chartbook outputs'!D28 -> 37696.14503 | E65: ='[1]Chartbook outputs'!E28 -> 38478.32209 | F65: ='[1]Chartbook outputs'!F28 -> 39273.54075 | G65: ='[1]Chartbook outputs'!G28 -> 40072.10275 | H65: ='[1]Chartbook outputs'!H28 -> 40873.5448 | I65: =SUM('[1]Chartbook outputs'!D28:H28) -> 196393.6554
B66: ='[1]Chartbook outputs'!B29 -> Eastland Network | C66: ='[1]Chartbook outputs'!C29 -> 114700.0865 | D66: ='[1]Chartbook outputs'!D29 -> 25055.11062 | E66: ='[1]Chartbook outputs'!E29 -> 25574.99224 | F66: ='[1]Chartbook outputs'!F29 -> 26103.54208 | G66: ='[1]Chartbook outputs'!G29 -> 26634.3141 | H66: ='[1]Chartbook outputs'!H29 -> 27167.00038 | I66: =SUM('[1]Chartbook outputs'!D29:H29) -> 130534.9594
B67: ='[1]Chartbook outputs'!B30 -> Electricity Invercargill | C67: ='[1]Chartbook outputs'!C30 -> 56269.82546 | D67: ='[1]Chartbook outputs'!D30 -> 12291.59231 | E67: ='[1]Chartbook outputs'!E30 -> 12546.637 | F67: ='[1]Chartbook outputs'!F30 -> 12805.93416 | G67: ='[1]Chartbook outputs'!G30 -> 13066.32149 | H67: ='[1]Chartbook outputs'!H30 -> 13327.64792 | I67: =SUM('[1]Chartbook outputs'!D30:H30) -> 64038.13287
B68: ='[1]Chartbook outputs'!B31 -> Horizon Energy | C68: ='[1]Chartbook outputs'!C31 -> 114486.9463 | D68: ='[1]Chartbook outputs'!D31 -> 25008.55222 | E68: ='[1]Chartbook outputs'!E31 -> 25527.46777 | F68: ='[1]Chartbook outputs'!F31 -> 26055.03544 | G68: ='[1]Chartbook outputs'!G31 -> 26584.82116 | H68: ='[1]Chartbook outputs'!H31 -> 27116.51758 | I68: =SUM('[1]Chartbook outputs'!D31:H31) -> 130292.3942
B69: ='[1]Chartbook outputs'!B32 -> Nelson Electricity | C69: ='[1]Chartbook outputs'!C32 -> 25582.49858 | D69: ='[1]Chartbook outputs'!D32 -> 5588.24628 | E69: ='[1]Chartbook outputs'!E32 -> 5704.19973 | F69: ='[1]Chartbook outputs'!F32 -> 5822.086524 | G69: ='[1]Chartbook outputs'!G32 -> 5940.46895 | H69: ='[1]Chartbook outputs'!H32 -> 6059.278329 | I69: =SUM('[1]Chartbook outputs'!D32:H32) -> 29114.27981
B70: ='[1]Chartbook outputs'!B33 -> Network Tasman | C70: ='[1]Chartbook outputs'!C33 -> 131754.879 | D70: ='[1]Chartbook outputs'!D33 -> 28780.563 | E70: ='[1]Chartbook outputs'!E33 -> 29377.74598 | F70: ='[1]Chartbook outputs'!F33 -> 29984.88607 | G70: ='[1]Chartbook outputs'!G33 -> 30594.57875 | H70: ='[1]Chartbook outputs'!H33 -> 31206.47032 | I70: =SUM('[1]Chartbook outputs'!D33:H33) -> 149944.2441
B71: ='[1]Chartbook outputs'!B34 -> Orion NZ | C71: ='[1]Chartbook outputs'!C34 -> 737822.3682 | D71: ='[1]Chartbook outputs'!D34 -> 161170.0707 | E71: ='[1]Chartbook outputs'!E34 -> 164514.2729 | F71: ='[1]Chartbook outputs'!F34 -> 167914.2346 | G71: ='[1]Chartbook outputs'!G34 -> 171328.4907 | H71: ='[1]Chartbook outputs'!H34 -> 174755.0605 | I71: =SUM('[1]Chartbook outputs'!D34:H34) -> 839682.1293
B72: ='[1]Chartbook outputs'!B35 -> OtagoNet | C72: ='[1]Chartbook outputs'!C35 -> 114835.089 | D72: ='[1]Chartbook outputs'!D35 -> 25084.60058 | E72: ='[1]Chartbook outputs'!E35 -> 25605.0941 | F72: ='[1]Chartbook outputs'!F35 -> 26134.26605 | G72: ='[1]Chartbook outputs'!G35 -> 26665.66279 | H72: ='[1]Chartbook outputs'!H35 -> 27198.97605 | I72: =SUM('[1]Chartbook outputs'!D35:H35) -> 130688.5996
B73: ='[1]Chartbook outputs'!B36 -> The Lines Company | C73: ='[1]Chartbook outputs'!C36 -> 155390.3676 | D73: ='[1]Chartbook outputs'!D36 -> 33943.50402 | E73: ='[1]Chartbook outputs'!E36 -> 34647.81557 | F73: ='[1]Chartbook outputs'!F36 -> 35363.87042 | G73: ='[1]Chartbook outputs'!G36 -> 36082.93579 | H73: ='[1]Chartbook outputs'!H36 -> 36804.59451 | I73: =SUM('[1]Chartbook outputs'!D36:H36) -> 176842.7203
B74: ='[1]Chartbook outputs'!B37 -> Top Energy | C74: ='[1]Chartbook outputs'!C37 -> 193138.7089 | D74: ='[1]Chartbook outputs'!D37 -> 42189.2595 | E74: ='[1]Chartbook outputs'!E37 -> 43064.66656 | F74: ='[1]Chartbook outputs'!F37 -> 43954.66966 | G74: ='[1]Chartbook outputs'!G37 -> 44848.41461 | H74: ='[1]Chartbook outputs'!H37 -> 45745.38291 | I74: =SUM('[1]Chartbook outputs'!D37:H37) -> 219802.3932
B75: ='[1]Chartbook outputs'!B38 -> Unison Networks | C75: ='[1]Chartbook outputs'!C38 -> 468095.9529 | D75: ='[1]Chartbook outputs'!D38 -> 102250.9767 | E75: ='[1]Chartbook outputs'!E38 -> 104372.6358 | F75: ='[1]Chartbook outputs'!F38 -> 106529.6703 | G75: ='[1]Chartbook outputs'!G38 -> 108695.7736 | H75: ='[1]Chartbook outputs'!H38 -> 110869.6891 | I75: =SUM('[1]Chartbook outputs'!D38:H38) -> 532718.7456
B76: ='[1]Chartbook outputs'!B39 -> Vector Lines | C76: ='[1]Chartbook outputs'!C39 -> 1846481.339 | D76: ='[1]Chartbook outputs'!D39 -> 403345.7655 | E76: ='[1]Chartbook outputs'!E39 -> 411714.9982 | F76: ='[1]Chartbook outputs'!F39 -> 420223.7748 | G76: ='[1]Chartbook outputs'!G39 -> 428768.3249 | H76: ='[1]Chartbook outputs'!H39 -> 437343.6914 | I76: =SUM('[1]Chartbook outputs'!D39:H39) -> 2101396.555
A79: ='[2]Chartbook outputs'!A7 -> Table X.X | B79: ='[2]Chartbook outputs'!B7 -> Starting price adjustment
B80: ='[2]Chartbook outputs'!B8 -> Distributor | C80: ='[2]Chartbook outputs'!C8 -> $ difference between first year MAR proposed and hypothetical first-year MAR under a roll-over scenario | D80: ='[2]Chartbook outputs'!D8 -> % difference between first year MAR proposed and hypothetical first-year MAR under a roll-over scenario
B81: ='[2]Chartbook outputs'!B9 -> Alpine Energy | C81: ='[2]Chartbook outputs'!C9 -> -4639.127396 | D81: ='[2]Chartbook outputs'!D9 -> -0.09278160579
B82: ='[2]Chartbook outputs'!B10 -> Aurora Energy | C82: ='[2]Chartbook outputs'!C10 -> 4562.683688 | D82: ='[2]Chartbook outputs'!D10 -> 0.06762733034
B83: ='[2]Chartbook outputs'!B11 -> Centralines | C83: ='[2]Chartbook outputs'!C11 -> -5088.047627 | D83: ='[2]Chartbook outputs'!D11 -> -0.351224725
B84: ='[2]Chartbook outputs'!B12 -> EA Networks | C84: ='[2]Chartbook outputs'!C12 -> -637.0960095 | D84: ='[2]Chartbook outputs'!D12 -> -0.01661993592
B85: ='[2]Chartbook outputs'!B13 -> Eastland Network | C85: ='[2]Chartbook outputs'!C13 -> -3140.27687 | D85: ='[2]Chartbook outputs'!D13 -> -0.1113755529
B86: ='[2]Chartbook outputs'!B14 -> Electricity Invercargill | C86: ='[2]Chartbook outputs'!C14 -> -1625.759559 | D86: ='[2]Chartbook outputs'!D14 -> -0.1168152946
B87: ='[2]Chartbook outputs'!B15 -> Horizon Energy | C87: ='[2]Chartbook outputs'!C15 -> 1181.804589 | D87: ='[2]Chartbook outputs'!D15 -> 0.04959991214
B88: ='[2]Chartbook outputs'!B16 -> Nelson Electricity | C88: ='[2]Chartbook outputs'!C16 -> -1374.436268 | D88: ='[2]Chartbook outputs'!D16 -> -0.1974003925
B89: ='[2]Chartbook outputs'!B17 -> Network Tasman | C89: ='[2]Chartbook outputs'!C17 -> 941.292139 | D89: ='[2]Chartbook outputs'!D17 -> 0.03381166639
B90: ='[2]Chartbook outputs'!B18 -> Orion NZ | C90: ='[2]Chartbook outputs'!C18 -> -10619.62648 | D90: ='[2]Chartbook outputs'!D18 -> -0.06181759823
B91: ='[2]Chartbook outputs'!B19 -> OtagoNet | C91: ='[2]Chartbook outputs'!C19 -> -2715.282238 | D91: ='[2]Chartbook outputs'!D19 -> -0.09767243465
B92: ='[2]Chartbook outputs'!B20 -> The Lines Company | C92: ='[2]Chartbook outputs'!C20 -> -8384.639499 | D92: ='[2]Chartbook outputs'!D20 -> -0.1980866346
B93: ='[2]Chartbook outputs'!B21 -> Top Energy | C93: ='[2]Chartbook outputs'!C21 -> -2796.299841 | D93: ='[2]Chartbook outputs'!D21 -> -0.0621599438
B94: ='[2]Chartbook outputs'!B22 -> Unison Networks | C94: ='[2]Chartbook outputs'!C22 -> -13886.00231 | D94: ='[2]Chartbook outputs'!D22 -> -0.1195657268
B95: ='[2]Chartbook outputs'!B23 -> Vector Lines | C95: ='[2]Chartbook outputs'!C23 -> -22835.22071 | D95: ='[2]Chartbook outputs'!D23 -> -0.05358104056
A98: ='[2]Chartbook outputs'!A26 -> Table 5.3 | B98: ='[2]Chartbook outputs'!B26 -> Estimated revenue over the period
B99: ='[2]Chartbook outputs'!B27 -> Distributor | C99: ='[2]Chartbook outputs'!C27 -> Proposed PV of MAR | D99: ='[2]Chartbook outputs'!D27 -> PV of MAR under a roll-over scenario | E99: ='[2]Chartbook outputs'!E27 -> $ difference between proposed PV MAR and roll-over PV MAR (over-recovery as positive, under recovery as negative) | F99: ='[2]Chartbook outputs'!F27 -> % difference between the two
B100: ='[2]Chartbook outputs'!B28 -> Alpine Energy | C100: ='[2]Chartbook outputs'!C28 -> 207660.3982 | D100: ='[2]Chartbook outputs'!D28 -> 228897.9143 | E100: ='[2]Chartbook outputs'!E28 -> 21237.51605 | F100: ='[2]Chartbook outputs'!F28 -> 0.1022704195
B101: ='[2]Chartbook outputs'!B29 -> Aurora Energy | C101: ='[2]Chartbook outputs'!C29 -> 391914.4852 | D101: ='[2]Chartbook outputs'!D29 -> 308862.754 | E101: ='[2]Chartbook outputs'!E29 -> -83051.73126 | F101: ='[2]Chartbook outputs'!F29 -> -0.2119128902
B102: ='[2]Chartbook outputs'!B30 -> Centralines | C102: ='[2]Chartbook outputs'!C30 -> 43025.68549 | D102: ='[2]Chartbook outputs'!D30 -> 66318.31876 | E102: ='[2]Chartbook outputs'!E30 -> 23292.63327 | F102: ='[2]Chartbook outputs'!F30 -> 0.541365768
B103: ='[2]Chartbook outputs'!B31 -> EA Networks | C103: ='[2]Chartbook outputs'!C31 -> 172569.6271 | D103: ='[2]Chartbook outputs'!D31 -> 175486.1965 | E103: ='[2]Chartbook outputs'!E31 -> 2916.569339 | F103: ='[2]Chartbook outputs'!F31 -> 0.01690082657
B104: ='[2]Chartbook outputs'!B32 -> Eastland Network | C104: ='[2]Chartbook outputs'!C32 -> 114700.0865 | D104: ='[2]Chartbook outputs'!D32 -> 129075.9971 | E104: ='[2]Chartbook outputs'!E32 -> 14375.91054 | F104: ='[2]Chartbook outputs'!F32 -> 0.1253347837
B105: ='[2]Chartbook outputs'!B33 -> Electricity Invercargill | C105: ='[2]Chartbook outputs'!C33 -> 56269.82546 | D105: ='[2]Chartbook outputs'!D33 -> 63712.40932 | E105: ='[2]Chartbook outputs'!E33 -> 7442.583867 | F105: ='[2]Chartbook outputs'!F33 -> 0.1322659846
B106: ='[2]Chartbook outputs'!B34 -> Horizon Energy | C106: ='[2]Chartbook outputs'!C34 -> 114486.9463 | D106: ='[2]Chartbook outputs'!D34 -> 109076.7491 | E106: ='[2]Chartbook outputs'!E34 -> -5410.197172 | F106: ='[2]Chartbook outputs'!F34 -> -0.04725601781
B107: ='[2]Chartbook outputs'!B35 -> Nelson Electricity | C107: ='[2]Chartbook outputs'!C35 -> 25582.49858 | D107: ='[2]Chartbook outputs'!D35 -> 31874.54659 | E107: ='[2]Chartbook outputs'!E35 -> 6292.04801 | F107: ='[2]Chartbook outputs'!F35 -> 0.2459512697
B108: ='[2]Chartbook outputs'!B36 -> Network Tasman | C108: ='[2]Chartbook outputs'!C36 -> 131754.879 | D108: ='[2]Chartbook outputs'!D36 -> 127445.7266 | E108: ='[2]Chartbook outputs'!E36 -> -4309.15239 | F108: ='[2]Chartbook outputs'!F36 -> -0.03270582785
B109: ='[2]Chartbook outputs'!B37 -> Orion NZ | C109: ='[2]Chartbook outputs'!C37 -> 737822.3682 | D109: ='[2]Chartbook outputs'!D37 -> 786438.0816 | E109: ='[2]Chartbook outputs'!E37 -> 48615.71336 | F109: ='[2]Chartbook outputs'!F37 -> 0.06589080984
B110: ='[2]Chartbook outputs'!B38 -> OtagoNet | C110: ='[2]Chartbook outputs'!C38 -> 114835.089 | D110: ='[2]Chartbook outputs'!D38 -> 127265.4116 | E110: ='[2]Chartbook outputs'!E38 -> 12430.3226 | F110: ='[2]Chartbook outputs'!F38 -> 0.108244986
B111: ='[2]Chartbook outputs'!B39 -> The Lines Company | C111: ='[2]Chartbook outputs'!C39 -> 155390.3676 | D111: ='[2]Chartbook outputs'!D39 -> 193774.5077 | E111: ='[2]Chartbook outputs'!E39 -> 38384.1401 | F111: ='[2]Chartbook outputs'!F39 -> 0.2470174998
B112: ='[2]Chartbook outputs'!B40 -> Top Energy | C112: ='[2]Chartbook outputs'!C40 -> 193138.7089 | D112: ='[2]Chartbook outputs'!D40 -> 205939.9229 | E112: ='[2]Chartbook outputs'!E40 -> 12801.21404 | F112: ='[2]Chartbook outputs'!F40 -> 0.06627989858
B113: ='[2]Chartbook outputs'!B41 -> Unison Networks | C113: ='[2]Chartbook outputs'!C41 -> 468095.9529 | D113: ='[2]Chartbook outputs'!D41 -> 531664.8467 | E113: ='[2]Chartbook outputs'!E41 -> 63568.8938 | F113: ='[2]Chartbook outputs'!F41 -> 0.1358031263
B114: ='[2]Chartbook outputs'!B42 -> Vector Lines | C114: ='[2]Chartbook outputs'!C42 -> 1846481.339 | D114: ='[2]Chartbook outputs'!D42 -> 1951018.966 | E114: ='[2]Chartbook outputs'!E42 -> 104537.6263 | F114: ='[2]Chartbook outputs'!F42 -> 0.05661450463
A117: =[3]Chartbook!A3 -> Table 5.4 | B117: Opex allowances
B118: =[3]Chartbook!A7 -> Distributor | C118: =[3]Chartbook!B7 -> 2020/21 | D118: =[3]Chartbook!C7 -> 2021/22 | E118: =[3]Chartbook!D7 -> 2022/23 | F118: =[3]Chartbook!E7 -> 2023/24 | G118: =[3]Chartbook!F7 -> 2024/25
B119: =[3]Chartbook!A8 -> Alpine Energy | C119: =[3]Chartbook!B8 -> 18958.27695 | D119: =[3]Chartbook!C8 -> 19558.63749 | E119: =[3]Chartbook!D8 -> 20151.66449 | F119: =[3]Chartbook!E8 -> 20709.7457 | G119: =[3]Chartbook!F8 -> 21127.6113
B120: =[3]Chartbook!A9 -> Aurora Energy | C120: =[3]Chartbook!B9 -> 40108.01182 | D120: =[3]Chartbook!C9 -> 41758.76769 | E120: =[3]Chartbook!D9 -> 43420.9089 | F120: =[3]Chartbook!E9 -> 44972.79235 | G120: =[3]Chartbook!F9 -> 46239.73787
B121: =[3]Chartbook!A10 -> Centralines | C121: =[3]Chartbook!B10 -> 3806.103561 | D121: =[3]Chartbook!C10 -> 3878.336392 | E121: =[3]Chartbook!D10 -> 3946.829692 | F121: =[3]Chartbook!E10 -> 4003.142186 | G121: =[3]Chartbook!F10 -> 4030.604862
B122: =[3]Chartbook!A11 -> EA Networks | C122: =[3]Chartbook!B11 -> 13505.51834 | D122: =[3]Chartbook!C11 -> 13998.54116 | E122: =[3]Chartbook!D11 -> 14490.62343 | F122: =[3]Chartbook!E11 -> 14960.7268 | G122: =[3]Chartbook!F11 -> 15333.11227
B123: =[3]Chartbook!A12 -> Eastland Network | C123: =[3]Chartbook!B12 -> 10850.673 | D123: =[3]Chartbook!C12 -> 11158.75254 | E123: =[3]Chartbook!D12 -> 11460.5961 | F123: =[3]Chartbook!E12 -> 11738.52793 | G123: =[3]Chartbook!F12 -> 11935.25806
B124: =[3]Chartbook!A13 -> Electricity Invercargill | C124: =[3]Chartbook!B13 -> 4993.638188 | D124: =[3]Chartbook!C13 -> 5127.712059 | E124: =[3]Chartbook!D13 -> 5258.511716 | F124: =[3]Chartbook!E13 -> 5379.542644 | G124: =[3]Chartbook!F13 -> 5463.106639
B125: =[3]Chartbook!A14 -> Horizon Energy | C125: =[3]Chartbook!B14 -> 11291.42424 | D125: =[3]Chartbook!C14 -> 11609.988 | E125: =[3]Chartbook!D14 -> 11921.95492 | F125: =[3]Chartbook!E14 -> 12207.88699 | G125: =[3]Chartbook!F14 -> 12409.24676
B126: =[3]Chartbook!A15 -> Nelson Electricity | C126: =[3]Chartbook!B15 -> 2122.383493 | D126: =[3]Chartbook!C15 -> 2191.999503 | E126: =[3]Chartbook!D15 -> 2260.942989 | F126: =[3]Chartbook!E15 -> 2324.809394 | G126: =[3]Chartbook!F15 -> 2372.995228
B127: =[3]Chartbook!A16 -> Network Tasman | C127: =[3]Chartbook!B16 -> 12096.42151 | D127: =[3]Chartbook!C16 -> 12483.73592 | E127: =[3]Chartbook!D16 -> 12866.63178 | F127: =[3]Chartbook!E16 -> 13221.66223 | G127: =[3]Chartbook!F16 -> 13487.11339
B128: =[3]Chartbook!A17 -> Orion NZ | C128: =[3]Chartbook!B17 -> 61022.97054 | D128: =[3]Chartbook!C17 -> 63364.75771 | E128: =[3]Chartbook!D17 -> 65710.50062 | F128: =[3]Chartbook!E17 -> 67829.46906 | G128: =[3]Chartbook!F17 -> 69504.64817
B129: =[3]Chartbook!A18 -> OtagoNet | C129: =[3]Chartbook!B18 -> 7993.842907 | D129: =[3]Chartbook!C18 -> 8233.409552 | E129: =[3]Chartbook!D18 -> 8469.089503 | F129: =[3]Chartbook!E18 -> 8674.731494 | G129: =[3]Chartbook!F18 -> 8820.378022
B130: =[3]Chartbook!A19 -> The Lines Company | C130: =[3]Chartbook!B19 -> 13361.49606 | D130: =[3]Chartbook!C19 -> 13747.62658 | E130: =[3]Chartbook!D19 -> 14126.45338 | F130: =[3]Chartbook!E19 -> 14453.9179 | G130: =[3]Chartbook!F19 -> 14680.81739
B131: =[3]Chartbook!A20 -> Top Energy | C131: =[3]Chartbook!B20 -> 17657.33647 | D131: =[3]Chartbook!C20 -> 18209.31413 | E131: =[3]Chartbook!D20 -> 18754.02958 | F131: =[3]Chartbook!E20 -> 19260.57163 | G131: =[3]Chartbook!F20 -> 19636.11582
B132: =[3]Chartbook!A21 -> Unison Networks | C132: =[3]Chartbook!B21 -> 42559.57526 | D132: =[3]Chartbook!C21 -> 43930.83323 | E132: =[3]Chartbook!D21 -> 45287.07074 | F132: =[3]Chartbook!E21 -> 46545.18499 | G132: =[3]Chartbook!F21 -> 47488.35882
B133: =[3]Chartbook!A22 -> Vector Lines | C133: =[3]Chartbook!B22 -> 128568.6903 | D133: =[3]Chartbook!C22 -> 133812.7745 | E133: =[3]Chartbook!D22 -> 139088.9347 | F133: =[3]Chartbook!E22 -> 143907.6248 | G133: =[3]Chartbook!F22 -> 147804.197
B134: =[3]Chartbook!A23 -> Wellington Electricity | C134: =[3]Chartbook!B23 -> 36822.09577 | D134: =[3]Chartbook!C23 -> 38003.60011 | E134: =[3]Chartbook!D23 -> 39171.80533 | F134: =[3]Chartbook!E23 -> 40251.97425 | G134: =[3]Chartbook!F23 -> 41059.39379
A137: =[3]Chartbook!A25 -> Table 5.5 | B137: Opex base, step, and trends
B138: =[3]Chartbook!A29 -> Distributor | C138: =[3]Chartbook!B29 -> Total opex base | D138: =[3]Chartbook!C29 -> Step changes | E138: =[3]Chartbook!D29 -> Aggregate trend 2018-23 (CAGR, %) | F138: =[3]Chartbook!E29 -> Aggregate trend 2023-25 (CAGR, %)
B139: =[3]Chartbook!A30 -> Alpine Energy | C139: =[3]Chartbook!B30 -> 17171.22298 | D139: =[3]Chartbook!C30 -> 0 | E139: =[3]Chartbook!D30 -> 0.02703430305 | F139: =[3]Chartbook!E30 -> 0.01588954663
B140: =[3]Chartbook!A31 -> Aurora Energy | C140: =[3]Chartbook!B31 -> 35344 | D140: =[3]Chartbook!C31 -> 0 | E140: =[3]Chartbook!D31 -> 0.03489717615 | F140: =[3]Chartbook!E31 -> 0.02118748669
B141: =[3]Chartbook!A32 -> Centralines | C141: =[3]Chartbook!B32 -> 3578 | D141: =[3]Chartbook!C32 -> 0 | E141: =[3]Chartbook!D32 -> 0.01648586015 | F141: =[3]Chartbook!E32 -> 0.007025835366
B142: =[3]Chartbook!A33 -> EA Networks | C142: =[3]Chartbook!B33 -> 12062 | D142: =[3]Chartbook!C33 -> 0 | E142: =[3]Chartbook!D33 -> 0.03104580058 | F142: =[3]Chartbook!E33 -> 0.01901618444
B143: =[3]Chartbook!A34 -> Eastland Network | C143: =[3]Chartbook!B34 -> 9922.04778 | D143: =[3]Chartbook!C34 -> 0 | E143: =[3]Chartbook!D34 -> 0.02431684678 | F143: =[3]Chartbook!E34 -> 0.01361929434
B144: =[3]Chartbook!A35 -> Electricity Invercargill | C144: =[3]Chartbook!B35 -> 4586.901 | D144: =[3]Chartbook!C35 -> 0 | E144: =[3]Chartbook!D35 -> 0.0230352069 | F144: =[3]Chartbook!E35 -> 0.01280447296
B145: =[3]Chartbook!A36 -> Horizon Energy | C145: =[3]Chartbook!B36 -> 10330.50499 | D145: =[3]Chartbook!C36 -> 0 | E145: =[3]Chartbook!D36 -> 0.02416749297 | F145: =[3]Chartbook!E36 -> 0.01344297164
B146: =[3]Chartbook!A37 -> Nelson Electricity | C146: =[3]Chartbook!B37 -> 1916 | D146: =[3]Chartbook!C37 -> 0 | E146: =[3]Chartbook!D37 -> 0.02797452243 | F146: =[3]Chartbook!E37 -> 0.01625435042
B147: =[3]Chartbook!A38 -> Network Tasman | C147: =[3]Chartbook!B38 -> 10945 | D147: =[3]Chartbook!C38 -> 0 | E147: =[3]Chartbook!D38 -> 0.02732577488 | F147: =[3]Chartbook!E38 -> 0.01582300878
B148: =[3]Chartbook!A39 -> Orion NZ | C148: =[3]Chartbook!B39 -> 54206.509 | D148: =[3]Chartbook!C39 -> 0 | E148: =[3]Chartbook!D39 -> 0.03259628011 | F148: =[3]Chartbook!E39 -> 0.01888778988
B149: =[3]Chartbook!A40 -> OtagoNet | C149: =[3]Chartbook!B40 -> 7276.234 | D149: =[3]Chartbook!C40 -> 0 | E149: =[3]Chartbook!D40 -> 0.02562439972 | F149: =[3]Chartbook!E40 -> 0.01363942051
B150: =[3]Chartbook!A41 -> The Lines Company | C150: =[3]Chartbook!B41 -> 12200 | D150: =[3]Chartbook!C41 -> 0 | E150: =[3]Chartbook!D41 -> 0.02473653003 | F150: =[3]Chartbook!E41 -> 0.01291351397
B151: =[3]Chartbook!A42 -> Top Energy | C151: =[3]Chartbook!B42 -> 16011.85701 | D151: =[3]Chartbook!C42 -> 0 | E151: =[3]Chartbook!D42 -> 0.0266966593 | F151: =[3]Chartbook!E42 -> 0.0154385873
B152: =[3]Chartbook!A43 -> Unison Networks | C152: =[3]Chartbook!B43 -> 38485.988 | D152: =[3]Chartbook!C43 -> 0 | E152: =[3]Chartbook!D43 -> 0.0274923531 | F152: =[3]Chartbook!E43 -> 0.01594682338
B153: =[3]Chartbook!A44 -> Vector Lines | C153: =[3]Chartbook!B44 -> 113414.8866 | D153: =[3]Chartbook!C44 -> 0 | E153: =[3]Chartbook!D44 -> 0.03459510587 | F153: =[3]Chartbook!E44 -> 0.02046487766
B154: =[3]Chartbook!A45 -> Wellington Electricity | C154: =[3]Chartbook!B45 -> 33310.525 | D154: =[3]Chartbook!C45 -> 0 | E154: =[3]Chartbook!D45 -> 0.02738215573 | F154: =[3]Chartbook!E45 -> 0.01581116471
A157: ='[4]Chartbook output'!A3 -> Table 5.8 | B157: ='[4]Chartbook output'!B3 -> Proposed capex allowances for DPP3
B158: ='[4]Chartbook output'!B4 -> Distributor | C158: ='[4]Chartbook output'!C4 -> 2021 | D158: ='[4]Chartbook output'!D4 -> 2022 | E158: ='[4]Chartbook output'!E4 -> 2023 | F158: ='[4]Chartbook output'!F4 -> 2024 | G158: ='[4]Chartbook output'!G4 -> 2025
B159: ='[4]Chartbook output'!B5 -> Alpine Energy | C159: ='[4]Chartbook output'!C5 -> 16681.11344 | D159: ='[4]Chartbook output'!D5 -> 16097.18299 | E159: ='[4]Chartbook output'!E5 -> 13450.52029 | F159: ='[4]Chartbook output'!F5 -> 14062.53155 | G159: ='[4]Chartbook output'!G5 -> 11411.98307
B160: ='[4]Chartbook output'!B6 -> Aurora Energy | C160: ='[4]Chartbook output'!C6 -> 29927.53016 | D160: ='[4]Chartbook output'!D6 -> 30649.84492 | E160: ='[4]Chartbook output'!E6 -> 30012.27049 | F160: ='[4]Chartbook output'!F6 -> 28159.61044 | G160: ='[4]Chartbook output'!G6 -> 29245.39047
B161: ='[4]Chartbook output'!B7 -> Centralines | C161: ='[4]Chartbook output'!C7 -> 2840.160078 | D161: ='[4]Chartbook output'!D7 -> 2668.165337 | E161: ='[4]Chartbook output'!E7 -> 2700.887345 | F161: ='[4]Chartbook output'!F7 -> 3232.563804 | G161: ='[4]Chartbook output'!G7 -> 3322.328046
B162: ='[4]Chartbook output'!B8 -> EA Networks | C162: ='[4]Chartbook output'!C8 -> 19238.7558 | D162: ='[4]Chartbook output'!D8 -> 19088.25832 | E162: ='[4]Chartbook output'!E8 -> 18058.85735 | F162: ='[4]Chartbook output'!F8 -> 15819.04408 | G162: ='[4]Chartbook output'!G8 -> 16277.87495
B163: ='[4]Chartbook output'!B9 -> Eastland Network | C163: ='[4]Chartbook output'!C9 -> 8521.103953 | D163: ='[4]Chartbook output'!D9 -> 7729.775832 | E163: ='[4]Chartbook output'!E9 -> 7311.317123 | F163: ='[4]Chartbook output'!F9 -> 8261.253855 | G163: ='[4]Chartbook output'!G9 -> 9078.485682
B164: ='[4]Chartbook output'!B10 -> Electricity Invercargill | C164: ='[4]Chartbook output'!C10 -> 4512.976058 | D164: ='[4]Chartbook output'!D10 -> 3804.700931 | E164: ='[4]Chartbook output'!E10 -> 4167.923621 | F164: ='[4]Chartbook output'!F10 -> 4125.952791 | G164: ='[4]Chartbook output'!G10 -> 4192.018008
B165: ='[4]Chartbook output'!B11 -> Horizon Energy | C165: ='[4]Chartbook output'!C11 -> 8241.896502 | D165: ='[4]Chartbook output'!D11 -> 6286.986161 | E165: ='[4]Chartbook output'!E11 -> 6750.024192 | F165: ='[4]Chartbook output'!F11 -> 7480.150931 | G165: ='[4]Chartbook output'!G11 -> 8079.859231
B166: ='[4]Chartbook output'!B12 -> Nelson Electricity | C166: ='[4]Chartbook output'!C12 -> 1491.012419 | D166: ='[4]Chartbook output'!D12 -> 1617.788593 | E166: ='[4]Chartbook output'!E12 -> 1652.103257 | F166: ='[4]Chartbook output'!F12 -> 1843.280188 | G166: ='[4]Chartbook output'!G12 -> 1670.123921
B167: ='[4]Chartbook output'!B13 -> Network Tasman | C167: ='[4]Chartbook output'!C13 -> 5449.356954 | D167: ='[4]Chartbook output'!D13 -> 6787.65066 | E167: ='[4]Chartbook output'!E13 -> 6445.362832 | F167: ='[4]Chartbook output'!F13 -> 4310.233232 | G167: ='[4]Chartbook output'!G13 -> 4688.713208
B168: ='[4]Chartbook output'!B14 -> Orion NZ | C168: ='[4]Chartbook output'!C14 -> 60621.18221 | D168: ='[4]Chartbook output'!D14 -> 64785.6191 | E168: ='[4]Chartbook output'!E14 -> 69550.18462 | F168: ='[4]Chartbook output'!F14 -> 66466.17943 | G168: ='[4]Chartbook output'!G14 -> 78731.04057
B169: ='[4]Chartbook output'!B15 -> OtagoNet | C169: ='[4]Chartbook output'!C15 -> 14983.40975 | D169: ='[4]Chartbook output'!D15 -> 15216.95455 | E169: ='[4]Chartbook output'!E15 -> 15966.67854 | F169: ='[4]Chartbook output'!F15 -> 16984.19237 | G169: ='[4]Chartbook output'!G15 -> 16670.84603
B170: ='[4]Chartbook output'!B16 -> The Lines Company | C170: ='[4]Chartbook output'!C16 -> 12186.89563 | D170: ='[4]Chartbook output'!D16 -> 12286.82356 | E170: ='[4]Chartbook output'!E16 -> 11928.51651 | F170: ='[4]Chartbook output'!F16 -> 11690.56427 | G170: ='[4]Chartbook output'!G16 -> 12254.51766
B171: ='[4]Chartbook output'!B17 -> Top Energy | C171: ='[4]Chartbook output'!C17 -> 22807.15378 | D171: ='[4]Chartbook output'!D17 -> 16698.18597 | E171: ='[4]Chartbook output'!E17 -> 16364.169 | F171: ='[4]Chartbook output'!F17 -> 16657.70283 | G171: ='[4]Chartbook output'!G17 -> 17735.53137
B172: ='[4]Chartbook output'!B18 -> Unison Networks | C172: ='[4]Chartbook output'!C18 -> 45181.92748 | D172: ='[4]Chartbook output'!D18 -> 44799.4973 | E172: ='[4]Chartbook output'!E18 -> 44115.77441 | F172: ='[4]Chartbook output'!F18 -> 49989.79844 | G172: ='[4]Chartbook output'!G18 -> 48856.4802
B173: ='[4]Chartbook output'!B19 -> Vector Lines | C173: ='[4]Chartbook output'!C19 -> 169613.4004 | D173: ='[4]Chartbook output'!D19 -> 190827.1429 | E173: ='[4]Chartbook output'!E19 -> 204070.2506 | F173: ='[4]Chartbook output'!F19 -> 199263.7933 | G173: ='[4]Chartbook output'!G19 -> 189811.2063
B174: ='[4]Chartbook output'!B20 -> Wellington Electricity | C174: ='[4]Chartbook output'!C20 -> 42385.314 | D174: ='[4]Chartbook output'!D20 -> 31714.42059 | E174: ='[4]Chartbook output'!E20 -> 33652.83131 | F174: ='[4]Chartbook output'!F20 -> 35350.25396 | G174: ='[4]Chartbook output'!G20 -> 38418.87936
A177: ='[4]Chartbook output'!A23 -> Table 5.10 | B177: ='[4]Chartbook output'!B23 -> Capex acceptance rate by category
B178: ='[4]Chartbook output'!B24 -> Distributor | C178: ='[4]Chartbook output'!C24 -> Total capital expenditure acceptance rate (after 120% cap) | D178: ='[4]Chartbook output'!D24 -> Asset replacement and renewals expenditure net of capital contributions | E178: ='[4]Chartbook output'!E24 -> Consumer connection expenditure net of capital contributions | F178: ='[4]Chartbook output'!F24 -> System growth expenditure net of capital contributions | G178: ='[4]Chartbook output'!G24 -> Total reliability, safety and environment expenditure net of capital contributions | H178: ='[4]Chartbook output'!H24 -> Other expenditure
B179: ='[4]Chartbook output'!B25 -> Alpine Energy | C179: ='[4]Chartbook output'!C25 -> 1 | D179: ='[4]Chartbook output'!D25 -> 1 | E179: ='[4]Chartbook output'!E25 -> 1 | F179: ='[4]Chartbook output'!F25 -> 1 | G179: ='[4]Chartbook output'!G25 -> 1 | H179: ='[4]Chartbook output'!H25 -> 1
B180: ='[4]Chartbook output'!B26 -> Aurora Energy | C180: ='[4]Chartbook output'!C26 -> 0.4117406236 | D180: ='[4]Chartbook output'!D26 -> 0.3578793223 | E180: ='[4]Chartbook output'!E26 -> 1 | F180: ='[4]Chartbook output'!F26 -> 0.5018291449 | G180: ='[4]Chartbook output'!G26 -> 1 | H180: ='[4]Chartbook output'!H26 -> 0.2331349532
B181: ='[4]Chartbook output'!B27 -> Centralines | C181: ='[4]Chartbook output'!C27 -> 0.9972371808 | D181: ='[4]Chartbook output'!D27 -> 1 | E181: ='[4]Chartbook output'!E27 -> 1 | F181: ='[4]Chartbook output'!F27 -> 1 | G181: ='[4]Chartbook output'!G27 -> 1 | H181: ='[4]Chartbook output'!H27 -> 0.9875615539
B182: ='[4]Chartbook output'!B28 -> EA Networks | C182: ='[4]Chartbook output'!C28 -> 0.9703799584 | D182: ='[4]Chartbook output'!D28 -> 1 | E182: ='[4]Chartbook output'!E28 -> 1 | F182: ='[4]Chartbook output'!F28 -> 0.9113611041 | G182: ='[4]Chartbook output'!G28 -> 1 | H182: ='[4]Chartbook output'!H28 -> 1
B183: ='[4]Chartbook output'!B29 -> Eastland Network | C183: ='[4]Chartbook output'!C29 -> 0.8064637827 | D183: ='[4]Chartbook output'!D29 -> 0.7633918846 | E183: ='[4]Chartbook output'!E29 -> 1 | F183: ='[4]Chartbook output'!F29 -> 1 | G183: ='[4]Chartbook output'!G29 -> 0.9588077569 | H183: ='[4]Chartbook output'!H29 -> 0.7359088458
B184: ='[4]Chartbook output'!B30 -> Electricity Invercargill | C184: ='[4]Chartbook output'!C30 -> 0.9151589153 | D184: ='[4]Chartbook output'!D30 -> 1 | E184: ='[4]Chartbook output'!E30 -> 0.3825964608 | F184: ='[4]Chartbook output'!F30 -> 1 | G184: ='[4]Chartbook output'!G30 -> 1 | H184: ='[4]Chartbook output'!H30 -> 1
B185: ='[4]Chartbook output'!B31 -> Horizon Energy | C185: ='[4]Chartbook output'!C31 -> 0.9784566517 | D185: ='[4]Chartbook output'!D31 -> 1 | E185: ='[4]Chartbook output'!E31 -> 1 | F185: ='[4]Chartbook output'!F31 -> 0.8446981793 | G185: ='[4]Chartbook output'!G31 -> 1 | H185: ='[4]Chartbook output'!H31 -> 0.9213669063
B186: ='[4]Chartbook output'!B32 -> Nelson Electricity | C186: ='[4]Chartbook output'!C32 -> 0.9893634372 | D186: ='[4]Chartbook output'!D32 -> 1 | E186: ='[4]Chartbook output'!E32 -> 0.06811196636 | F186: ='[4]Chartbook output'!F32 -> 1 | G186: ='[4]Chartbook output'!G32 -> 1 | H186: ='[4]Chartbook output'!H32 -> 1
B187: ='[4]Chartbook output'!B33 -> Network Tasman | C187: ='[4]Chartbook output'!C33 -> 0.3537071102 | D187: ='[4]Chartbook output'!D33 -> 0.6694872671 | E187: ='[4]Chartbook output'!E33 -> 1 | F187: ='[4]Chartbook output'!F33 -> 0.147185259 | G187: ='[4]Chartbook output'!G33 -> 1 | H187: ='[4]Chartbook output'!H33 -> 0.7792544667
B188: ='[4]Chartbook output'!B34 -> Orion NZ | C188: ='[4]Chartbook output'!C34 -> 1 | D188: ='[4]Chartbook output'!D34 -> 1 | E188: ='[4]Chartbook output'!E34 -> 1 | F188: ='[4]Chartbook output'!F34 -> 1 | G188: ='[4]Chartbook output'!G34 -> 1 | H188: ='[4]Chartbook output'!H34 -> 1
B189: ='[4]Chartbook output'!B35 -> OtagoNet | C189: ='[4]Chartbook output'!C35 -> 0.9115572103 | D189: ='[4]Chartbook output'!D35 -> 1 | E189: ='[4]Chartbook output'!E35 -> 0.6071327855 | F189: ='[4]Chartbook output'!F35 -> 1 | G189: ='[4]Chartbook output'!G35 -> 1 | H189: ='[4]Chartbook output'!H35 -> 1
B190: ='[4]Chartbook output'!B36 -> The Lines Company | C190: ='[4]Chartbook output'!C36 -> 0.7694637005 | D190: ='[4]Chartbook output'!D36 -> 0.8077106474 | E190: ='[4]Chartbook output'!E36 -> 0.7148802287 | F190: ='[4]Chartbook output'!F36 -> 0.3141102725 | G190: ='[4]Chartbook output'!G36 -> 0.9167925402 | H190: ='[4]Chartbook output'!H36 -> 0.9656582832
B191: ='[4]Chartbook output'!B37 -> Top Energy | C191: ='[4]Chartbook output'!C37 -> 1 | D191: ='[4]Chartbook output'!D37 -> 1 | E191: ='[4]Chartbook output'!E37 -> 1 | F191: ='[4]Chartbook output'!F37 -> 1 | G191: ='[4]Chartbook output'!G37 -> 1 | H191: ='[4]Chartbook output'!H37 -> 1
B192: ='[4]Chartbook output'!B38 -> Unison Networks | C192: ='[4]Chartbook output'!C38 -> 1 | D192: ='[4]Chartbook output'!D38 -> 1 | E192: ='[4]Chartbook output'!E38 -> 1 | F192: ='[4]Chartbook output'!F38 -> 1 | G192: ='[4]Chartbook output'!G38 -> 1 | H192: ='[4]Chartbook output'!H38 -> 1
B193: ='[4]Chartbook output'!B39 -> Vector Lines | C193: ='[4]Chartbook output'!C39 -> 0.9663447557 | D193: ='[4]Chartbook output'!D39 -> 1 | E193: ='[4]Chartbook output'!E39 -> 1 | F193: ='[4]Chartbook output'!F39 -> 0.8512003465 | G193: ='[4]Chartbook output'!G39 -> 1 | H193: ='[4]Chartbook output'!H39 -> 1
B194: ='[4]Chartbook output'!B40 -> Wellington Electricity | C194: ='[4]Chartbook output'!C40 -> 0.9091852193 | D194: ='[4]Chartbook output'!D40 -> 1 | E194: ='[4]Chartbook output'!E40 -> 1 | F194: ='[4]Chartbook output'!F40 -> 0.5067813503 | G194: ='[4]Chartbook output'!G40 -> 1 | H194: ='[4]Chartbook output'!H39 -> 1
A197: Table C1 | B197: Inflation (CPI)
B198: =[5]Output!A7 -> Pricing year ending in calendar year: | C198: =[5]Output!B7 -> 2016 | D198: =[5]Output!C7 -> 2017 | E198: =[5]Output!D7 -> 2018 | F198: =[5]Output!E7 -> 2019 | G198: =[5]Output!F7 -> 2020 | H198: =[5]Output!G7 -> 2021 | I198: =[5]Output!H7 -> 2022 | J198: =[5]Output!I7 -> 2023 | K198: =[5]Output!J7 -> 2024 | L198: =[5]Output!K7 -> 2025
B199: =[5]Output!A8 -> Forecast changes in CPI used for revaluations | C199: =[5]Output!B8 -> 0.004102564103 | D199: =[5]Output!C8 -> 0.02145045965 | E199: =[5]Output!D8 -> 0.011 | F199: =[5]Output!E8 -> 0.016 | G199: =[5]Output!F8 -> 0.017 | H199: =[5]Output!G8 -> 0.021 | I199: =[5]Output!H8 -> 0.021 | J199: =[5]Output!I8 -> 0.02066666667 | K199: =[5]Output!J8 -> 0.02033333333 | L199: =[5]Output!K8 -> 0.02
B200: =[5]Output!A9 -> Forecast changes in the CPI element of the price path | D200: =[5]Output!C9 -> 0.0107224917 | E200: =[5]Output!D9 -> 0.01591310937 | F200: =[5]Output!E9 -> 0.01719940328 | G200: =[5]Output!F9 -> 0.01450071862 | H200: =[5]Output!G9 -> 0.01975379478 | I200: =[5]Output!H9 -> 0.02074952399 | J200: =[5]Output!I9 -> 0.02066666667 | K200: =[5]Output!J9 -> 0.02033333333 | L200: =[5]Output!K9 -> 0.02
A203: ='[1]Chartbook outputs'!A43 -> Table C2 | B203: ='[1]Chartbook outputs'!B43 -> Forecasts of disposed assets
B204: ='[1]Chartbook outputs'!B44 -> Supplier | C204: ='[1]Chartbook outputs'!C44 -> 2018/19 | D204: ='[1]Chartbook outputs'!D44 -> 2019/20 | E204: ='[1]Chartbook outputs'!E44 -> 2020/21 | F204: ='[1]Chartbook outputs'!F44 -> 2021/22 | G204: ='[1]Chartbook outputs'!G44 -> 2022/23 | H204: ='[1]Chartbook outputs'!H44 -> 2023/24 | I204: ='[1]Chartbook outputs'!I44 -> 2024/25
B205: ='[1]Chartbook outputs'!B45 -> Alpine Energy | C205: ='[1]Chartbook outputs'!C45 -> 160.6594222 | D205: ='[1]Chartbook outputs'!D45 -> 163.3906324 | E205: ='[1]Chartbook outputs'!E45 -> 166.8218357 | F205: ='[1]Chartbook outputs'!F45 -> 170.3250942 | G205: ='[1]Chartbook outputs'!G45 -> 173.8451462 | H205: ='[1]Chartbook outputs'!H45 -> 177.3799975 | I205: ='[1]Chartbook outputs'!I45 -> 180.9275975
B206: ='[1]Chartbook outputs'!B46 -> Aurora Energy | C206: ='[1]Chartbook outputs'!C46 -> 144.78 | D206: ='[1]Chartbook outputs'!D46 -> 147.24126 | E206: ='[1]Chartbook outputs'!E46 -> 150.3333265 | F206: ='[1]Chartbook outputs'!F46 -> 153.4903263 | G206: ='[1]Chartbook outputs'!G46 -> 156.6624597 | H206: ='[1]Chartbook outputs'!H46 -> 159.8479297 | I206: ='[1]Chartbook outputs'!I46 -> 163.0448883
B207: ='[1]Chartbook outputs'!B47 -> Centralines | C207: ='[1]Chartbook outputs'!C47 -> 25.17212308 | D207: ='[1]Chartbook outputs'!D47 -> 25.60004918 | E207: ='[1]Chartbook outputs'!E47 -> 26.13765021 | F207: ='[1]Chartbook outputs'!F47 -> 26.68654086 | G207: ='[1]Chartbook outputs'!G47 -> 27.23806271 | H207: ='[1]Chartbook outputs'!H47 -> 27.79190332 | I207: ='[1]Chartbook outputs'!I47 -> 28.34774138
B208: ='[1]Chartbook outputs'!B48 -> EA Networks | C208: ='[1]Chartbook outputs'!C48 -> 1137.427863 | D208: ='[1]Chartbook outputs'!D48 -> 1156.764137 | E208: ='[1]Chartbook outputs'!E48 -> 1181.056183 | F208: ='[1]Chartbook outputs'!F48 -> 1205.858363 | G208: ='[1]Chartbook outputs'!G48 -> 1230.779436 | H208: ='[1]Chartbook outputs'!H48 -> 1255.805285 | I208: ='[1]Chartbook outputs'!I48 -> 1280.92139
B209: ='[1]Chartbook outputs'!B49 -> Eastland Network | C209: ='[1]Chartbook outputs'!C49 -> 179.0675311 | D209: ='[1]Chartbook outputs'!D49 -> 182.1116791 | E209: ='[1]Chartbook outputs'!E49 -> 185.9360244 | F209: ='[1]Chartbook outputs'!F49 -> 189.8406809 | G209: ='[1]Chartbook outputs'!G49 -> 193.7640549 | H209: ='[1]Chartbook outputs'!H49 -> 197.7039241 | I209: ='[1]Chartbook outputs'!I49 -> 201.6580025
B210: ='[1]Chartbook outputs'!B50 -> Electricity Invercargill | C210: ='[1]Chartbook outputs'!C50 -> 119.3772106 | D210: ='[1]Chartbook outputs'!D50 -> 121.4066232 | E210: ='[1]Chartbook outputs'!E50 -> 123.9561623 | F210: ='[1]Chartbook outputs'!F50 -> 126.5592417 | G210: ='[1]Chartbook outputs'!G50 -> 129.1747993 | H210: ='[1]Chartbook outputs'!H50 -> 131.8013536 | I210: ='[1]Chartbook outputs'!I50 -> 134.4373807
B211: ='[1]Chartbook outputs'!B51 -> Horizon Energy | C211: ='[1]Chartbook outputs'!C51 -> 308.3227895 | D211: ='[1]Chartbook outputs'!D51 -> 313.5642769 | E211: ='[1]Chartbook outputs'!E51 -> 320.1491267 | F211: ='[1]Chartbook outputs'!F51 -> 326.8722584 | G211: ='[1]Chartbook outputs'!G51 -> 333.6276184 | H211: ='[1]Chartbook outputs'!H51 -> 340.4113799 | I211: ='[1]Chartbook outputs'!I51 -> 347.2196075
B212: ='[1]Chartbook outputs'!B52 -> Nelson Electricity | C212: ='[1]Chartbook outputs'!C52 -> 85.73454977 | D212: ='[1]Chartbook outputs'!D52 -> 87.19203711 | E212: ='[1]Chartbook outputs'!E52 -> 89.02306989 | F212: ='[1]Chartbook outputs'!F52 -> 90.89255436 | G212: ='[1]Chartbook outputs'!G52 -> 92.77100048 | H212: ='[1]Chartbook outputs'!H52 -> 94.65734416 | I212: ='[1]Chartbook outputs'!I52 -> 96.55049104
B213: ='[1]Chartbook outputs'!B53 -> Network Tasman | C213: ='[1]Chartbook outputs'!C53 -> 577.2377865 | D213: ='[1]Chartbook outputs'!D53 -> 587.0508288 | E213: ='[1]Chartbook outputs'!E53 -> 599.3788962 | F213: ='[1]Chartbook outputs'!F53 -> 611.9658531 | G213: ='[1]Chartbook outputs'!G53 -> 624.6131473 | H213: ='[1]Chartbook outputs'!H53 -> 637.3136147 | I213: ='[1]Chartbook outputs'!I53 -> 650.059887
B214: ='[1]Chartbook outputs'!B54 -> Orion NZ | C214: ='[1]Chartbook outputs'!C54 -> 1770.935018 | D214: ='[1]Chartbook outputs'!D54 -> 1801.040913 | E214: ='[1]Chartbook outputs'!E54 -> 1838.862773 | F214: ='[1]Chartbook outputs'!F54 -> 1877.478891 | G214: ='[1]Chartbook outputs'!G54 -> 1916.280121 | H214: ='[1]Chartbook outputs'!H54 -> 1955.244484 | I214: ='[1]Chartbook outputs'!I54 -> 1994.349373
B215: ='[1]Chartbook outputs'!B55 -> OtagoNet | C215: ='[1]Chartbook outputs'!C55 -> 332.9106814 | D215: ='[1]Chartbook outputs'!D55 -> 338.570163 | E215: ='[1]Chartbook outputs'!E55 -> 345.6801364 | F215: ='[1]Chartbook outputs'!F55 -> 352.9394193 | G215: ='[1]Chartbook outputs'!G55 -> 360.2335006 | H215: ='[1]Chartbook outputs'!H55 -> 367.5582485 | I215: ='[1]Chartbook outputs'!I55 -> 374.9094135
B216: ='[1]Chartbook outputs'!B56 -> The Lines Company | C216: ='[1]Chartbook outputs'!C56 -> 536.7708384 | D216: ='[1]Chartbook outputs'!D56 -> 545.8959426 | E216: ='[1]Chartbook outputs'!E56 -> 557.3597574 | F216: ='[1]Chartbook outputs'!F56 -> 569.0643123 | G216: ='[1]Chartbook outputs'!G56 -> 580.8249748 | H216: ='[1]Chartbook outputs'!H56 -> 592.6350826 | I216: ='[1]Chartbook outputs'!I56 -> 604.4877843
B217: ='[1]Chartbook outputs'!B57 -> Top Energy | C217: ='[1]Chartbook outputs'!C57 -> 29.82463074 | D217: ='[1]Chartbook outputs'!D57 -> 30.33164946 | E217: ='[1]Chartbook outputs'!E57 -> 30.9686141 | F217: ='[1]Chartbook outputs'!F57 -> 31.618955 | G217: ='[1]Chartbook outputs'!G57 -> 32.2724134 | H217: ='[1]Chartbook outputs'!H57 -> 32.92861914 | I217: ='[1]Chartbook outputs'!I57 -> 33.58719152
B218: ='[1]Chartbook outputs'!B58 -> Unison Networks | C218: ='[1]Chartbook outputs'!C58 -> 2779.792771 | D218: ='[1]Chartbook outputs'!D58 -> 2827.049248 | E218: ='[1]Chartbook outputs'!E58 -> 2886.417282 | F218: ='[1]Chartbook outputs'!F58 -> 2947.032045 | G218: ='[1]Chartbook outputs'!G58 -> 3007.937374 | H218: ='[1]Chartbook outputs'!H58 -> 3069.098767 | I218: ='[1]Chartbook outputs'!I58 -> 3130.480743
B219: ='[1]Chartbook outputs'!B59 -> Vector Lines | C219: ='[1]Chartbook outputs'!C59 -> 11397.60826 | D219: ='[1]Chartbook outputs'!D59 -> 11591.3676 | E219: ='[1]Chartbook outputs'!E59 -> 11834.78632 | F219: ='[1]Chartbook outputs'!F59 -> 12083.31683 | G219: ='[1]Chartbook outputs'!G59 -> 12333.03871 | H219: ='[1]Chartbook outputs'!H59 -> 12583.8105 | I219: ='[1]Chartbook outputs'!I59 -> 12835.48671
A222: Figure 2.2 | B222: Drivers of nominal change in net allowable revenues for DPP distributors 
C223: =[6]Waterfall!H19 -> Base | D223: =[6]Waterfall!I19 -> Fall | E223: =[6]Waterfall!J19 -> Rise
B225: =[6]Waterfall!D21 -> MAR 2015/16 | C225: =[6]Waterfall!H21 -> 0 | D225: =[6]Waterfall!I21 -> 0 | E225: =[6]Waterfall!J21 -> 1
B226: =[6]Waterfall!D22 -> CPI for revals | C226: =[6]Waterfall!H22 -> 0.99999 | D226: =[6]Waterfall!I22 -> 1e-05 | E226: =[6]Waterfall!J22 -> 0.0008155991897
... 715 more rows

Sheet Calculations
A1: Calculations
A3: Figure 2.1 | B3: =Inputs!B79 -> Starting price adjustment
A4: Inputs
A5: =Inputs!A79 -> Table X.X | C5: =Inputs!B80 -> Distributor | D5: =Inputs!C80 -> $ difference between first year MAR proposed and hypothetical first-year MAR under a roll-over scenario | E5: =Inputs!D80 -> % difference between first year MAR proposed and hypothetical first-year MAR under a roll-over scenario
C6: =Inputs!B81 -> Alpine Energy | D6: =Inputs!C81 -> -4639.127396 | E6: =Inputs!D81 -> -0.09278160579
C7: =Inputs!B82 -> Aurora Energy | D7: =Inputs!C82 -> 4562.683688 | E7: =Inputs!D82 -> 0.06762733034
C8: =Inputs!B83 -> Centralines | D8: =Inputs!C83 -> -5088.047627 | E8: =Inputs!D83 -> -0.351224725
C9: =Inputs!B84 -> EA Networks | D9: =Inputs!C84 -> -637.0960095 | E9: =Inputs!D84 -> -0.01661993592
C10: =Inputs!B85 -> Eastland Network | D10: =Inputs!C85 -> -3140.27687 | E10: =Inputs!D85 -> -0.1113755529
C11: =Inputs!B86 -> Electricity Invercargill | D11: =Inputs!C86 -> -1625.759559 | E11: =Inputs!D86 -> -0.1168152946
C12: =Inputs!B87 -> Horizon Energy | D12: =Inputs!C87 -> 1181.804589 | E12: =Inputs!D87 -> 0.04959991214
C13: =Inputs!B88 -> Nelson Electricity | D13: =Inputs!C88 -> -1374.436268 | E13: =Inputs!D88 -> -0.1974003925
C14: =Inputs!B89 -> Network Tasman | D14: =Inputs!C89 -> 941.292139 | E14: =Inputs!D89 -> 0.03381166639
C15: =Inputs!B90 -> Orion NZ | D15: =Inputs!C90 -> -10619.62648 | E15: =Inputs!D90 -> -0.06181759823
C16: =Inputs!B91 -> OtagoNet | D16: =Inputs!C91 -> -2715.282238 | E16: =Inputs!D91 -> -0.09767243465
C17: =Inputs!B92 -> The Lines Company | D17: =Inputs!C92 -> -8384.639499 | E17: =Inputs!D92 -> -0.1980866346
C18: =Inputs!B93 -> Top Energy | D18: =Inputs!C93 -> -2796.299841 | E18: =Inputs!D93 -> -0.0621599438
C19: =Inputs!B94 -> Unison Networks | D19: =Inputs!C94 -> -13886.00231 | E19: =Inputs!D94 -> -0.1195657268
C20: =Inputs!B95 -> Vector Lines | D20: =Inputs!C95 -> -22835.22071 | E20: =Inputs!D95 -> -0.05358104056
A22: Calculations | B22: Rank | C22: =C5 -> Distributor | D22: =E5 -> % difference between first year MAR proposed and hypothetical first-year MAR under a roll-over scenario | E22: Ordered | F22: Suppliers in % difference order (smallest to largest - will flip in chart) | G22: =E5 -> % difference between first year MAR proposed and hypothetical first-year MAR under a roll-over scenario
B23: =_xlfn.RANK.EQ(E6,$E$6:$E$20)+COUNTIF($E$6:E6,E6)-1 -> 8 | C23: Alpine Energy | D23: -0.09278160579 | E23: =LARGE($B$23:$B$37,COUNT($B$23:B23)) -> 15 | F23: =VLOOKUP($E23,$B$23:$D$37,2,FALSE) -> Centralines | G23: =VLOOKUP($E23,$B$23:$D$37,3,FALSE) -> -0.351224725
B24: =_xlfn.RANK.EQ(E7,$E$6:$E$20)+COUNTIF($E$6:E7,E7)-1 -> 1 | C24: Aurora Energy | D24: 0.06762733034 | E24: =LARGE($B$23:$B$37,COUNT($B$23:B24)) -> 14 | F24: The Lines Company | G24: -0.1980866346
B25: =_xlfn.RANK.EQ(E8,$E$6:$E$20)+COUNTIF($E$6:E8,E8)-1 -> 15 | C25: Centralines | D25: -0.351224725 | E25: =LARGE($B$23:$B$37,COUNT($B$23:B25)) -> 13 | F25: Nelson Electricity | G25: -0.1974003925
B26: =_xlfn.RANK.EQ(E9,$E$6:$E$20)+COUNTIF($E$6:E9,E9)-1 -> 4 | C26: EA Networks | D26: -0.01661993592 | E26: =LARGE($B$23:$B$37,COUNT($B$23:B26)) -> 12 | F26: Unison Networks | G26: -0.1195657268
B27: =_xlfn.RANK.EQ(E10,$E$6:$E$20)+COUNTIF($E$6:E10,E10)-1 -> 10 | C27: Eastland Network | D27: -0.1113755529 | E27: =LARGE($B$23:$B$37,COUNT($B$23:B27)) -> 11 | F27: Electricity Invercargill | G27: -0.1168152946
B28: =_xlfn.RANK.EQ(E11,$E$6:$E$20)+COUNTIF($E$6:E11,E11)-1 -> 11 | C28: Electricity Invercargill | D28: -0.1168152946 | E28: =LARGE($B$23:$B$37,COUNT($B$23:B28)) -> 10 | F28: Eastland Network | G28: -0.1113755529
B29: =_xlfn.RANK.EQ(E12,$E$6:$E$20)+COUNTIF($E$6:E12,E12)-1 -> 2 | C29: Horizon Energy | D29: 0.04959991214 | E29: =LARGE($B$23:$B$37,COUNT($B$23:B29)) -> 9 | F29: OtagoNet | G29: -0.09767243465
B30: =_xlfn.RANK.EQ(E13,$E$6:$E$20)+COUNTIF($E$6:E13,E13)-1 -> 13 | C30: Nelson Electricity | D30: -0.1974003925 | E30: =LARGE($B$23:$B$37,COUNT($B$23:B30)) -> 8 | F30: Alpine Energy | G30: -0.09278160579
B31: =_xlfn.RANK.EQ(E14,$E$6:$E$20)+COUNTIF($E$6:E14,E14)-1 -> 3 | C31: Network Tasman | D31: 0.03381166639 | E31: =LARGE($B$23:$B$37,COUNT($B$23:B31)) -> 7 | F31: Top Energy | G31: -0.0621599438
B32: =_xlfn.RANK.EQ(E15,$E$6:$E$20)+COUNTIF($E$6:E15,E15)-1 -> 6 | C32: Orion NZ | D32: -0.06181759823 | E32: =LARGE($B$23:$B$37,COUNT($B$23:B32)) -> 6 | F32: Orion NZ | G32: -0.06181759823
B33: =_xlfn.RANK.EQ(E16,$E$6:$E$20)+COUNTIF($E$6:E16,E16)-1 -> 9 | C33: OtagoNet | D33: -0.09767243465 | E33: =LARGE($B$23:$B$37,COUNT($B$23:B33)) -> 5 | F33: Vector Lines | G33: -0.05358104056
B34: =_xlfn.RANK.EQ(E17,$E$6:$E$20)+COUNTIF($E$6:E17,E17)-1 -> 14 | C34: The Lines Company | D34: -0.1980866346 | E34: =LARGE($B$23:$B$37,COUNT($B$23:B34)) -> 4 | F34: EA Networks | G34: -0.01661993592
B35: =_xlfn.RANK.EQ(E18,$E$6:$E$20)+COUNTIF($E$6:E18,E18)-1 -> 7 | C35: Top Energy | D35: -0.0621599438 | E35: =LARGE($B$23:$B$37,COUNT($B$23:B35)) -> 3 | F35: Network Tasman | G35: 0.03381166639
B36: =_xlfn.RANK.EQ(E19,$E$6:$E$20)+COUNTIF($E$6:E19,E19)-1 -> 12 | C36: Unison Networks | D36: -0.1195657268 | E36: =LARGE($B$23:$B$37,COUNT($B$23:B36)) -> 2 | F36: Horizon Energy | G36: 0.04959991214
B37: =_xlfn.RANK.EQ(E20,$E$6:$E$20)+COUNTIF($E$6:E20,E20)-1 -> 5 | C37: Vector Lines | D37: -0.05358104056 | E37: =LARGE($B$23:$B$37,COUNT($B$23:B37)) -> 1 | F37: Aurora Energy | G37: 0.06762733034
A40: =Inputs!A23 -> Figure 5.1 | B40: =Inputs!B23 -> Proposed changes in allowable revenue from 2019/2020 to 2020/2021
A41: Inputs | C41: =Inputs!B24 -> Distributor | D41: =Inputs!C24 -> Revenue increase from 2019/20 estimate of allowable revenue to 2020/21 MAR
C42: =Inputs!B25 -> Alpine Energy | D42: =Inputs!C25 -> -0.07486059981
C43: =Inputs!B26 -> Aurora Energy | D43: =Inputs!C26 -> 0.08871702153
C44: =Inputs!B27 -> Centralines | D44: =Inputs!C27 -> -0.3384089514
C45: =Inputs!B28 -> EA Networks | D45: =Inputs!C28 -> 0.002805552061
C46: =Inputs!B29 -> Eastland Network | D46: =Inputs!C29 -> -0.09382184791
C47: =Inputs!B30 -> Electricity Invercargill | D47: =Inputs!C30 -> -0.09936904522
C48: =Inputs!B31 -> Horizon Energy | D48: =Inputs!C31 -> 0.0703334934
C49: =Inputs!B32 -> Nelson Electricity | D49: =Inputs!C32 -> -0.1815460046
C50: =Inputs!B33 -> Network Tasman | D50: =Inputs!C33 -> 0.05423336989
C51: =Inputs!B34 -> Orion NZ | D51: =Inputs!C34 -> -0.0432849356
C52: =Inputs!B35 -> OtagoNet | D52: =Inputs!C35 -> -0.0798480411
C53: =Inputs!B36 -> The Lines Company | D53: =Inputs!C36 -> -0.1822458026
C54: =Inputs!B37 -> Top Energy | D54: =Inputs!C37 -> -0.0436340438
C55: =Inputs!B38 -> Unison Networks | D55: =Inputs!C38 -> -0.1021738088
C56: =Inputs!B39 -> Vector Lines | D56: =Inputs!C39 -> -0.03488567466
A58: Calculations | B58: Rank | C58: =C42 -> Alpine Energy | E58: Ordered | F58: Suppliers in % difference order (smallest to largest - will flip in chart) | G58: =B40 -> Proposed changes in allowable revenue from 2019/2020 to 2020/2021
B59: =_xlfn.RANK.EQ(D42,$D$42:$D$56)+COUNTIF($D$42:D42,D42)-1 -> 8 | C59: =C42 -> Alpine Energy | D59: =D42 -> -0.07486059981 | E59: =LARGE($B$59:$B$73,COUNT($B$59:B59)) -> 15 | F59: =VLOOKUP($E59,$B$59:$D$73,2,FALSE) -> Centralines | G59: =VLOOKUP($E59,$B$59:$D$73,3,FALSE) -> -0.3384089514
B60: =_xlfn.RANK.EQ(D43,$D$42:$D$56)+COUNTIF($D$42:D43,D43)-1 -> 1 | C60: =C43 -> Aurora Energy | D60: 0.08871702153 | E60: =LARGE($B$59:$B$73,COUNT($B$59:B60)) -> 14 | F60: =VLOOKUP($E60,$B$59:$D$73,2,FALSE) -> The Lines Company | G60: =VLOOKUP($E60,$B$59:$D$73,3,FALSE) -> -0.1822458026
B61: =_xlfn.RANK.EQ(D44,$D$42:$D$56)+COUNTIF($D$42:D44,D44)-1 -> 15 | C61: Centralines | D61: -0.3384089514 | E61: =LARGE($B$59:$B$73,COUNT($B$59:B61)) -> 13 | F61: Nelson Electricity | G61: -0.1815460046
B62: =_xlfn.RANK.EQ(D45,$D$42:$D$56)+COUNTIF($D$42:D45,D45)-1 -> 4 | C62: EA Networks | D62: 0.002805552061 | E62: =LARGE($B$59:$B$73,COUNT($B$59:B62)) -> 12 | F62: Unison Networks | G62: -0.1021738088
B63: =_xlfn.RANK.EQ(D46,$D$42:$D$56)+COUNTIF($D$42:D46,D46)-1 -> 10 | C63: Eastland Network | D63: -0.09382184791 | E63: =LARGE($B$59:$B$73,COUNT($B$59:B63)) -> 11 | F63: Electricity Invercargill | G63: -0.09936904522
B64: =_xlfn.RANK.EQ(D47,$D$42:$D$56)+COUNTIF($D$42:D47,D47)-1 -> 11 | C64: Electricity Invercargill | D64: -0.09936904522 | E64: =LARGE($B$59:$B$73,COUNT($B$59:B64)) -> 10 | F64: Eastland Network | G64: -0.09382184791
B65: =_xlfn.RANK.EQ(D48,$D$42:$D$56)+COUNTIF($D$42:D48,D48)-1 -> 2 | C65: Horizon Energy | D65: 0.0703334934 | E65: =LARGE($B$59:$B$73,COUNT($B$59:B65)) -> 9 | F65: OtagoNet | G65: -0.0798480411
B66: =_xlfn.RANK.EQ(D49,$D$42:$D$56)+COUNTIF($D$42:D49,D49)-1 -> 13 | C66: Nelson Electricity | D66: -0.1815460046 | E66: =LARGE($B$59:$B$73,COUNT($B$59:B66)) -> 8 | F66: Alpine Energy | G66: -0.07486059981
B67: =_xlfn.RANK.EQ(D50,$D$42:$D$56)+COUNTIF($D$42:D50,D50)-1 -> 3 | C67: Network Tasman | D67: 0.05423336989 | E67: =LARGE($B$59:$B$73,COUNT($B$59:B67)) -> 7 | F67: Top Energy | G67: -0.0436340438
B68: =_xlfn.RANK.EQ(D51,$D$42:$D$56)+COUNTIF($D$42:D51,D51)-1 -> 6 | C68: Orion NZ | D68: -0.0432849356 | E68: =LARGE($B$59:$B$73,COUNT($B$59:B68)) -> 6 | F68: Orion NZ | G68: -0.0432849356
B69: =_xlfn.RANK.EQ(D52,$D$42:$D$56)+COUNTIF($D$42:D52,D52)-1 -> 9 | C69: OtagoNet | D69: -0.0798480411 | E69: =LARGE($B$59:$B$73,COUNT($B$59:B69)) -> 5 | F69: Vector Lines | G69: -0.03488567466
B70: =_xlfn.RANK.EQ(D53,$D$42:$D$56)+COUNTIF($D$42:D53,D53)-1 -> 14 | C70: The Lines Company | D70: -0.1822458026 | E70: =LARGE($B$59:$B$73,COUNT($B$59:B70)) -> 4 | F70: EA Networks | G70: 0.002805552061
B71: =_xlfn.RANK.EQ(D54,$D$42:$D$56)+COUNTIF($D$42:D54,D54)-1 -> 7 | C71: Top Energy | D71: -0.0436340438 | E71: =LARGE($B$59:$B$73,COUNT($B$59:B71)) -> 3 | F71: Network Tasman | G71: 0.05423336989
B72: =_xlfn.RANK.EQ(D55,$D$42:$D$56)+COUNTIF($D$42:D55,D55)-1 -> 12 | C72: Unison Networks | D72: -0.1021738088 | E72: =LARGE($B$59:$B$73,COUNT($B$59:B72)) -> 2 | F72: Horizon Energy | G72: 0.0703334934
B73: =_xlfn.RANK.EQ(D56,$D$42:$D$56)+COUNTIF($D$42:D56,D56)-1 -> 5 | C73: Vector Lines | D73: -0.03488567466 | E73: =LARGE($B$59:$B$73,COUNT($B$59:B73)) -> 1 | F73: Aurora Energy | G73: 0.08871702153
A76: =Inputs!A41 -> Figure X.X | B76: =Inputs!B41 -> Constant price revenue growth, 2017/18 to 2019/20
A77: Inputs | C77: =Inputs!B42 -> Distributor | D77: =Inputs!C42 -> Annual constant price revenue growth, 2017/18 to 2019/20
C78: =Inputs!B43 -> Alpine Energy | D78: =Inputs!C43 -> -0.01023555793
C79: =Inputs!B44 -> Aurora Energy | D79: =Inputs!C44 -> 0.0206725243
C80: =Inputs!B45 -> Centralines | D80: =Inputs!C45 -> 0.004098564133
C81: =Inputs!B46 -> EA Networks | D81: =Inputs!C46 -> 0.01407934192
C82: =Inputs!B47 -> Eastland Network | D82: =Inputs!C47 -> 0.005853212276
C83: =Inputs!B48 -> Electricity Invercargill | D83: =Inputs!C48 -> -0.005176679358
C84: =Inputs!B49 -> Horizon Energy | D84: =Inputs!C49 -> 0.003710874151
C85: =Inputs!B50 -> Nelson Electricity | D85: =Inputs!C50 -> -0.004333806535
C86: =Inputs!B51 -> Network Tasman | D86: =Inputs!C51 -> -0.02339188847
C87: =Inputs!B52 -> Orion NZ | D87: =Inputs!C52 -> 0.00805535657
C88: =Inputs!B53 -> OtagoNet | D88: =Inputs!C53 -> 0.01069963184
C89: =Inputs!B54 -> The Lines Company | D89: =Inputs!C54 -> 0.02111220795
C90: =Inputs!B55 -> Top Energy | D90: =Inputs!C55 -> -0.03771909849
C91: =Inputs!B56 -> Unison Networks | D91: =Inputs!C56 -> 0.01705365482
C92: =Inputs!B57 -> Vector Lines | D92: =Inputs!C57 -> 0.005556338011
A94: Calculations | B94: Rank | C94: =C78 -> Alpine Energy | E94: Ordered | F94: Suppliers in % difference order (smallest to largest - will flip in chart) | G94: =B76 -> Constant price revenue growth, 2017/18 to 2019/20
B95: =_xlfn.RANK.EQ(D78,$D$78:$D$92)+COUNTIF($D$78:D78,D78)-1 -> 13 | C95: =C78 -> Alpine Energy | D95: =D78 -> -0.01023555793 | E95: =LARGE($B$95:$B$109,COUNT($B$95:B95)) -> 15 | F95: =VLOOKUP($E95,$B$95:$D$109,2,FALSE) -> Top Energy | G95: =VLOOKUP($E95,$B$95:$D$109,3,FALSE) -> -0.03771909849
B96: =_xlfn.RANK.EQ(D79,$D$78:$D$92)+COUNTIF($D$78:D79,D79)-1 -> 2 | C96: =C79 -> Aurora Energy | D96: 0.0206725243 | E96: =LARGE($B$95:$B$109,COUNT($B$95:B96)) -> 14 | F96: =VLOOKUP($E96,$B$95:$D$109,2,FALSE) -> Network Tasman | G96: -0.02339188847
B97: =_xlfn.RANK.EQ(D80,$D$78:$D$92)+COUNTIF($D$78:D80,D80)-1 -> 9 | C97: =C80 -> Centralines | D97: 0.004098564133 | E97: =LARGE($B$95:$B$109,COUNT($B$95:B97)) -> 13 | F97: Alpine Energy | G97: -0.01023555793
B98: =_xlfn.RANK.EQ(D81,$D$78:$D$92)+COUNTIF($D$78:D81,D81)-1 -> 4 | C98: =C81 -> EA Networks | D98: 0.01407934192 | E98: =LARGE($B$95:$B$109,COUNT($B$95:B98)) -> 12 | F98: Electricity Invercargill | G98: -0.005176679358
B99: =_xlfn.RANK.EQ(D82,$D$78:$D$92)+COUNTIF($D$78:D82,D82)-1 -> 7 | C99: =C82 -> Eastland Network | D99: 0.005853212276 | E99: =LARGE($B$95:$B$109,COUNT($B$95:B99)) -> 11 | F99: Nelson Electricity | G99: -0.004333806535
B100: =_xlfn.RANK.EQ(D83,$D$78:$D$92)+COUNTIF($D$78:D83,D83)-1 -> 12 | C100: =C83 -> Electricity Invercargill | D100: -0.005176679358 | E100: =LARGE($B$95:$B$109,COUNT($B$95:B100)) -> 10 | F100: Horizon Energy | G100: 0.003710874151
B101: =_xlfn.RANK.EQ(D84,$D$78:$D$92)+COUNTIF($D$78:D84,D84)-1 -> 10 | C101: =C84 -> Horizon Energy | D101: 0.003710874151 | E101: =LARGE($B$95:$B$109,COUNT($B$95:B101)) -> 9 | F101: Centralines | G101: 0.004098564133
B102: =_xlfn.RANK.EQ(D85,$D$78:$D$92)+COUNTIF($D$78:D85,D85)-1 -> 11 | C102: =C85 -> Nelson Electricity | D102: -0.004333806535 | E102: =LARGE($B$95:$B$109,COUNT($B$95:B102)) -> 8 | F102: Vector Lines | G102: 0.005556338011
B103: =_xlfn.RANK.EQ(D86,$D$78:$D$92)+COUNTIF($D$78:D86,D86)-1 -> 14 | C103: =C86 -> Network Tasman | D103: -0.02339188847 | E103: =LARGE($B$95:$B$109,COUNT($B$95:B103)) -> 7 | F103: Eastland Network | G103: 0.005853212276
B104: =_xlfn.RANK.EQ(D87,$D$78:$D$92)+COUNTIF($D$78:D87,D87)-1 -> 6 | C104: =C87 -> Orion NZ | D104: 0.00805535657 | E104: =LARGE($B$95:$B$109,COUNT($B$95:B104)) -> 6 | F104: Orion NZ | G104: 0.00805535657
B105: =_xlfn.RANK.EQ(D88,$D$78:$D$92)+COUNTIF($D$78:D88,D88)-1 -> 5 | C105: =C88 -> OtagoNet | D105: 0.01069963184 | E105: =LARGE($B$95:$B$109,COUNT($B$95:B105)) -> 5 | F105: OtagoNet | G105: 0.01069963184
B106: =_xlfn.RANK.EQ(D89,$D$78:$D$92)+COUNTIF($D$78:D89,D89)-1 -> 1 | C106: =C89 -> The Lines Company | D106: 0.02111220795 | E106: =LARGE($B$95:$B$109,COUNT($B$95:B106)) -> 4 | F106: EA Networks | G106: 0.01407934192
B107: =_xlfn.RANK.EQ(D90,$D$78:$D$92)+COUNTIF($D$78:D90,D90)-1 -> 15 | C107: =C90 -> Top Energy | D107: -0.03771909849 | E107: =LARGE($B$95:$B$109,COUNT($B$95:B107)) -> 3 | F107: Unison Networks | G107: 0.01705365482
B108: =_xlfn.RANK.EQ(D91,$D$78:$D$92)+COUNTIF($D$78:D91,D91)-1 -> 3 | C108: =C91 -> Unison Networks | D108: 0.01705365482 | E108: =LARGE($B$95:$B$109,COUNT($B$95:B108)) -> 2 | F108: Aurora Energy | G108: 0.0206725243
B109: =_xlfn.RANK.EQ(D92,$D$78:$D$92)+COUNTIF($D$78:D92,D92)-1 -> 8 | C109: =C92 -> Vector Lines | D109: 0.005556338011 | E109: =LARGE($B$95:$B$109,COUNT($B$95:B109)) -> 1 | F109: The Lines Company | G109: 0.02111220795
A112: =Inputs!A248 -> Not used | B112: =Inputs!B248 -> Impact on consumer bills (Distribution)
A113: Inputs
C114: =Inputs!B249 -> Distributor | D114: =Inputs!C249 -> % change in distribution prices, 2019/20 to 2020/21 | E114: =Inputs!D249 -> $/month change in distribution prices, 2019/20 to 2020/21
C115: =Inputs!B250 -> Alpine Energy | D115: =Inputs!C250 -> -0.06529335581 | E115: =Inputs!D250 -> -4.79465772
C116: =Inputs!B251 -> Aurora Energy | D116: =Inputs!C251 -> 0.06666633578 | E116: =Inputs!D251 -> 3.022161007
C117: =Inputs!B252 -> Centralines | D117: =Inputs!C252 -> -0.3411094565 | E117: =Inputs!D252 -> -36.05153676
C118: =Inputs!B253 -> EA Networks | D118: =Inputs!C253 -> -0.01111726607 | E118: =Inputs!D253 -> -0.4887451776
C119: =Inputs!B254 -> Eastland Network | D119: =Inputs!C254 -> -0.09909503591 | E119: =Inputs!D254 -> -7.87562135
C120: =Inputs!B255 -> Electricity Invercargill | D120: =Inputs!C255 -> -0.09468250684 | E120: =Inputs!D255 -> -4.833900438
C121: =Inputs!B256 -> Horizon Energy | D121: =Inputs!C256 -> 0.06637630514 | E121: =Inputs!D256 -> 4.504686332
C122: =Inputs!B257 -> Nelson Electricity | D122: =Inputs!C257 -> -0.1779835443 | E122: =Inputs!D257 -> -8.395786671
C123: =Inputs!B258 -> Network Tasman | D123: =Inputs!C258 -> 0.07948455214 | E123: =Inputs!D258 -> 3.404952475
C124: =Inputs!B259 -> Orion NZ | D124: =Inputs!C259 -> -0.0509300326 | E124: =Inputs!D259 -> -2.789884134
C125: =Inputs!B260 -> OtagoNet | D125: =Inputs!C260 -> -0.08958910252 | E125: =Inputs!D260 -> -11.41566425
C126: =Inputs!B261 -> The Lines Company | D126: =Inputs!C261 -> -0.1991534416 | E126: =Inputs!D261 -> -17.78767544
C127: =Inputs!B262 -> Top Energy | D127: =Inputs!C262 -> -0.006146796953 | E127: =Inputs!D262 -> -0.7362049633
C128: =Inputs!B263 -> Unison Networks | D128: =Inputs!C263 -> -0.1172282928 | E128: =Inputs!D263 -> -8.098301567
C129: =Inputs!B264 -> Vector Lines | D129: =Inputs!C264 -> -0.04021854484 | E129: =Inputs!D264 -> -2.178064818
A131: Calculations | B131: Rank | C131: =C114 -> Distributor | D131: =E114 -> $/month change in distribution prices, 2019/20 to 2020/21 | E131: Ordered | F131: Suppliers in % difference order (smallest to largest - will flip in chart) | G131: =B112 -> Impact on consumer bills (Distribution)
B132: =_xlfn.RANK.EQ(E115,$E$115:$E$129)+COUNTIF($E$115:E115,E115)-1 -> 8 | C132: =C115 -> Alpine Energy | D132: =E115 -> -4.79465772 | E132: =LARGE($B$132:$B$146,COUNT($B$132:B132)) -> 15 | F132: =VLOOKUP($E132,$B$132:$D$146,2,FALSE) -> Centralines | G132: =VLOOKUP($E132,$B$132:$D$146,3,FALSE) -> -36.05153676
B133: =_xlfn.RANK.EQ(E116,$E$115:$E$129)+COUNTIF($E$115:E116,E116)-1 -> 3 | C133: =C116 -> Aurora Energy | D133: =E116 -> 3.022161007 | E133: =LARGE($B$132:$B$146,COUNT($B$132:B133)) -> 14 | F133: =VLOOKUP($E133,$B$132:$D$146,2,FALSE) -> The Lines Company | G133: =VLOOKUP($E133,$B$132:$D$146,3,FALSE) -> -17.78767544
B134: =_xlfn.RANK.EQ(E117,$E$115:$E$129)+COUNTIF($E$115:E117,E117)-1 -> 15 | C134: Centralines | D134: -36.05153676 | E134: =LARGE($B$132:$B$146,COUNT($B$132:B134)) -> 13 | F134: OtagoNet | G134: -11.41566425
B135: =_xlfn.RANK.EQ(E118,$E$115:$E$129)+COUNTIF($E$115:E118,E118)-1 -> 4 | C135: EA Networks | D135: -0.4887451776 | E135: =LARGE($B$132:$B$146,COUNT($B$132:B135)) -> 12 | F135: Nelson Electricity | G135: -8.395786671
B136: =_xlfn.RANK.EQ(E119,$E$115:$E$129)+COUNTIF($E$115:E119,E119)-1 -> 10 | C136: Eastland Network | D136: -7.87562135 | E136: =LARGE($B$132:$B$146,COUNT($B$132:B136)) -> 11 | F136: Unison Networks | G136: -8.098301567
B137: =_xlfn.RANK.EQ(E120,$E$115:$E$129)+COUNTIF($E$115:E120,E120)-1 -> 9 | C137: Electricity Invercargill | D137: -4.833900438 | E137: =LARGE($B$132:$B$146,COUNT($B$132:B137)) -> 10 | F137: Eastland Network | G137: -7.87562135
B138: =_xlfn.RANK.EQ(E121,$E$115:$E$129)+COUNTIF($E$115:E121,E121)-1 -> 1 | C138: Horizon Energy | D138: 4.504686332 | E138: =LARGE($B$132:$B$146,COUNT($B$132:B138)) -> 9 | F138: Electricity Invercargill | G138: -4.833900438
B139: =_xlfn.RANK.EQ(E122,$E$115:$E$129)+COUNTIF($E$115:E122,E122)-1 -> 12 | C139: Nelson Electricity | D139: -8.395786671 | E139: =LARGE($B$132:$B$146,COUNT($B$132:B139)) -> 8 | F139: Alpine Energy | G139: -4.79465772
B140: =_xlfn.RANK.EQ(E123,$E$115:$E$129)+COUNTIF($E$115:E123,E123)-1 -> 2 | C140: Network Tasman | D140: 3.404952475 | E140: =LARGE($B$132:$B$146,COUNT($B$132:B140)) -> 7 | F140: Orion NZ | G140: -2.789884134
B141: =_xlfn.RANK.EQ(E124,$E$115:$E$129)+COUNTIF($E$115:E124,E124)-1 -> 7 | C141: Orion NZ | D141: -2.789884134 | E141: =LARGE($B$132:$B$146,COUNT($B$132:B141)) -> 6 | F141: Vector Lines | G141: -2.178064818
B142: =_xlfn.RANK.EQ(E125,$E$115:$E$129)+COUNTIF($E$115:E125,E125)-1 -> 13 | C142: OtagoNet | D142: -11.41566425 | E142: =LARGE($B$132:$B$146,COUNT($B$132:B142)) -> 5 | F142: Top Energy | G142: -0.7362049633
B143: =_xlfn.RANK.EQ(E126,$E$115:$E$129)+COUNTIF($E$115:E126,E126)-1 -> 14 | C143: The Lines Company | D143: -17.78767544 | E143: =LARGE($B$132:$B$146,COUNT($B$132:B143)) -> 4 | F143: EA Networks | G143: -0.4887451776
B144: =_xlfn.RANK.EQ(E127,$E$115:$E$129)+COUNTIF($E$115:E127,E127)-1 -> 5 | C144: Top Energy | D144: -0.7362049633 | E144: =LARGE($B$132:$B$146,COUNT($B$132:B144)) -> 3 | F144: Aurora Energy | G144: 3.022161007
B145: =_xlfn.RANK.EQ(E128,$E$115:$E$129)+COUNTIF($E$115:E128,E128)-1 -> 11 | C145: Unison Networks | D145: -8.098301567 | E145: =LARGE($B$132:$B$146,COUNT($B$132:B145)) -> 2 | F145: Network Tasman | G145: 3.404952475
B146: =_xlfn.RANK.EQ(E129,$E$115:$E$129)+COUNTIF($E$115:E129,E129)-1 -> 6 | C146: Vector Lines | D146: -2.178064818 | E146: =LARGE($B$132:$B$146,COUNT($B$132:B146)) -> 1 | F146: Horizon Energy | G146: 4.504686332
A150: =Inputs!A267 -> Figure 2.5 | B150: =Inputs!B267 -> Combined impact of the DPP and IPP resets on consumer bills ($/month)
A151: Inputs
C152: =Inputs!B268 -> Distributor | D152: =Inputs!C268 -> % Increase in aggregate prices, 2019/20 to 2020/21 | E152: =Inputs!D268 -> $/month change in aggregate prices, 2019/20 to 2020/21
C153: =Inputs!B269 -> Alpine Energy | D153: =Inputs!C269 -> -0.06423280216 | E153: =Inputs!D269 -> -5.674728425
C154: =Inputs!B270 -> Aurora Energy | D154: =Inputs!C270 -> 0.05360133978 | E154: =Inputs!D270 -> 3.572398773
C155: =Inputs!B271 -> Centralines | D155: =Inputs!C271 -> -0.2870709026 | E155: =Inputs!D271 -> -38.40538349
C156: =Inputs!B272 -> EA Networks | D156: =Inputs!C272 -> -0.003253916808 | E156: =Inputs!D272 -> -0.1715968908
C157: =Inputs!B273 -> Eastland Network | D157: =Inputs!C273 -> -0.08059883722 | E157: =Inputs!D273 -> -8.516440981
C158: =Inputs!B274 -> Electricity Invercargill | D158: =Inputs!C274 -> -0.0734001594 | E158: =Inputs!D274 -> -5.206034435
C159: =Inputs!B275 -> Horizon Energy | D159: =Inputs!C275 -> 0.04737123527 | E159: =Inputs!D275 -> 3.91621123
C160: =Inputs!B276 -> Nelson Electricity | D160: =Inputs!C276 -> -0.1628755955 | E160: =Inputs!D276 -> -10.43181551
C161: =Inputs!B277 -> Network Tasman | D161: =Inputs!C277 -> 0.03179942882 | E161: =Inputs!D277 -> 1.960821829
C162: =Inputs!B278 -> Orion NZ | D162: =Inputs!C278 -> -0.0372545046 | E162: =Inputs!D278 -> -2.871553672
C163: =Inputs!B279 -> OtagoNet | D163: =Inputs!C279 -> -0.06565716724 | E163: =Inputs!D279 -> -9.436142975
C164: =Inputs!B280 -> The Lines Company | D164: =Inputs!C280 -> -0.165905862 | E164: =Inputs!D280 -> -17.64588459
C165: =Inputs!B281 -> Top Energy | D165: =Inputs!C281 -> -0.04207416021 | E165: =Inputs!D281 -> -6.299054168
C166: =Inputs!B282 -> Unison Networks | D166: =Inputs!C282 -> -0.08600478297 | E166: =Inputs!D282 -> -8.251855466
C167: =Inputs!B283 -> Vector Lines | D167: =Inputs!C283 -> -0.02976532536 | E167: =Inputs!D283 -> -2.316871525
A169: Calculations | B169: Rank | C169: =C152 -> Distributor | D169: =E152 -> $/month change in aggregate prices, 2019/20 to 2020/21 | E169: Ordered | F169: Suppliers in % difference order (smallest to largest - will flip in chart) | G169: =A150 -> Figure 2.5
B170: =_xlfn.RANK.EQ(E153,$E$153:$E$167)+COUNTIF($E$153:E153,E153)-1 -> 8 | C170: =C153 -> Alpine Energy | D170: =E153 -> -5.674728425 | E170: =LARGE($B$170:$B$184,COUNT($B$170:B170)) -> 15 | F170: =VLOOKUP($E170,$B$170:$D$184,2,FALSE) -> Centralines | G170: =VLOOKUP($E170,$B$170:$D$184,3,FALSE) -> -38.40538349
B171: =_xlfn.RANK.EQ(E154,$E$153:$E$167)+COUNTIF($E$153:E154,E154)-1 -> 2 | C171: =C154 -> Aurora Energy | D171: =E154 -> 3.572398773 | E171: =LARGE($B$170:$B$184,COUNT($B$170:B171)) -> 14 | F171: =VLOOKUP($E171,$B$170:$D$184,2,FALSE) -> The Lines Company | G171: =VLOOKUP($E171,$B$170:$D$184,3,FALSE) -> -17.64588459
B172: =_xlfn.RANK.EQ(E155,$E$153:$E$167)+COUNTIF($E$153:E155,E155)-1 -> 15 | C172: Centralines | D172: -38.40538349 | E172: =LARGE($B$170:$B$184,COUNT($B$170:B172)) -> 13 | F172: Nelson Electricity | G172: -10.43181551
B173: =_xlfn.RANK.EQ(E156,$E$153:$E$167)+COUNTIF($E$153:E156,E156)-1 -> 4 | C173: EA Networks | D173: -0.1715968908 | E173: =LARGE($B$170:$B$184,COUNT($B$170:B173)) -> 12 | F173: OtagoNet | G173: -9.436142975
B174: =_xlfn.RANK.EQ(E157,$E$153:$E$167)+COUNTIF($E$153:E157,E157)-1 -> 11 | C174: Eastland Network | D174: -8.516440981 | E174: =LARGE($B$170:$B$184,COUNT($B$170:B174)) -> 11 | F174: Eastland Network | G174: -8.516440981
B175: =_xlfn.RANK.EQ(E158,$E$153:$E$167)+COUNTIF($E$153:E158,E158)-1 -> 7 | C175: Electricity Invercargill | D175: -5.206034435 | E175: =LARGE($B$170:$B$184,COUNT($B$170:B175)) -> 10 | F175: Unison Networks | G175: -8.251855466
B176: =_xlfn.RANK.EQ(E159,$E$153:$E$167)+COUNTIF($E$153:E159,E159)-1 -> 1 | C176: Horizon Energy | D176: 3.91621123 | E176: =LARGE($B$170:$B$184,COUNT($B$170:B176)) -> 9 | F176: Top Energy | G176: -6.299054168
B177: =_xlfn.RANK.EQ(E160,$E$153:$E$167)+COUNTIF($E$153:E160,E160)-1 -> 13 | C177: Nelson Electricity | D177: -10.43181551 | E177: =LARGE($B$170:$B$184,COUNT($B$170:B177)) -> 8 | F177: Alpine Energy | G177: -5.674728425
B178: =_xlfn.RANK.EQ(E161,$E$153:$E$167)+COUNTIF($E$153:E161,E161)-1 -> 3 | C178: Network Tasman | D178: 1.960821829 | E178: =LARGE($B$170:$B$184,COUNT($B$170:B178)) -> 7 | F178: Electricity Invercargill | G178: -5.206034435
B179: =_xlfn.RANK.EQ(E162,$E$153:$E$167)+COUNTIF($E$153:E162,E162)-1 -> 6 | C179: Orion NZ | D179: -2.871553672 | E179: =LARGE($B$170:$B$184,COUNT($B$170:B179)) -> 6 | F179: Orion NZ | G179: -2.871553672
B180: =_xlfn.RANK.EQ(E163,$E$153:$E$167)+COUNTIF($E$153:E163,E163)-1 -> 12 | C180: OtagoNet | D180: -9.436142975 | E180: =LARGE($B$170:$B$184,COUNT($B$170:B180)) -> 5 | F180: Vector Lines | G180: -2.316871525
B181: =_xlfn.RANK.EQ(E164,$E$153:$E$167)+COUNTIF($E$153:E164,E164)-1 -> 14 | C181: The Lines Company | D181: -17.64588459 | E181: =LARGE($B$170:$B$184,COUNT($B$170:B181)) -> 4 | F181: EA Networks | G181: -0.1715968908
B182: =_xlfn.RANK.EQ(E165,$E$153:$E$167)+COUNTIF($E$153:E165,E165)-1 -> 9 | C182: Top Energy | D182: -6.299054168 | E182: =LARGE($B$170:$B$184,COUNT($B$170:B182)) -> 3 | F182: Network Tasman | G182: 1.960821829
B183: =_xlfn.RANK.EQ(E166,$E$153:$E$167)+COUNTIF($E$153:E166,E166)-1 -> 10 | C183: Unison Networks | D183: -8.251855466 | E183: =LARGE($B$170:$B$184,COUNT($B$170:B183)) -> 2 | F183: Aurora Energy | G183: 3.572398773
B184: =_xlfn.RANK.EQ(E167,$E$153:$E$167)+COUNTIF($E$153:E167,E167)-1 -> 5 | C184: Vector Lines | D184: -2.316871525 | E184: =LARGE($B$170:$B$184,COUNT($B$170:B184)) -> 1 | F184: Horizon Energy | G184: 3.91621123
A188: =Inputs!A177 -> Table 5.10 | B188: =Inputs!B177 -> Capex acceptance rate by category
A189: Inputs
A190: =Inputs!A177 -> Table 5.10
C191: =Inputs!B178 -> Distributor | D191: =Inputs!C178 -> Total capital expenditure acceptance rate (after 120% cap)
C192: =Inputs!B179 -> Alpine Energy | D192: =Inputs!C179 -> 1
C193: =Inputs!B180 -> Aurora Energy | D193: =Inputs!C180 -> 0.4117406236
C194: =Inputs!B181 -> Centralines | D194: =Inputs!C181 -> 0.9972371808
C195: =Inputs!B182 -> EA Networks | D195: =Inputs!C182 -> 0.9703799584
C196: =Inputs!B183 -> Eastland Network | D196: =Inputs!C183 -> 0.8064637827
C197: =Inputs!B184 -> Electricity Invercargill | D197: =Inputs!C184 -> 0.9151589153
C198: =Inputs!B185 -> Horizon Energy | D198: =Inputs!C185 -> 0.9784566517
C199: =Inputs!B186 -> Nelson Electricity | D199: =Inputs!C186 -> 0.9893634372
C200: =Inputs!B187 -> Network Tasman | D200: =Inputs!C187 -> 0.3537071102
C201: =Inputs!B188 -> Orion NZ | D201: =Inputs!C188 -> 1
C202: =Inputs!B189 -> OtagoNet | D202: =Inputs!C189 -> 0.9115572103
C203: =Inputs!B190 -> The Lines Company | D203: =Inputs!C190 -> 0.7694637005
C204: =Inputs!B191 -> Top Energy | D204: =Inputs!C191 -> 1
C205: =Inputs!B192 -> Unison Networks | D205: =Inputs!C192 -> 1
C206: =Inputs!B193 -> Vector Lines | D206: =Inputs!C193 -> 0.9663447557
A208: Calculations | B208: Rank | C208: =C191 -> Distributor | D208: Total capital expenditure acceptance rate (after 120% cap) | E208: Ordered | F208: Suppliers in acceptance order (smallest to largest - will flip in chart) | G208: Total capex acceptance rate
B209: =_xlfn.RANK.EQ(D192,$D$192:$D$206)+COUNTIF($D$192:D192,D192)-1 -> 1 | C209: Alpine Energy | D209: 1 | E209: =LARGE($B$209:$B$223, ROW(1:1)) -> 15 | F209: =VLOOKUP($E209,$B$209:$D$223,2,FALSE) -> Network Tasman | G209: =VLOOKUP($E209,$B$209:$D$223,3,FALSE) -> 0.3537071102
B210: =_xlfn.RANK.EQ(D193,$D$192:$D$206)+COUNTIF($D$192:D193,D193)-1 -> 14 | C210: Aurora Energy | D210: 0.4117406236 | E210: 14 | F210: Aurora Energy | G210: 0.4117406236
B211: =_xlfn.RANK.EQ(D194,$D$192:$D$206)+COUNTIF($D$192:D194,D194)-1 -> 5 | C211: Centralines | D211: 0.9972371808 | E211: 13 | F211: The Lines Company | G211: 0.7694637005
B212: =_xlfn.RANK.EQ(D195,$D$192:$D$206)+COUNTIF($D$192:D195,D195)-1 -> 8 | C212: EA Networks | D212: 0.9703799584 | E212: 12 | F212: Eastland Network | G212: 0.8064637827
B213: =_xlfn.RANK.EQ(D196,$D$192:$D$206)+COUNTIF($D$192:D196,D196)-1 -> 12 | C213: Eastland Network | D213: 0.8064637827 | E213: 11 | F213: OtagoNet | G213: 0.9115572103
B214: =_xlfn.RANK.EQ(D197,$D$192:$D$206)+COUNTIF($D$192:D197,D197)-1 -> 10 | C214: Electricity Invercargill | D214: 0.9151589153 | E214: 10 | F214: Electricity Invercargill | G214: 0.9151589153
B215: =_xlfn.RANK.EQ(D198,$D$192:$D$206)+COUNTIF($D$192:D198,D198)-1 -> 7 | C215: Horizon Energy | D215: 0.9784566517 | E215: 9 | F215: Vector Lines | G215: 0.9663447557
B216: =_xlfn.RANK.EQ(D199,$D$192:$D$206)+COUNTIF($D$192:D199,D199)-1 -> 6 | C216: Nelson Electricity | D216: 0.9893634372 | E216: 8 | F216: EA Networks | G216: 0.9703799584
B217: =_xlfn.RANK.EQ(D200,$D$192:$D$206)+COUNTIF($D$192:D200,D200)-1 -> 15 | C217: Network Tasman | D217: 0.3537071102 | E217: 7 | F217: Horizon Energy | G217: 0.9784566517
B218: =_xlfn.RANK.EQ(D201,$D$192:$D$206)+COUNTIF($D$192:D201,D201)-1 -> 2 | C218: Orion NZ | D218: 1 | E218: 6 | F218: Nelson Electricity | G218: 0.9893634372
B219: =_xlfn.RANK.EQ(D202,$D$192:$D$206)+COUNTIF($D$192:D202,D202)-1 -> 11 | C219: OtagoNet | D219: 0.9115572103 | E219: 5 | F219: Centralines | G219: 0.9972371808
... 45 more rows

Sheet Outputs
A1: Outputs
A2: Table X1 | B2: Proposed net allowable revenue and rates of change
A3: Table 2.2 | B3: Proposed net allowable revenue and rates of change
A4: Table 5.1* | B4: Proposed net allowable revenues for 2020/21 | F4: *Excludes Column D
B5: Starting price is $ formatted in millions
B6: Distributor | C6: =IF(Inputs!C5="MAR (industry-wide X factor) 2021","Allowable revenue in 2020/21 ($m)","ERROR") -> Allowable revenue in 2020/21 ($m) | D6: =IF(Inputs!D5="Alternative X factor","Rate of change (CPI-X)", "ERROR") -> Rate of change (CPI-X)
B7: =Inputs!B6 -> Alpine Energy | C7: =Inputs!C6 -> 45361.38032 | D7: =Inputs!D6 -> 0
B8: =Inputs!B7 -> Aurora Energy | C8: =Inputs!C7 -> 72030.72752 | D8: =Inputs!D7 -> -0.089
B9: =Inputs!B8 -> Centralines | C9: =Inputs!C8 -> 9398.539633 | D9: =Inputs!D8 -> 0
B10: =Inputs!B9 -> EA Networks | C10: =Inputs!C9 -> 37696.14503 | D10: =Inputs!D9 -> 0
B11: =Inputs!B10 -> Eastland Network | C11: =Inputs!C10 -> 25055.11062 | D11: =Inputs!D10 -> 0
B12: =Inputs!B11 -> Electricity Invercargill | C12: =Inputs!C11 -> 12291.59231 | D12: =Inputs!D11 -> 0
B13: =Inputs!B12 -> Horizon Energy | C13: =Inputs!C12 -> 25008.55222 | D13: =Inputs!D12 -> 0
B14: =Inputs!B13 -> Nelson Electricity | C14: =Inputs!C13 -> 5588.24628 | D14: =Inputs!D13 -> 0
B15: =Inputs!B14 -> Network Tasman | C15: =Inputs!C14 -> 28780.563 | D15: =Inputs!D14 -> 0
B16: =Inputs!B15 -> Orion NZ | C16: =Inputs!C15 -> 161170.0707 | D16: =Inputs!D15 -> 0
B17: =Inputs!B16 -> OtagoNet | C17: =Inputs!C16 -> 25084.60058 | D17: =Inputs!D16 -> 0
B18: =Inputs!B17 -> The Lines Company | C18: =Inputs!C17 -> 33943.50402 | D18: =Inputs!D17 -> 0
B19: =Inputs!B18 -> Top Energy | C19: =Inputs!C18 -> 42189.2595 | D19: =Inputs!D18 -> 0
B20: =Inputs!B19 -> Unison Networks | C20: =Inputs!C19 -> 102250.9767 | D20: =Inputs!D19 -> 0
B21: =Inputs!B20 -> Vector Lines | C21: =Inputs!C20 -> 403345.7655 | D21: =Inputs!D20 -> 0
A24: Table 5.2 | B24: Net allowable revenue in each year of the regulatory period ($m)
B25: All amouts are $ formatted in millions
B26: Distributor | C26: =VALUE(RIGHT(Inputs!D61,4)-1)&"/"&RIGHT(Inputs!D61,2) -> 2020/21 | D26: =VALUE(RIGHT(Inputs!E61,4)-1)&"/"&RIGHT(Inputs!E61,2) -> 2021/22 | E26: =VALUE(RIGHT(Inputs!F61,4)-1)&"/"&RIGHT(Inputs!F61,2) -> 2022/23 | F26: =VALUE(RIGHT(Inputs!G61,4)-1)&"/"&RIGHT(Inputs!G61,2) -> 2023/24 | G26: =VALUE(RIGHT(Inputs!H61,4)-1)&"/"&RIGHT(Inputs!H61,2) -> 2024/25 | H26: =IF(Inputs!C61="PV at 1 Apr 2020 of MAR before tax over the regulatory period (Applicable X)","PV","ERROR") -> PV
B27: =Inputs!B62 -> Alpine Energy | C27: =Inputs!D62 -> 45361.38032 | D27: =Inputs!E62 -> 46302.60737 | E27: =Inputs!F62 -> 47259.52792 | F27: =Inputs!G62 -> 48220.47165 | G27: =Inputs!H62 -> 49184.88109 | H27: =Inputs!C62 -> 207660.3982
B28: =Inputs!B63 -> Aurora Energy | C28: =Inputs!D63 -> 72030.72752 | D28: =Inputs!E63 -> 80069.08527 | E28: =Inputs!F63 -> 88997.2687 | F28: =Inputs!G63 -> 98888.69213 | G28: =Inputs!H63 -> 109843.5814 | H28: =Inputs!C63 -> 391914.4852
B29: =Inputs!B64 -> Centralines | C29: =Inputs!D64 -> 9398.539633 | D29: =Inputs!E64 -> 9593.554857 | E29: =Inputs!F64 -> 9791.821657 | F29: =Inputs!G64 -> 9990.922031 | G29: =Inputs!H64 -> 10190.74047 | H29: =Inputs!C64 -> 43025.68549
B30: =Inputs!B65 -> EA Networks | C30: =Inputs!D65 -> 37696.14503 | D30: =Inputs!E65 -> 38478.32209 | E30: =Inputs!F65 -> 39273.54075 | F30: =Inputs!G65 -> 40072.10275 | G30: =Inputs!H65 -> 40873.5448 | H30: =Inputs!C65 -> 172569.6271
B31: =Inputs!B66 -> Eastland Network | C31: =Inputs!D66 -> 25055.11062 | D31: =Inputs!E66 -> 25574.99224 | E31: =Inputs!F66 -> 26103.54208 | F31: =Inputs!G66 -> 26634.3141 | G31: =Inputs!H66 -> 27167.00038 | H31: =Inputs!C66 -> 114700.0865
B32: =Inputs!B67 -> Electricity Invercargill | C32: =Inputs!D67 -> 12291.59231 | D32: =Inputs!E67 -> 12546.637 | E32: =Inputs!F67 -> 12805.93416 | F32: =Inputs!G67 -> 13066.32149 | G32: =Inputs!H67 -> 13327.64792 | H32: =Inputs!C67 -> 56269.82546
B33: =Inputs!B68 -> Horizon Energy | C33: =Inputs!D68 -> 25008.55222 | D33: =Inputs!E68 -> 25527.46777 | E33: =Inputs!F68 -> 26055.03544 | F33: =Inputs!G68 -> 26584.82116 | G33: =Inputs!H68 -> 27116.51758 | H33: =Inputs!C68 -> 114486.9463
B34: =Inputs!B69 -> Nelson Electricity | C34: =Inputs!D69 -> 5588.24628 | D34: =Inputs!E69 -> 5704.19973 | E34: =Inputs!F69 -> 5822.086524 | F34: =Inputs!G69 -> 5940.46895 | G34: =Inputs!H69 -> 6059.278329 | H34: =Inputs!C69 -> 25582.49858
B35: =Inputs!B70 -> Network Tasman | C35: =Inputs!D70 -> 28780.563 | D35: =Inputs!E70 -> 29377.74598 | E35: =Inputs!F70 -> 29984.88607 | F35: =Inputs!G70 -> 30594.57875 | G35: =Inputs!H70 -> 31206.47032 | H35: =Inputs!C70 -> 131754.879
B36: =Inputs!B71 -> Orion NZ | C36: =Inputs!D71 -> 161170.0707 | D36: =Inputs!E71 -> 164514.2729 | E36: =Inputs!F71 -> 167914.2346 | F36: =Inputs!G71 -> 171328.4907 | G36: =Inputs!H71 -> 174755.0605 | H36: =Inputs!C71 -> 737822.3682
B37: =Inputs!B72 -> OtagoNet | C37: =Inputs!D72 -> 25084.60058 | D37: =Inputs!E72 -> 25605.0941 | E37: =Inputs!F72 -> 26134.26605 | F37: =Inputs!G72 -> 26665.66279 | G37: =Inputs!H72 -> 27198.97605 | H37: =Inputs!C72 -> 114835.089
B38: =Inputs!B73 -> The Lines Company | C38: =Inputs!D73 -> 33943.50402 | D38: =Inputs!E73 -> 34647.81557 | E38: =Inputs!F73 -> 35363.87042 | F38: =Inputs!G73 -> 36082.93579 | G38: =Inputs!H73 -> 36804.59451 | H38: =Inputs!C73 -> 155390.3676
B39: =Inputs!B74 -> Top Energy | C39: =Inputs!D74 -> 42189.2595 | D39: =Inputs!E74 -> 43064.66656 | E39: =Inputs!F74 -> 43954.66966 | F39: =Inputs!G74 -> 44848.41461 | G39: =Inputs!H74 -> 45745.38291 | H39: =Inputs!C74 -> 193138.7089
B40: =Inputs!B75 -> Unison Networks | C40: =Inputs!D75 -> 102250.9767 | D40: =Inputs!E75 -> 104372.6358 | E40: =Inputs!F75 -> 106529.6703 | F40: =Inputs!G75 -> 108695.7736 | G40: =Inputs!H75 -> 110869.6891 | H40: =Inputs!C75 -> 468095.9529
B41: =Inputs!B76 -> Vector Lines | C41: =Inputs!D76 -> 403345.7655 | D41: =Inputs!E76 -> 411714.9982 | E41: =Inputs!F76 -> 420223.7748 | F41: =Inputs!G76 -> 428768.3249 | G41: =Inputs!H76 -> 437343.6914 | H41: =Inputs!C76 -> 1846481.339
A44: Table 5.3 | B44: Estimated revenue over the DPP3 period ($m)
B45: Present Values and difference are $ formatted in millions
B46: Distributor | C46: =Inputs!C99 -> Proposed PV of MAR | D46: =Inputs!D99 -> PV of MAR under a roll-over scenario | E46: =Inputs!E99 -> $ difference between proposed PV MAR and roll-over PV MAR (over-recovery as positive, under recovery as negative) | F46: =Inputs!F99 -> % difference between the two
B47: =Inputs!B100 -> Alpine Energy | C47: =Inputs!C100 -> 207660.3982 | D47: =Inputs!D100 -> 228897.9143 | E47: =Inputs!E100 -> 21237.51605 | F47: =Inputs!F100 -> 0.1022704195
B48: =Inputs!B101 -> Aurora Energy | C48: =Inputs!C101 -> 391914.4852 | D48: =Inputs!D101 -> 308862.754 | E48: =Inputs!E101 -> -83051.73126 | F48: =Inputs!F101 -> -0.2119128902
B49: =Inputs!B102 -> Centralines | C49: =Inputs!C102 -> 43025.68549 | D49: =Inputs!D102 -> 66318.31876 | E49: =Inputs!E102 -> 23292.63327 | F49: =Inputs!F102 -> 0.541365768
B50: =Inputs!B103 -> EA Networks | C50: =Inputs!C103 -> 172569.6271 | D50: =Inputs!D103 -> 175486.1965 | E50: =Inputs!E103 -> 2916.569339 | F50: =Inputs!F103 -> 0.01690082657
B51: =Inputs!B104 -> Eastland Network | C51: =Inputs!C104 -> 114700.0865 | D51: =Inputs!D104 -> 129075.9971 | E51: =Inputs!E104 -> 14375.91054 | F51: =Inputs!F104 -> 0.1253347837
B52: =Inputs!B105 -> Electricity Invercargill | C52: =Inputs!C105 -> 56269.82546 | D52: =Inputs!D105 -> 63712.40932 | E52: =Inputs!E105 -> 7442.583867 | F52: =Inputs!F105 -> 0.1322659846
B53: =Inputs!B106 -> Horizon Energy | C53: =Inputs!C106 -> 114486.9463 | D53: =Inputs!D106 -> 109076.7491 | E53: =Inputs!E106 -> -5410.197172 | F53: =Inputs!F106 -> -0.04725601781
B54: =Inputs!B107 -> Nelson Electricity | C54: =Inputs!C107 -> 25582.49858 | D54: =Inputs!D107 -> 31874.54659 | E54: =Inputs!E107 -> 6292.04801 | F54: =Inputs!F107 -> 0.2459512697
B55: =Inputs!B108 -> Network Tasman | C55: =Inputs!C108 -> 131754.879 | D55: =Inputs!D108 -> 127445.7266 | E55: =Inputs!E108 -> -4309.15239 | F55: =Inputs!F108 -> -0.03270582785
B56: =Inputs!B109 -> Orion NZ | C56: =Inputs!C109 -> 737822.3682 | D56: =Inputs!D109 -> 786438.0816 | E56: =Inputs!E109 -> 48615.71336 | F56: =Inputs!F109 -> 0.06589080984
B57: =Inputs!B110 -> OtagoNet | C57: =Inputs!C110 -> 114835.089 | D57: =Inputs!D110 -> 127265.4116 | E57: =Inputs!E110 -> 12430.3226 | F57: =Inputs!F110 -> 0.108244986
B58: =Inputs!B111 -> The Lines Company | C58: =Inputs!C111 -> 155390.3676 | D58: =Inputs!D111 -> 193774.5077 | E58: =Inputs!E111 -> 38384.1401 | F58: =Inputs!F111 -> 0.2470174998
B59: =Inputs!B112 -> Top Energy | C59: =Inputs!C112 -> 193138.7089 | D59: =Inputs!D112 -> 205939.9229 | E59: =Inputs!E112 -> 12801.21404 | F59: =Inputs!F112 -> 0.06627989858
B60: =Inputs!B113 -> Unison Networks | C60: =Inputs!C113 -> 468095.9529 | D60: =Inputs!D113 -> 531664.8467 | E60: =Inputs!E113 -> 63568.8938 | F60: =Inputs!F113 -> 0.1358031263
B61: =Inputs!B114 -> Vector Lines | C61: =Inputs!C114 -> 1846481.339 | D61: =Inputs!D114 -> 1951018.966 | E61: =Inputs!E114 -> 104537.6263 | F61: =Inputs!F114 -> 0.05661450463
A63: Table X4 | B63: Draft opex allowances for DPP3 ($m)
A64: Table 5.4 | B64: Draft opex allowances for DPP3 ($m)
A65: Table A1 | B65: Draft opex allowances for DPP3 ($m)
B66: =Inputs!B118 -> Distributor | C66: =Inputs!C118 -> 2020/21 | D66: =Inputs!D118 -> 2021/22 | E66: =Inputs!E118 -> 2022/23 | F66: =Inputs!F118 -> 2023/24 | G66: =Inputs!G118 -> 2024/25
B67: =Inputs!B119 -> Alpine Energy | C67: =Inputs!C119 -> 18958.27695 | D67: =Inputs!D119 -> 19558.63749 | E67: =Inputs!E119 -> 20151.66449 | F67: =Inputs!F119 -> 20709.7457 | G67: =Inputs!G119 -> 21127.6113
B68: =Inputs!B120 -> Aurora Energy | C68: =Inputs!C120 -> 40108.01182 | D68: =Inputs!D120 -> 41758.76769 | E68: =Inputs!E120 -> 43420.9089 | F68: =Inputs!F120 -> 44972.79235 | G68: =Inputs!G120 -> 46239.73787
B69: =Inputs!B121 -> Centralines | C69: =Inputs!C121 -> 3806.103561 | D69: =Inputs!D121 -> 3878.336392 | E69: =Inputs!E121 -> 3946.829692 | F69: =Inputs!F121 -> 4003.142186 | G69: =Inputs!G121 -> 4030.604862
B70: =Inputs!B122 -> EA Networks | C70: =Inputs!C122 -> 13505.51834 | D70: =Inputs!D122 -> 13998.54116 | E70: =Inputs!E122 -> 14490.62343 | F70: =Inputs!F122 -> 14960.7268 | G70: =Inputs!G122 -> 15333.11227
B71: =Inputs!B123 -> Eastland Network | C71: =Inputs!C123 -> 10850.673 | D71: =Inputs!D123 -> 11158.75254 | E71: =Inputs!E123 -> 11460.5961 | F71: =Inputs!F123 -> 11738.52793 | G71: =Inputs!G123 -> 11935.25806
B72: =Inputs!B124 -> Electricity Invercargill | C72: =Inputs!C124 -> 4993.638188 | D72: =Inputs!D124 -> 5127.712059 | E72: =Inputs!E124 -> 5258.511716 | F72: =Inputs!F124 -> 5379.542644 | G72: =Inputs!G124 -> 5463.106639
B73: =Inputs!B125 -> Horizon Energy | C73: =Inputs!C125 -> 11291.42424 | D73: =Inputs!D125 -> 11609.988 | E73: =Inputs!E125 -> 11921.95492 | F73: =Inputs!F125 -> 12207.88699 | G73: =Inputs!G125 -> 12409.24676
B74: =Inputs!B126 -> Nelson Electricity | C74: =Inputs!C126 -> 2122.383493 | D74: =Inputs!D126 -> 2191.999503 | E74: =Inputs!E126 -> 2260.942989 | F74: =Inputs!F126 -> 2324.809394 | G74: =Inputs!G126 -> 2372.995228
B75: =Inputs!B127 -> Network Tasman | C75: =Inputs!C127 -> 12096.42151 | D75: =Inputs!D127 -> 12483.73592 | E75: =Inputs!E127 -> 12866.63178 | F75: =Inputs!F127 -> 13221.66223 | G75: =Inputs!G127 -> 13487.11339
B76: =Inputs!B128 -> Orion NZ | C76: =Inputs!C128 -> 61022.97054 | D76: =Inputs!D128 -> 63364.75771 | E76: =Inputs!E128 -> 65710.50062 | F76: =Inputs!F128 -> 67829.46906 | G76: =Inputs!G128 -> 69504.64817
B77: =Inputs!B129 -> OtagoNet | C77: =Inputs!C129 -> 7993.842907 | D77: =Inputs!D129 -> 8233.409552 | E77: =Inputs!E129 -> 8469.089503 | F77: =Inputs!F129 -> 8674.731494 | G77: =Inputs!G129 -> 8820.378022
B78: =Inputs!B130 -> The Lines Company | C78: =Inputs!C130 -> 13361.49606 | D78: =Inputs!D130 -> 13747.62658 | E78: =Inputs!E130 -> 14126.45338 | F78: =Inputs!F130 -> 14453.9179 | G78: =Inputs!G130 -> 14680.81739
B79: =Inputs!B131 -> Top Energy | C79: =Inputs!C131 -> 17657.33647 | D79: =Inputs!D131 -> 18209.31413 | E79: =Inputs!E131 -> 18754.02958 | F79: =Inputs!F131 -> 19260.57163 | G79: =Inputs!G131 -> 19636.11582
B80: =Inputs!B132 -> Unison Networks | C80: =Inputs!C132 -> 42559.57526 | D80: =Inputs!D132 -> 43930.83323 | E80: =Inputs!E132 -> 45287.07074 | F80: =Inputs!F132 -> 46545.18499 | G80: =Inputs!G132 -> 47488.35882
B81: =Inputs!B133 -> Vector Lines | C81: =Inputs!C133 -> 128568.6903 | D81: =Inputs!D133 -> 133812.7745 | E81: =Inputs!E133 -> 139088.9347 | F81: =Inputs!F133 -> 143907.6248 | G81: =Inputs!G133 -> 147804.197
B82: =Inputs!B134 -> Wellington Electricity | C82: n/a | D82: =Inputs!D134 -> 38003.60011 | E82: =Inputs!E134 -> 39171.80533 | F82: =Inputs!F134 -> 40251.97425 | G82: =Inputs!G134 -> 41059.39379
A84: Table 5.5 | B84: Draft opex parameters for each distributor
A85: Table A2 | B85: Draft opex parameters for each distributor
B86: =Inputs!B138 -> Distributor | C86: =Inputs!C138 -> Total opex base | D86: =Inputs!D138 -> Step changes | E86: =IF(Inputs!E138="Aggregate trend 2018-23 (CAGR, %)","Trend 2018-23","ERROR") -> Trend 2018-23 | F86: =IF(Inputs!F138="Aggregate trend 2023-25 (CAGR, %)","Trend 2023-25","ERROR") -> Trend 2023-25
B87: =Inputs!B139 -> Alpine Energy | C87: =Inputs!C139 -> 17171.22298 | D87: =Inputs!D139 -> 0 | E87: =Inputs!E139 -> 0.02703430305 | F87: =Inputs!F139 -> 0.01588954663
B88: =Inputs!B140 -> Aurora Energy | C88: =Inputs!C140 -> 35344 | D88: =Inputs!D140 -> 0 | E88: =Inputs!E140 -> 0.03489717615 | F88: =Inputs!F140 -> 0.02118748669
B89: =Inputs!B141 -> Centralines | C89: =Inputs!C141 -> 3578 | D89: =Inputs!D141 -> 0 | E89: =Inputs!E141 -> 0.01648586015 | F89: =Inputs!F141 -> 0.007025835366
B90: =Inputs!B142 -> EA Networks | C90: =Inputs!C142 -> 12062 | D90: =Inputs!D142 -> 0 | E90: =Inputs!E142 -> 0.03104580058 | F90: =Inputs!F142 -> 0.01901618444
B91: =Inputs!B143 -> Eastland Network | C91: =Inputs!C143 -> 9922.04778 | D91: =Inputs!D143 -> 0 | E91: =Inputs!E143 -> 0.02431684678 | F91: =Inputs!F143 -> 0.01361929434
B92: =Inputs!B144 -> Electricity Invercargill | C92: =Inputs!C144 -> 4586.901 | D92: =Inputs!D144 -> 0 | E92: =Inputs!E144 -> 0.0230352069 | F92: =Inputs!F144 -> 0.01280447296
B93: =Inputs!B145 -> Horizon Energy | C93: =Inputs!C145 -> 10330.50499 | D93: =Inputs!D145 -> 0 | E93: =Inputs!E145 -> 0.02416749297 | F93: =Inputs!F145 -> 0.01344297164
B94: =Inputs!B146 -> Nelson Electricity | C94: =Inputs!C146 -> 1916 | D94: =Inputs!D146 -> 0 | E94: =Inputs!E146 -> 0.02797452243 | F94: =Inputs!F146 -> 0.01625435042
B95: =Inputs!B147 -> Network Tasman | C95: =Inputs!C147 -> 10945 | D95: =Inputs!D147 -> 0 | E95: =Inputs!E147 -> 0.02732577488 | F95: =Inputs!F147 -> 0.01582300878
B96: =Inputs!B148 -> Orion NZ | C96: =Inputs!C148 -> 54206.509 | D96: =Inputs!D148 -> 0 | E96: =Inputs!E148 -> 0.03259628011 | F96: =Inputs!F148 -> 0.01888778988
B97: =Inputs!B149 -> OtagoNet | C97: =Inputs!C149 -> 7276.234 | D97: =Inputs!D149 -> 0 | E97: =Inputs!E149 -> 0.02562439972 | F97: =Inputs!F149 -> 0.01363942051
B98: =Inputs!B150 -> The Lines Company | C98: =Inputs!C150 -> 12200 | D98: =Inputs!D150 -> 0 | E98: =Inputs!E150 -> 0.02473653003 | F98: =Inputs!F150 -> 0.01291351397
B99: =Inputs!B151 -> Top Energy | C99: =Inputs!C151 -> 16011.85701 | D99: =Inputs!D151 -> 0 | E99: =Inputs!E151 -> 0.0266966593 | F99: =Inputs!F151 -> 0.0154385873
B100: =Inputs!B152 -> Unison Networks | C100: =Inputs!C152 -> 38485.988 | D100: =Inputs!D152 -> 0 | E100: =Inputs!E152 -> 0.0274923531 | F100: =Inputs!F152 -> 0.01594682338
B101: =Inputs!B153 -> Vector Lines | C101: =Inputs!C153 -> 113414.8866 | D101: =Inputs!D153 -> 0 | E101: =Inputs!E153 -> 0.03459510587 | F101: =Inputs!F153 -> 0.02046487766
B102: =Inputs!B154 -> Wellington Electricity | C102: =Inputs!C154 -> 33310.525 | D102: =Inputs!D154 -> 0 | E102: =Inputs!E154 -> 0.02738215573 | F102: =Inputs!F154 -> 0.01581116471
A103: Table X5 | B103: Draft capex allowances for each distributor
A104: Table 5.8 | B104: Proposed capex allowances for DPP3 ($m)
A105: Table B1 | B105: Proposed capex allowances for DPP3 ($m)
B106: =Inputs!B158 -> Distributor | C106: =Inputs!C158-1&"/"&RIGHT(Inputs!C158,2) -> 2020/21 | D106: =Inputs!D158-1&"/"&RIGHT(Inputs!D158,2) -> 2021/22 | E106: =Inputs!E158-1&"/"&RIGHT(Inputs!E158,2) -> 2022/23 | F106: =Inputs!F158-1&"/"&RIGHT(Inputs!F158,2) -> 2023/24 | G106: =Inputs!G158-1&"/"&RIGHT(Inputs!G158,2) -> 2024/25
B107: =Inputs!B159 -> Alpine Energy | C107: =Inputs!C159 -> 16681.11344 | D107: =Inputs!D159 -> 16097.18299 | E107: =Inputs!E159 -> 13450.52029 | F107: =Inputs!F159 -> 14062.53155 | G107: =Inputs!G159 -> 11411.98307
B108: =Inputs!B160 -> Aurora Energy | C108: =Inputs!C160 -> 29927.53016 | D108: =Inputs!D160 -> 30649.84492 | E108: =Inputs!E160 -> 30012.27049 | F108: =Inputs!F160 -> 28159.61044 | G108: =Inputs!G160 -> 29245.39047
B109: =Inputs!B161 -> Centralines | C109: =Inputs!C161 -> 2840.160078 | D109: =Inputs!D161 -> 2668.165337 | E109: =Inputs!E161 -> 2700.887345 | F109: =Inputs!F161 -> 3232.563804 | G109: =Inputs!G161 -> 3322.328046
B110: =Inputs!B162 -> EA Networks | C110: =Inputs!C162 -> 19238.7558 | D110: =Inputs!D162 -> 19088.25832 | E110: =Inputs!E162 -> 18058.85735 | F110: =Inputs!F162 -> 15819.04408 | G110: =Inputs!G162 -> 16277.87495
B111: =Inputs!B163 -> Eastland Network | C111: =Inputs!C163 -> 8521.103953 | D111: =Inputs!D163 -> 7729.775832 | E111: =Inputs!E163 -> 7311.317123 | F111: =Inputs!F163 -> 8261.253855 | G111: =Inputs!G163 -> 9078.485682
B112: =Inputs!B164 -> Electricity Invercargill | C112: =Inputs!C164 -> 4512.976058 | D112: =Inputs!D164 -> 3804.700931 | E112: =Inputs!E164 -> 4167.923621 | F112: =Inputs!F164 -> 4125.952791 | G112: =Inputs!G164 -> 4192.018008
B113: =Inputs!B165 -> Horizon Energy | C113: =Inputs!C165 -> 8241.896502 | D113: =Inputs!D165 -> 6286.986161 | E113: =Inputs!E165 -> 6750.024192 | F113: =Inputs!F165 -> 7480.150931 | G113: =Inputs!G165 -> 8079.859231
B114: =Inputs!B166 -> Nelson Electricity | C114: =Inputs!C166 -> 1491.012419 | D114: =Inputs!D166 -> 1617.788593 | E114: =Inputs!E166 -> 1652.103257 | F114: =Inputs!F166 -> 1843.280188 | G114: =Inputs!G166 -> 1670.123921
B115: =Inputs!B167 -> Network Tasman | C115: =Inputs!C167 -> 5449.356954 | D115: =Inputs!D167 -> 6787.65066 | E115: =Inputs!E167 -> 6445.362832 | F115: =Inputs!F167 -> 4310.233232 | G115: =Inputs!G167 -> 4688.713208
B116: =Inputs!B168 -> Orion NZ | C116: =Inputs!C168 -> 60621.18221 | D116: =Inputs!D168 -> 64785.6191 | E116: =Inputs!E168 -> 69550.18462 | F116: =Inputs!F168 -> 66466.17943 | G116: =Inputs!G168 -> 78731.04057
B117: =Inputs!B169 -> OtagoNet | C117: =Inputs!C169 -> 14983.40975 | D117: =Inputs!D169 -> 15216.95455 | E117: =Inputs!E169 -> 15966.67854 | F117: =Inputs!F169 -> 16984.19237 | G117: =Inputs!G169 -> 16670.84603
B118: =Inputs!B170 -> The Lines Company | C118: =Inputs!C170 -> 12186.89563 | D118: =Inputs!D170 -> 12286.82356 | E118: =Inputs!E170 -> 11928.51651 | F118: =Inputs!F170 -> 11690.56427 | G118: =Inputs!G170 -> 12254.51766
B119: =Inputs!B171 -> Top Energy | C119: =Inputs!C171 -> 22807.15378 | D119: =Inputs!D171 -> 16698.18597 | E119: =Inputs!E171 -> 16364.169 | F119: =Inputs!F171 -> 16657.70283 | G119: =Inputs!G171 -> 17735.53137
B120: =Inputs!B172 -> Unison Networks | C120: =Inputs!C172 -> 45181.92748 | D120: =Inputs!D172 -> 44799.4973 | E120: =Inputs!E172 -> 44115.77441 | F120: =Inputs!F172 -> 49989.79844 | G120: =Inputs!G172 -> 48856.4802
B121: =Inputs!B173 -> Vector Lines | C121: =Inputs!C173 -> 169613.4004 | D121: =Inputs!D173 -> 190827.1429 | E121: =Inputs!E173 -> 204070.2506 | F121: =Inputs!F173 -> 199263.7933 | G121: =Inputs!G173 -> 189811.2063
B122: =Inputs!B174 -> Wellington Electricity | C122: n/a | D122: =Inputs!D174 -> 31714.42059 | E122: =Inputs!E174 -> 33652.83131 | F122: =Inputs!F174 -> 35350.25396 | G122: =Inputs!G174 -> 38418.87936
A124: Table 5.10 | B124: Capex acceptance rate by category
B126: =Inputs!B178 -> Distributor | C126: =Inputs!C178 -> Total capital expenditure acceptance rate (after 120% cap) | D126: =Inputs!D178 -> Asset replacement and renewals expenditure net of capital contributions | E126: =Inputs!E178 -> Consumer connection expenditure net of capital contributions | F126: =Inputs!F178 -> System growth expenditure net of capital contributions | G126: =Inputs!G178 -> Total reliability, safety and environment expenditure net of capital contributions | H126: =Inputs!H178 -> Other expenditure
B127: =Inputs!B179 -> Alpine Energy | C127: =Inputs!C179 -> 1 | D127: =Inputs!D179 -> 1 | E127: =Inputs!E179 -> 1 | F127: =Inputs!F179 -> 1 | G127: =Inputs!G179 -> 1 | H127: =Inputs!H179 -> 1
B128: =Inputs!B180 -> Aurora Energy | C128: =Inputs!C180 -> 0.4117406236 | D128: =Inputs!D180 -> 0.3578793223 | E128: =Inputs!E180 -> 1 | F128: =Inputs!F180 -> 0.5018291449 | G128: =Inputs!G180 -> 1 | H128: =Inputs!H180 -> 0.2331349532
B129: =Inputs!B181 -> Centralines | C129: =Inputs!C181 -> 0.9972371808 | D129: =Inputs!D181 -> 1 | E129: =Inputs!E181 -> 1 | F129: =Inputs!F181 -> 1 | G129: =Inputs!G181 -> 1 | H129: =Inputs!H181 -> 0.9875615539
B130: =Inputs!B182 -> EA Networks | C130: =Inputs!C182 -> 0.9703799584 | D130: =Inputs!D182 -> 1 | E130: =Inputs!E182 -> 1 | F130: =Inputs!F182 -> 0.9113611041 | G130: =Inputs!G182 -> 1 | H130: =Inputs!H182 -> 1
B131: =Inputs!B183 -> Eastland Network | C131: =Inputs!C183 -> 0.8064637827 | D131: =Inputs!D183 -> 0.7633918846 | E131: =Inputs!E183 -> 1 | F131: =Inputs!F183 -> 1 | G131: =Inputs!G183 -> 0.9588077569 | H131: =Inputs!H183 -> 0.7359088458
B132: =Inputs!B184 -> Electricity Invercargill | C132: =Inputs!C184 -> 0.9151589153 | D132: =Inputs!D184 -> 1 | E132: =Inputs!E184 -> 0.3825964608 | F132: =Inputs!F184 -> 1 | G132: =Inputs!G184 -> 1 | H132: =Inputs!H184 -> 1
B133: =Inputs!B185 -> Horizon Energy | C133: =Inputs!C185 -> 0.9784566517 | D133: =Inputs!D185 -> 1 | E133: =Inputs!E185 -> 1 | F133: =Inputs!F185 -> 0.8446981793 | G133: =Inputs!G185 -> 1 | H133: =Inputs!H185 -> 0.9213669063
B134: =Inputs!B186 -> Nelson Electricity | C134: =Inputs!C186 -> 0.9893634372 | D134: =Inputs!D186 -> 1 | E134: =Inputs!E186 -> 0.06811196636 | F134: =Inputs!F186 -> 1 | G134: =Inputs!G186 -> 1 | H134: =Inputs!H186 -> 1
B135: =Inputs!B187 -> Network Tasman | C135: =Inputs!C187 -> 0.3537071102 | D135: =Inputs!D187 -> 0.6694872671 | E135: =Inputs!E187 -> 1 | F135: =Inputs!F187 -> 0.147185259 | G135: =Inputs!G187 -> 1 | H135: =Inputs!H187 -> 0.7792544667
B136: =Inputs!B188 -> Orion NZ | C136: =Inputs!C188 -> 1 | D136: =Inputs!D188 -> 1 | E136: =Inputs!E188 -> 1 | F136: =Inputs!F188 -> 1 | G136: =Inputs!G188 -> 1 | H136: =Inputs!H188 -> 1
B137: =Inputs!B189 -> OtagoNet | C137: =Inputs!C189 -> 0.9115572103 | D137: =Inputs!D189 -> 1 | E137: =Inputs!E189 -> 0.6071327855 | F137: =Inputs!F189 -> 1 | G137: =Inputs!G189 -> 1 | H137: =Inputs!H189 -> 1
B138: =Inputs!B190 -> The Lines Company | C138: =Inputs!C190 -> 0.7694637005 | D138: =Inputs!D190 -> 0.8077106474 | E138: =Inputs!E190 -> 0.7148802287 | F138: =Inputs!F190 -> 0.3141102725 | G138: =Inputs!G190 -> 0.9167925402 | H138: =Inputs!H190 -> 0.9656582832
B139: =Inputs!B191 -> Top Energy | C139: =Inputs!C191 -> 1 | D139: =Inputs!D191 -> 1 | E139: =Inputs!E191 -> 1 | F139: =Inputs!F191 -> 1 | G139: =Inputs!G191 -> 1 | H139: =Inputs!H191 -> 1
B140: =Inputs!B192 -> Unison Networks | C140: =Inputs!C192 -> 1 | D140: =Inputs!D192 -> 1 | E140: =Inputs!E192 -> 1 | F140: =Inputs!F192 -> 1 | G140: =Inputs!G192 -> 1 | H140: =Inputs!H192 -> 1
B141: =Inputs!B193 -> Vector Lines | C141: =Inputs!C193 -> 0.9663447557 | D141: =Inputs!D193 -> 1 | E141: =Inputs!E193 -> 1 | F141: =Inputs!F193 -> 0.8512003465 | G141: =Inputs!G193 -> 1 | H141: =Inputs!H193 -> 1
B142: =Inputs!B194 -> Wellington Electricity | C142: =Inputs!C194 -> 0.9091852193 | D142: =Inputs!D194 -> 1 | E142: =Inputs!E194 -> 1 | F142: =Inputs!F194 -> 0.5067813503 | G142: =Inputs!G194 -> 1 | H142: =Inputs!H194 -> 1
A144: Table X2
A145: =Inputs!A548 -> Table 7.1 | B145: =Inputs!B548 -> Proposed quality standards
B146: Distributor | C146: =Inputs!C549 -> Unplanned SAIDI | D146: =Inputs!D549 -> Unplanned SAIFI | E146: =Inputs!E549 -> Planned SAIDI | F146: =Inputs!F549 -> Planned SAIFI | G146: =Inputs!G549 -> Extreme outage SAIDI
B147: =Inputs!B550 -> Distributor | C147: =Inputs!C550 -> (1-year) | D147: =Inputs!D550 -> (1-year) | E147: =Inputs!E550 -> (5-year) | F147: =Inputs!F550 -> (5-year) | G147: =Inputs!G550 -> 0
B148: =Inputs!B551 -> Alpine Energy | C148: =Inputs!C551 -> 128.3705084 | D148: =Inputs!D551 -> 1.205623 | E148: =Inputs!E551 -> 857.072 | F148: =Inputs!F551 -> 3.703456 | G148: =Inputs!G551 -> 27.738465
B149: =Inputs!B552 -> Aurora Energy | C149: =Inputs!C552 -> 78.97601519 | D149: =Inputs!D552 -> 1.374841 | E149: =Inputs!E552 -> 762.8765 | F149: =Inputs!F552 -> 3.982672 | G149: =Inputs!G552 -> 12.427644
B150: =Inputs!B553 -> Centralines | C150: =Inputs!C553 -> 85.23767257 | D150: =Inputs!D553 -> 3.000805031 | E150: =Inputs!E553 -> 515.4175 | F150: =Inputs!F553 -> 2.4793995 | G150: =Inputs!G553 -> 21.642882
B151: =Inputs!B554 -> EA Networks | C151: =Inputs!C554 -> 103.6177 | D151: =Inputs!D554 -> 1.362023 | E151: =Inputs!E554 -> 1319.452 | F151: =Inputs!F554 -> 4.861036 | G151: =Inputs!G554 -> 22.8387
B152: =Inputs!B555 -> Eastland Network | C152: =Inputs!C555 -> 246.5573 | D152: =Inputs!D555 -> 3.327256 | E152: =Inputs!E555 -> 1336.6 | F152: =Inputs!F555 -> 7.722375 | G152: =Inputs!G555 -> 40.87812
B153: =Inputs!B556 -> Electricity Invercargill | C153: =Inputs!C556 -> 24.67004606 | D153: =Inputs!D556 -> 0.6335847 | E153: =Inputs!E556 -> 109.52465 | F153: =Inputs!F556 -> 0.4925295 | G153: =Inputs!G556 -> 10.212915
B154: =Inputs!B557 -> Horizon Energy | C154: =Inputs!C557 -> 169.8372908 | D154: =Inputs!D557 -> 2.237389783 | E154: =Inputs!E557 -> 528.729 | F154: =Inputs!F557 -> 3.4349535 | G154: =Inputs!G557 -> 28.605834
B155: =Inputs!B558 -> Nelson Electricity | C155: =Inputs!C558 -> 17.90754268 | D155: =Inputs!D558 -> 0.2204544 | E155: =Inputs!E558 -> 197.92365 | F155: =Inputs!F558 -> 2.620141 | G155: =Inputs!G558 -> 24.723399
B156: =Inputs!B559 -> Network Tasman | C156: =Inputs!C559 -> 100.6883 | D156: =Inputs!D559 -> 1.210669409 | E156: =Inputs!E559 -> 1027.9125 | F156: =Inputs!F559 -> 4.5881285 | G156: =Inputs!G559 -> 20.36151
B157: =Inputs!B560 -> Orion NZ | C157: =Inputs!C560 -> 88.73252 | D157: =Inputs!D560 -> 0.9798281 | E157: =Inputs!E560 -> 198.8107 | F157: =Inputs!F560 -> 0.7605445 | G157: =Inputs!G560 -> 20.383302
B158: =Inputs!B561 -> OtagoNet | C158: =Inputs!C561 -> 162.1496 | D158: =Inputs!D561 -> 2.225816 | E158: =Inputs!E561 -> 2076.5765 | F158: =Inputs!F561 -> 9.37043 | G158: =Inputs!G561 -> 29.125122
B159: =Inputs!B562 -> Powerco | C159: =Inputs!C562 -> 161.135648 | D159: =Inputs!D562 -> 2.194614156 | E159: =Inputs!E562 -> 598.257 | F159: =Inputs!F562 -> 2.8354425 | G159: =Inputs!G562 -> 9.807312
B160: =Inputs!B563 -> The Lines Company | C160: =Inputs!C563 -> 185.5639357 | D160: =Inputs!D563 -> 3.190046036 | E160: =Inputs!E563 -> 1228.323 | F160: =Inputs!F563 -> 8.641515 | G160: =Inputs!G563 -> 24.608916
B161: =Inputs!B564 -> Top Energy | C161: =Inputs!C564 -> 441.7878 | D161: =Inputs!D564 -> 5.54357 | E161: =Inputs!E564 -> 1959.629 | F161: =Inputs!F564 -> 7.625225 | G161: =Inputs!G564 -> 82.21986
B162: =Inputs!B565 -> Unison Networks | C162: =Inputs!C565 -> 89.10336832 | D162: =Inputs!D565 -> 1.824587127 | E162: =Inputs!E565 -> 604.5155 | F162: =Inputs!F565 -> 3.962119 | G162: =Inputs!G565 -> 18.905274
B163: =Inputs!B566 -> Vector Lines | C163: =Inputs!C566 -> 102.1263986 | D163: =Inputs!D566 -> 1.359099 | E163: =Inputs!E566 -> 460.44715 | F163: =Inputs!F566 -> 2.3685815 | G163: =Inputs!G566 -> 13.630005
B164: =Inputs!B567 -> Wellington Electricity | C164: =Inputs!C567 -> 39.8809737 | D164: =Inputs!D567 -> 0.617797233 | E164: =Inputs!E567 -> 58.9918 | F164: =Inputs!F567 -> 0.4478915 | G164: =Inputs!G567 -> 5.293923
A167: =Inputs!A570 -> Table 7.2 | B167: =Inputs!B570 -> Propose quality incentive scheme parameters
B168: Incentive rate is in $
B169: =Inputs!B571 -> Unplanned SAIDI | C169: =Inputs!C571 -> Unplanned collar | D169: =Inputs!D571 -> Unplanned target | E169: =Inputs!E571 -> Unplanned cap | F169: =Inputs!F571 -> Incentive rate | G169: =Inputs!G571 -> Maximum loss | H169: =Inputs!H571 -> Maximum gain
B170: =Inputs!B572 -> Alpine Energy | C170: =Inputs!C572 -> 0 | D170: =Inputs!D572 -> 104.0550922 | E170: =Inputs!E572 -> 128.3705084 | F170: =Inputs!F572 -> 7753.392713 | G170: =Inputs!G572 -> 0.003988657262 | H170: =Inputs!H572 -> 0.01706901063
B171: =Inputs!B573 -> Aurora Energy | C171: =Inputs!C573 -> 0 | D171: =Inputs!D573 -> 68.08369992 | E171: =Inputs!E573 -> 78.97601519 | F171: =Inputs!F573 -> 12848.0107 | G171: =Inputs!G573 -> 0.001555529685 | H171: =Inputs!H573 -> 0.009723021574
B172: =Inputs!B574 -> Centralines | C172: =Inputs!C574 -> 0 | D172: =Inputs!D574 -> 67.15666475 | E172: =Inputs!E574 -> 85.23767257 | F172: =Inputs!F574 -> 1045.143187 | G172: =Inputs!G574 -> 0.001929645545 | H172: =Inputs!H574 -> 0.007167109278
B173: =Inputs!B575 -> EA Networks | C173: =Inputs!C575 -> 0 | D173: =Inputs!D575 -> 86.62983 | E173: =Inputs!E575 -> 103.6177 | F173: =Inputs!F575 -> 5636.761216 | G173: =Inputs!G575 -> 0.002437873223 | H173: =Inputs!H575 -> 0.01243196133
B174: =Inputs!B576 -> Eastland Network | C174: =Inputs!C576 -> 0 | D174: =Inputs!D576 -> 210.1172 | E174: =Inputs!E576 -> 246.5573 | F174: =Inputs!F576 -> 2745.088647 | G174: =Inputs!G576 -> 0.003831590604 | H174: =Inputs!H576 -> 0.02209332821
B175: =Inputs!B577 -> Electricity Invercargill | C175: =Inputs!C577 -> 0 | D175: =Inputs!D577 -> 16.92424763 | E175: =Inputs!E577 -> 24.67004606 | F175: =Inputs!F577 -> 2539.386496 | G175: =Inputs!G577 -> 0.001535770568 | H175: =Inputs!H577 -> 0.00335559486
B176: =Inputs!B578 -> Horizon Energy | C176: =Inputs!C578 -> 0 | D176: =Inputs!D578 -> 138.1843799 | E176: =Inputs!E578 -> 169.8372908 | F176: =Inputs!F578 -> 5267.48745 | G176: =Inputs!G578 -> 0.006398351641 | H176: =Inputs!H578 -> 0.02793273129
B177: =Inputs!B579 -> Nelson Electricity | C177: =Inputs!C579 -> 0 | D177: =Inputs!D579 -> 9.774246961 | E177: =Inputs!E579 -> 17.90754268 | F177: =Inputs!F579 -> 1385.986173 | G177: =Inputs!G579 -> 0.001935928946 | H177: =Inputs!H579 -> 0.002326516614
B178: =Inputs!B580 -> Network Tasman | C178: =Inputs!C580 -> 0 | D178: =Inputs!D580 -> 81.29431 | E178: =Inputs!E580 -> 100.6883 | F178: =Inputs!F580 -> 6052.785213 | G178: =Inputs!G580 -> 0.00391437686 | H178: =Inputs!H580 -> 0.01640799886
B179: =Inputs!B581 -> Orion NZ | C179: =Inputs!C581 -> 0 | D179: =Inputs!D581 -> 76.37737 | E179: =Inputs!E581 -> 88.73252 | F179: =Inputs!F581 -> 31062.58057 | G179: =Inputs!G581 -> 0.002285286473 | H179: =Inputs!H581 -> 0.0141272401
B180: =Inputs!B582 -> OtagoNet | C180: =Inputs!C582 -> 0 | D180: =Inputs!D582 -> 133.2553 | E180: =Inputs!E582 -> 162.1496 | F180: =Inputs!F582 -> 4247.83507 | G180: =Inputs!G582 -> 0.004695827382 | H180: =Inputs!H582 -> 0.02165630891
B181: =Inputs!B583 -> Powerco | C181: =Inputs!C583 -> 0 | D181: =Inputs!D583 -> 149.5053225 | E181: =Inputs!E583 -> 161.135648 | F181: =Inputs!F583 -> 45869.83437 | G181: =Inputs!G583 -> 0.001797671216 | H181: =Inputs!H583 -> 0.02310867523
B182: =Inputs!B584 -> The Lines Company | C182: =Inputs!C584 -> 0 | D182: =Inputs!D584 -> 159.9666043 | E182: =Inputs!E584 -> 185.5639357 | F182: =Inputs!F584 -> 3724.009427 | G182: =Inputs!G584 -> 0.002695183131 | H182: =Inputs!H584 -> 0.01684313444
B183: =Inputs!B585 -> Top Energy | C183: =Inputs!C585 -> 0 | D183: =Inputs!D585 -> 377.92 | E183: =Inputs!E585 -> 441.7878 | F183: =Inputs!F585 -> 3203.022285 | G183: =Inputs!G585 -> 0.004653497709 | H183: =Inputs!H585 -> 0.02753578257
B184: =Inputs!B586 -> Unison Networks | C184: =Inputs!C586 -> 0 | D184: =Inputs!D586 -> 77.49350967 | E184: =Inputs!E586 -> 89.10336832 | F184: =Inputs!F586 -> 15776.72091 | G184: =Inputs!G586 -> 0.001719157635 | H184: =Inputs!H586 -> 0.01147503711
B185: =Inputs!B587 -> Vector Lines | C185: =Inputs!C587 -> 0 | D185: =Inputs!D587 -> 93.80466345 | E185: =Inputs!E587 -> 102.1263986 | F185: =Inputs!F587 -> 82900.3965 | G185: =Inputs!G587 -> 0.001641468241 | H185: =Inputs!H587 -> 0.01850303736
B186: =Inputs!B588 -> Wellington Electricity | C186: =Inputs!C588 -> 0 | D186: =Inputs!D588 -> 33.82110616 | E186: =Inputs!E588 -> 39.8809737 | F186: =Inputs!F588 -> 23004.28717 | G186: =Inputs!G588 -> 0.001327139724 | H186: =Inputs!H588 -> 0.007406982609
B187: =Inputs!B589 -> Planned SAIDI | C187: =Inputs!C589 -> Planned collar | D187: =Inputs!D589 -> Planned target | E187: =Inputs!E589 -> Planned cap | F187: =Inputs!F589 -> Incentive rate | G187: =Inputs!G589 -> Maximum loss | H187: =Inputs!H589 -> Maximum gain
B188: =Inputs!B590 -> Alpine Energy | C188: =Inputs!C590 -> 0 | D188: =Inputs!D590 -> 57.13813 | E188: =Inputs!E590 -> 171.4144 | F188: =Inputs!F590 -> 3876.696357 | G188: =Inputs!G590 -> 0.01405925532 | H188: =Inputs!H590 -> 0.004686418167
B189: =Inputs!B591 -> Aurora Energy | C189: =Inputs!C591 -> 0 | D189: =Inputs!D591 -> 50.85845 | E189: =Inputs!E591 -> 152.5753 | F189: =Inputs!F591 -> 6424.005348 | G189: =Inputs!G591 -> 0.01089462629 | H189: =Inputs!H591 -> 0.003631543285
B190: =Inputs!B592 -> Centralines | C190: =Inputs!C592 -> 0 | D190: =Inputs!D592 -> 34.36118 | E190: =Inputs!E592 -> 103.0835 | F190: =Inputs!F592 -> 522.5715934 | G190: =Inputs!G592 -> 0.005500650695 | H190: =Inputs!H592 -> 0.001833550943
B191: =Inputs!B593 -> EA Networks | C191: =Inputs!C593 -> 0 | D191: =Inputs!D593 -> 87.96346 | E191: =Inputs!E593 -> 263.8904 | F191: =Inputs!F593 -> 2818.380608 | G191: =Inputs!G593 -> 0.01893502069 | H191: =Inputs!H593 -> 0.006311673086
B192: =Inputs!B594 -> Eastland Network | C192: =Inputs!C594 -> 0 | D192: =Inputs!D594 -> 89.10668 | E192: =Inputs!E594 -> 267.32 | F192: =Inputs!F594 -> 1372.544323 | G192: =Inputs!G594 -> 0.01405403389 | H192: =Inputs!H594 -> 0.004684678663
B193: =Inputs!B595 -> Electricity Invercargill | C193: =Inputs!C595 -> 0 | D193: =Inputs!D595 -> 7.301645 | E193: =Inputs!E595 -> 21.90493 | F193: =Inputs!F595 -> 1269.693248 | G193: =Inputs!G595 -> 0.002171560949 | H193: =Inputs!H595 -> 0.000723853815
B194: =Inputs!B596 -> Horizon Energy | C194: =Inputs!C596 -> 0 | D194: =Inputs!D596 -> 35.24859 | E194: =Inputs!E596 -> 105.7458 | F194: =Inputs!F596 -> 2633.743725 | G194: =Inputs!G596 -> 0.01068778185 | H194: =Inputs!H596 -> 0.003562592941
B195: =Inputs!B597 -> Nelson Electricity | C195: =Inputs!C597 -> 0 | D195: =Inputs!D597 -> 13.19491 | E195: =Inputs!E597 -> 39.58473 | F195: =Inputs!F597 -> 692.9930866 | G195: =Inputs!G597 -> 0.004711080679 | H195: =Inputs!H597 -> 0.001570360226
B196: =Inputs!B598 -> Network Tasman | C196: =Inputs!C598 -> 0 | D196: =Inputs!D598 -> 68.52749 | E196: =Inputs!E598 -> 205.5825 | F196: =Inputs!F598 -> 3026.392606 | G196: =Inputs!G598 -> 0.02074682365 | H196: =Inputs!H598 -> 0.006915606874
B197: =Inputs!B599 -> Orion NZ | C197: =Inputs!C599 -> 0 | D197: =Inputs!D599 -> 13.25405 | E197: =Inputs!E599 -> 39.76214 | F197: =Inputs!F599 -> 15531.29028 | G197: =Inputs!G599 -> 0.003677328105 | H197: =Inputs!H599 -> 0.001225776343
B198: =Inputs!B600 -> OtagoNet | C198: =Inputs!C600 -> 0 | D198: =Inputs!D600 -> 138.4384 | E198: =Inputs!E600 -> 415.3153 | F198: =Inputs!F600 -> 2123.917535 | G198: =Inputs!G600 -> 0.03374798763 | H198: =Inputs!H600 -> 0.0112493265
B199: =Inputs!B601 -> Powerco | C199: =Inputs!C601 -> 0 | D199: =Inputs!D601 -> 39.88379 | E199: =Inputs!E601 -> 119.6514 | F199: =Inputs!F601 -> 22934.91718 | G199: =Inputs!G601 -> 0.009247113403 | H199: =Inputs!H601 -> 0.003082370361
B200: =Inputs!B602 -> The Lines Company | C200: =Inputs!C602 -> 0 | D200: =Inputs!D602 -> 81.88821 | E200: =Inputs!E602 -> 245.6646 | F200: =Inputs!F602 -> 1862.004714 | G200: =Inputs!G602 -> 0.01293320535 | H200: =Inputs!H602 -> 0.004311068975
B201: =Inputs!B603 -> Top Energy | C201: =Inputs!C603 -> 0 | D201: =Inputs!D603 -> 130.6419 | E201: =Inputs!E603 -> 391.9258 | F201: =Inputs!F603 -> 1601.511142 | G201: =Inputs!G603 -> 0.01427813243 | H201: =Inputs!H603 -> 0.004759376261
B202: =Inputs!B604 -> Unison Networks | C202: =Inputs!C604 -> 0 | D202: =Inputs!D604 -> 40.30103 | E202: =Inputs!E604 -> 120.9031 | F202: =Inputs!F604 -> 7888.360456 | G202: =Inputs!G604 -> 0.008951508099 | H202: =Inputs!H604 -> 0.002983835786
B203: =Inputs!B605 -> Vector Lines | C203: =Inputs!C605 -> 0 | D203: =Inputs!D605 -> 30.69648 | E203: =Inputs!E605 -> 92.08943 | F203: =Inputs!F605 -> 41450.19825 | G203: =Inputs!G605 -> 0.009082353165 | H203: =Inputs!H605 -> 0.003027451384
B204: =Inputs!B606 -> Wellington Electricity | C204: =Inputs!C606 -> 0 | D204: =Inputs!D606 -> 3.932786 | E204: =Inputs!E606 -> 11.79836 | F204: =Inputs!F606 -> 11502.14358 | G204: =Inputs!G606 -> 0.00129194839 | H204: =Inputs!H606 -> 0.0004306493904
C205: In $ per SAIDI minute terms.
C206: Maximum incentive reward or penalty as a percentage of allowable revenue.
A209: =Inputs!A609 -> Table 7.3 | B209: =Inputs!B609 -> Proposed major event boundary values
A210: Table K2 | B210: Distributor | C210: =Inputs!C610 -> SAIDI boundary | D210: =Inputs!D610 -> SAIFI boundary
B211: =Inputs!B611 -> Alpine Energy | C211: =Inputs!C611 -> 9.246155 | D211: =Inputs!D611 -> 0.0610729
B212: =Inputs!B612 -> Aurora Energy | C212: =Inputs!C612 -> 4.142548 | D212: =Inputs!D612 -> 0.0557508
B213: =Inputs!B613 -> Centralines | C213: =Inputs!C613 -> 7.214294 | D213: =Inputs!D613 -> 0.144516
... 268 more rows

Sheet External charts
A1: External charts
A3: Figure J3 | B3: Distribution of annual SAIDI from target | C3: Stata
A19: Figure J4 | B19: Distribution of annual SAIFI from target | C19: Stata
A35: Figure K1 | B35: Proportion of unplanned SAIDI during a major event day, 2008/9 to 2017/8 | C35: Tableau
A61: Figure K2 | B61: Proportion of unplanned SAIFI during a major event day, 2008/9 to 2017/8 | C61: Tableau
A87: Figure K3 | B87: Proportion of SAIDI occurring within x hours of a major event day | C87: Excel
A102: Figure K4 | B102: Proportion of SAIFI occurring within x hours of a major event day | C102: Excel
A117: Figure K5 | B117: Proportion of SAIDI major event days capturing x percent of SAIDI | C117: Excel
A135: Figure K6 | B135: Proportion of SAIFI major event days capturing x percent of SAIFI | C135: Excel
A153: Figure K7 - K10 | B153: (Illustrative charts) | C153: Tableau
A154: Figure K11 - K12 | B154: (Illustrative charts) | C154: Excel
A156: Figure M1 | B156: Average deviation from reliability targets, 2015/16 to 2017/18 | C156: Tableau
F157: OR
A179: Figure M2 | B179: (Illustrative chart) | C179: Powerpoint

Sheet UnlinkedCharts
A1: Figure A1 | B1: Deviations between DPP allowance and actuals, 2016–2018 ($b)
A24: Table A4 | B24: Econometric analysis of opex – without removing outliers
B25: Model | C25: Elasticity | H25: R2
C26: Lines[1] | D26: ICPs | E26: Delivery[2] | F26: Peak[3] | G26: OH Lines[4]
B27: Total opex | C27: 0.3605 | D27: 0.5342 | H27: 0.9481
B28: Opex categories
B29: Network opex | C29: 0.5276 | D29: 0.4228 | H29: 0.9034
B30: Non-network opex | C30: 0.2095 | D30: 0.6418 | H30: 0.8924
B31: Network opex
B32: SI & E[5] | C32: 0.5726 | D32: 0.4353 | H32: 0.8351
B33: Veg. man.[6] | G33: 1.0552 | H33: 0.7008
B34: RCMI [7] | E34: 0.8843 | H34: 0.6821
B35: ARR[8] (1) | C35: 0.6472 | D35: 0.3408 | H35: 0.6001
B36: ARR (2) | D36: 0.5385 | G36: 0.3913 | H36: 0.6355
B37: Non-network opex
B38: Sys. operations[9] | C38: 0.2969 | F38: 0.7442 | H38: 0.8019
B39: Bus. support[10] | D39: 0.7523 | H39: 0.8525
A42: Table A5 | B42: Econometric analysis of opex – removing outliers
B43: Model | C43: Elasticity | H43: Adj. R2
C44: Lines | D44: ICPs | E44: Delivery | F44: Peak | G44: OH Lines
B45: Total opex | C45: 0.3292 | D45: 0.5564 | H45: 0.9477[1]
B46: Opex categories
B47: Network opex | C47: 0.4727 | D47: 0.4514 | H47: 0.8973[2]
B48: Non-net. opex (1) | C48: 0.2188 | D48: 0.652 | H48: 0.9007[3]
B49: Non-net. opex (2) | D49: 0.8069 | H49: 0.8863[4]
B50: Network opex
B51: SI & E | C51: 0.5255 | D51: 0.5207 | H51: 0.8250[5]
B52: Veg. man. | G52: 0.8655 | H52: 0.4717[6]
B53: RCMI | E53: 0.9377 | H53: 0.7164[7]
B54: ARR (1) | C54: 0.6319 | D54: 0.2201 | H54: 0.5287[8]
B55: ARR (2) | D55: 0.4269 | G55: 0.3975 | H55: 0.5722[9]
B56: Non-network opex
B57: Sys. operations | C57: 0.2889 | F57: 0.703 | H57: 0.8004[10]
B58: Bus. support | D58: 0.7983 | H58: 0.8722[11]
A63: Figure A4 | B63: Quarterly difference between EGWW and all industries LCI
A86: Figure A5 | B86: Cumulative change in EGWW and all industries LCI 2015-2018
A111: Figure A6 | B111: Quarterly difference between EGWW and all industries PPI (inputs)
A136: Figure A7 | B136: Cumulative change in EGWW and all industries PPI
A165: Table 5.6 | B165: Econometric drivers of opex scale growth
B166: Opex category | C166: Elasticity to ICP growth | D166: Elasticity to circuit length growth | E166: R2
B167: Network opex | C167: 0.4514 | D167: 0.4727 | E167: 0.8973
B168: Non-network opex | C168: 0.652 | D168: 0.2188 | E168: 0.9007
A173: Table 5.7 | B173: Total factor productivity rates in overseas studies
A174: Table 6.1 | B174: Jurisdiction | C174: Year | D174: Rate of change
B175: Australia[1] | C175: 2019 | D175: 0.005
B176: United Kingdom[2] | C176: 2014 | D176: =0.8-1.1% -> 0.789
B177: Ontario (Canada)[3] | C177: 2014 | D177: 0

Sheet Outputs - Determination
A1: Outputs - Determination
A3: Table 1.1.1 | B3: Table 1.1: Starting prices for the DPP regulatory period
B4: 1 April 2020 – 31 March 2025
B6: Non-exempt EDB | C6: Actual net allowable revenue ($000)
B7: =IF(Inputs!B6="Alpine Energy","Alpine Energy Limited","ERROR:check labels") -> Alpine Energy Limited | C7: =Inputs!C6 -> 45361.38032
B8: =IF(Inputs!B7="Aurora Energy","Aurora Energy Limited","ERROR:check labels") -> Aurora Energy Limited | C8: =Inputs!C7 -> 72030.72752
B9: =IF(Inputs!B8="Centralines","Centralines Limited","ERROR:check labels") -> Centralines Limited | C9: =Inputs!C8 -> 9398.539633
B10: =IF(Inputs!B9="EA Networks","Electricity Ashburton Limited","ERROR:check labels") -> Electricity Ashburton Limited | C10: =Inputs!C9 -> 37696.14503
B11: =IF(Inputs!B10="Eastland Network","Eastland Network Limited","ERROR:check labels") -> Eastland Network Limited | C11: =Inputs!C10 -> 25055.11062
B12: =IF(Inputs!B11="Electricity Invercargill","Electricity Invercargill Limited","ERROR:check labels") -> Electricity Invercargill Limited | C12: =Inputs!C11 -> 12291.59231
B13: =IF(Inputs!B12="Horizon Energy","Horizon Energy Distribution Limited","ERROR:check labels") -> Horizon Energy Distribution Limited | C13: =Inputs!C12 -> 25008.55222
B14: =IF(Inputs!B13="Nelson Electricity","Nelson Electricity Limited","ERROR:check labels") -> Nelson Electricity Limited | C14: =Inputs!C13 -> 5588.24628
B15: =IF(Inputs!B14="Network Tasman","Network Tasman Limited","ERROR:check labels") -> Network Tasman Limited | C15: =Inputs!C14 -> 28780.563
B16: =IF(Inputs!B15="Orion NZ","Orion New Zealand Limited","ERROR:check labels") -> Orion New Zealand Limited | C16: =Inputs!C15 -> 161170.0707
B17: =IF(Inputs!B16="OtagoNet","OtagoNet Joint Venture","ERROR:check labels") -> OtagoNet Joint Venture | C17: =Inputs!C16 -> 25084.60058
B18: =IF(Inputs!B17="The Lines Company","The Lines Company Limited","ERROR:check labels") -> The Lines Company Limited | C18: =Inputs!C17 -> 33943.50402
B19: =IF(Inputs!B18="Top Energy","Top Energy Limited","ERROR:check labels") -> Top Energy Limited | C19: =Inputs!C18 -> 42189.2595
B20: =IF(Inputs!B19="Unison Networks","Unison Networks Limited","ERROR:check labels") -> Unison Networks Limited | C20: =Inputs!C19 -> 102250.9767
B21: =IF(Inputs!B20="Vector Lines","Vector Limited","ERROR:check labels") -> Vector Limited | C21: =Inputs!C20 -> 403345.7655
A24: Table 1.4.1 | B24: Table 1.4.1: Forecast net allowable revenue for the
B25: Non-exempt EDB | C25: Forecast net allowable revenue ($000)
C26: Assessment period ending 31 March 2021 | D26: Assessment period ending 31 March 2022 | E26: Assessment period ending 31 March 2023 | F26: Assessment period ending 31 March 2024 | G26: Assessment period ending 31 March 2025 | H26: Sum of forecast net allowable revenue for the DPP regulatory period
B27: =IF(Inputs!B62="Alpine Energy","Alpine Energy Limited","ERROR:check labels") -> Alpine Energy Limited | C27: =Inputs!D62 -> 45361.38032 | D27: =Inputs!E62 -> 46302.60737 | E27: =Inputs!F62 -> 47259.52792 | F27: =Inputs!G62 -> 48220.47165 | G27: =Inputs!H62 -> 49184.88109 | H27: =Inputs!I62 -> 236328.8683
B28: =IF(Inputs!B63="Aurora Energy","Aurora Energy Limited","ERROR:check labels") -> Aurora Energy Limited | C28: =Inputs!D63 -> 72030.72752 | D28: =Inputs!E63 -> 80069.08527 | E28: =Inputs!F63 -> 88997.2687 | F28: =Inputs!G63 -> 98888.69213 | G28: =Inputs!H63 -> 109843.5814 | H28: =Inputs!I63 -> 449829.3551
B29: =IF(Inputs!B64="Centralines","Centralines Limited","ERROR:check labels") -> Centralines Limited | C29: =Inputs!D64 -> 9398.539633 | D29: =Inputs!E64 -> 9593.554857 | E29: =Inputs!F64 -> 9791.821657 | F29: =Inputs!G64 -> 9990.922031 | G29: =Inputs!H64 -> 10190.74047 | H29: =Inputs!I64 -> 48965.57865
B30: =IF(Inputs!B65="EA Networks","Electricity Ashburton Limited","ERROR:check labels") -> Electricity Ashburton Limited | C30: =Inputs!D65 -> 37696.14503 | D30: =Inputs!E65 -> 38478.32209 | E30: =Inputs!F65 -> 39273.54075 | F30: =Inputs!G65 -> 40072.10275 | G30: =Inputs!H65 -> 40873.5448 | H30: =Inputs!I65 -> 196393.6554
B31: =IF(Inputs!B66="Eastland Network","Eastland Network Limited","ERROR:check labels") -> Eastland Network Limited | C31: =Inputs!D66 -> 25055.11062 | D31: =Inputs!E66 -> 25574.99224 | E31: =Inputs!F66 -> 26103.54208 | F31: =Inputs!G66 -> 26634.3141 | G31: =Inputs!H66 -> 27167.00038 | H31: =Inputs!I66 -> 130534.9594
B32: =IF(Inputs!B67="Electricity Invercargill","Electricity Invercargill Limited","ERROR:check labels") -> Electricity Invercargill Limited | C32: =Inputs!D67 -> 12291.59231 | D32: =Inputs!E67 -> 12546.637 | E32: =Inputs!F67 -> 12805.93416 | F32: =Inputs!G67 -> 13066.32149 | G32: =Inputs!H67 -> 13327.64792 | H32: =Inputs!I67 -> 64038.13287
B33: =IF(Inputs!B68="Horizon Energy","Horizon Energy Distribution Limited","ERROR:check labels") -> Horizon Energy Distribution Limited | C33: =Inputs!D68 -> 25008.55222 | D33: =Inputs!E68 -> 25527.46777 | E33: =Inputs!F68 -> 26055.03544 | F33: =Inputs!G68 -> 26584.82116 | G33: =Inputs!H68 -> 27116.51758 | H33: =Inputs!I68 -> 130292.3942
B34: =IF(Inputs!B69="Nelson Electricity","Nelson Electricity Limited","ERROR:check labels") -> Nelson Electricity Limited | C34: =Inputs!D69 -> 5588.24628 | D34: =Inputs!E69 -> 5704.19973 | E34: =Inputs!F69 -> 5822.086524 | F34: =Inputs!G69 -> 5940.46895 | G34: =Inputs!H69 -> 6059.278329 | H34: =Inputs!I69 -> 29114.27981
B35: =IF(Inputs!B70="Network Tasman","Network Tasman Limited","ERROR:check labels") -> Network Tasman Limited | C35: =Inputs!D70 -> 28780.563 | D35: =Inputs!E70 -> 29377.74598 | E35: =Inputs!F70 -> 29984.88607 | F35: =Inputs!G70 -> 30594.57875 | G35: =Inputs!H70 -> 31206.47032 | H35: =Inputs!I70 -> 149944.2441
B36: =IF(Inputs!B71="Orion NZ","Orion New Zealand Limited","ERROR:check labels") -> Orion New Zealand Limited | C36: =Inputs!D71 -> 161170.0707 | D36: =Inputs!E71 -> 164514.2729 | E36: =Inputs!F71 -> 167914.2346 | F36: =Inputs!G71 -> 171328.4907 | G36: =Inputs!H71 -> 174755.0605 | H36: =Inputs!I71 -> 839682.1293
B37: =IF(Inputs!B72="OtagoNet","OtagoNet Joint Venture","ERROR:check labels") -> OtagoNet Joint Venture | C37: =Inputs!D72 -> 25084.60058 | D37: =Inputs!E72 -> 25605.0941 | E37: =Inputs!F72 -> 26134.26605 | F37: =Inputs!G72 -> 26665.66279 | G37: =Inputs!H72 -> 27198.97605 | H37: =Inputs!I72 -> 130688.5996
B38: =IF(Inputs!B73="The Lines Company","The Lines Company Limited","ERROR:check labels") -> The Lines Company Limited | C38: =Inputs!D73 -> 33943.50402 | D38: =Inputs!E73 -> 34647.81557 | E38: =Inputs!F73 -> 35363.87042 | F38: =Inputs!G73 -> 36082.93579 | G38: =Inputs!H73 -> 36804.59451 | H38: =Inputs!I73 -> 176842.7203
B39: =IF(Inputs!B74="Top Energy","Top Energy Limited","ERROR:check labels") -> Top Energy Limited | C39: =Inputs!D74 -> 42189.2595 | D39: =Inputs!E74 -> 43064.66656 | E39: =Inputs!F74 -> 43954.66966 | F39: =Inputs!G74 -> 44848.41461 | G39: =Inputs!H74 -> 45745.38291 | H39: =Inputs!I74 -> 219802.3932
B40: =IF(Inputs!B75="Unison Networks","Unison Networks Limited","ERROR:check labels") -> Unison Networks Limited | C40: =Inputs!D75 -> 102250.9767 | D40: =Inputs!E75 -> 104372.6358 | E40: =Inputs!F75 -> 106529.6703 | F40: =Inputs!G75 -> 108695.7736 | G40: =Inputs!H75 -> 110869.6891 | H40: =Inputs!I75 -> 532718.7456
B41: =IF(Inputs!B76="Vector Lines","Vector Limited","ERROR:check labels") -> Vector Limited | C41: =Inputs!D76 -> 403345.7655 | D41: =Inputs!E76 -> 411714.9982 | E41: =Inputs!F76 -> 420223.7748 | F41: =Inputs!G76 -> 428768.3249 | G41: =Inputs!H76 -> 437343.6914 | H41: =Inputs!I76 -> 2101396.555
A44: Table 2.2.1 | B44: Table 2.2.1: Forecast opex for non-exempt EDBs for the DPP regulatory period 1 April 2020 – 31 March 2025
B45: (All amounts in $000)
B46: Non-exempt EDB | C46: Assessment period
C47: Assessment period ending 31 March 2021 | D47: Assessment period ending 31 March 2022 | E47: Assessment period ending 31 March 2023 | F47: Assessment period ending 31 March 2024 | G47: Assessment period ending 31 March 2025
B48: =IF(Inputs!B119="Alpine Energy","Alpine Energy Limited","ERROR:check labels") -> Alpine Energy Limited | C48: =Inputs!C119 -> 18958.27695 | D48: =Inputs!D119 -> 19558.63749 | E48: =Inputs!E119 -> 20151.66449 | F48: =Inputs!F119 -> 20709.7457 | G48: =Inputs!G119 -> 21127.6113
B49: =IF(Inputs!B120="Aurora Energy","Aurora Energy Limited","ERROR:check labels") -> Aurora Energy Limited | C49: =Inputs!C120 -> 40108.01182 | D49: =Inputs!D120 -> 41758.76769 | E49: =Inputs!E120 -> 43420.9089 | F49: =Inputs!F120 -> 44972.79235 | G49: =Inputs!G120 -> 46239.73787
B50: =IF(Inputs!B121="Centralines","Centralines Limited","ERROR:check labels") -> Centralines Limited | C50: =Inputs!C121 -> 3806.103561 | D50: =Inputs!D121 -> 3878.336392 | E50: =Inputs!E121 -> 3946.829692 | F50: =Inputs!F121 -> 4003.142186 | G50: =Inputs!G121 -> 4030.604862
B51: =IF(Inputs!B122="EA Networks","Electricity Ashburton Limited","ERROR:check labels") -> Electricity Ashburton Limited | C51: =Inputs!C122 -> 13505.51834 | D51: =Inputs!D122 -> 13998.54116 | E51: =Inputs!E122 -> 14490.62343 | F51: =Inputs!F122 -> 14960.7268 | G51: =Inputs!G122 -> 15333.11227
B52: =IF(Inputs!B123="Eastland Network","Eastland Network Limited","ERROR:check labels") -> Eastland Network Limited | C52: =Inputs!C123 -> 10850.673 | D52: =Inputs!D123 -> 11158.75254 | E52: =Inputs!E123 -> 11460.5961 | F52: =Inputs!F123 -> 11738.52793 | G52: =Inputs!G123 -> 11935.25806
B53: =IF(Inputs!B124="Electricity Invercargill","Electricity Invercargill Limited","ERROR:check labels") -> Electricity Invercargill Limited | C53: =Inputs!C124 -> 4993.638188 | D53: =Inputs!D124 -> 5127.712059 | E53: =Inputs!E124 -> 5258.511716 | F53: =Inputs!F124 -> 5379.542644 | G53: =Inputs!G124 -> 5463.106639
B54: =IF(Inputs!B125="Horizon Energy","Horizon Energy Distribution Limited","ERROR:check labels") -> Horizon Energy Distribution Limited | C54: =Inputs!C125 -> 11291.42424 | D54: =Inputs!D125 -> 11609.988 | E54: =Inputs!E125 -> 11921.95492 | F54: =Inputs!F125 -> 12207.88699 | G54: =Inputs!G125 -> 12409.24676
B55: =IF(Inputs!B126="Nelson Electricity","Nelson Electricity Limited","ERROR:check labels") -> Nelson Electricity Limited | C55: =Inputs!C126 -> 2122.383493 | D55: =Inputs!D126 -> 2191.999503 | E55: =Inputs!E126 -> 2260.942989 | F55: =Inputs!F126 -> 2324.809394 | G55: =Inputs!G126 -> 2372.995228
B56: =IF(Inputs!B127="Network Tasman","Network Tasman Limited","ERROR:check labels") -> Network Tasman Limited | C56: =Inputs!C127 -> 12096.42151 | D56: =Inputs!D127 -> 12483.73592 | E56: =Inputs!E127 -> 12866.63178 | F56: =Inputs!F127 -> 13221.66223 | G56: =Inputs!G127 -> 13487.11339
B57: =IF(Inputs!B128="Orion NZ","Orion New Zealand Limited","ERROR:check labels") -> Orion New Zealand Limited | C57: =Inputs!C128 -> 61022.97054 | D57: =Inputs!D128 -> 63364.75771 | E57: =Inputs!E128 -> 65710.50062 | F57: =Inputs!F128 -> 67829.46906 | G57: =Inputs!G128 -> 69504.64817
B58: =IF(Inputs!B129="OtagoNet","OtagoNet Joint Venture","ERROR:check labels") -> OtagoNet Joint Venture | C58: =Inputs!C129 -> 7993.842907 | D58: =Inputs!D129 -> 8233.409552 | E58: =Inputs!E129 -> 8469.089503 | F58: =Inputs!F129 -> 8674.731494 | G58: =Inputs!G129 -> 8820.378022
B59: =IF(Inputs!B130="The Lines Company","The Lines Company Limited","ERROR:check labels") -> The Lines Company Limited | C59: =Inputs!C130 -> 13361.49606 | D59: =Inputs!D130 -> 13747.62658 | E59: =Inputs!E130 -> 14126.45338 | F59: =Inputs!F130 -> 14453.9179 | G59: =Inputs!G130 -> 14680.81739
B60: =IF(Inputs!B131="Top Energy","Top Energy Limited","ERROR:check labels") -> Top Energy Limited | C60: =Inputs!C131 -> 17657.33647 | D60: =Inputs!D131 -> 18209.31413 | E60: =Inputs!E131 -> 18754.02958 | F60: =Inputs!F131 -> 19260.57163 | G60: =Inputs!G131 -> 19636.11582
B61: =IF(Inputs!B132="Unison Networks","Unison Networks Limited","ERROR:check labels") -> Unison Networks Limited | C61: =Inputs!C132 -> 42559.57526 | D61: =Inputs!D132 -> 43930.83323 | E61: =Inputs!E132 -> 45287.07074 | F61: =Inputs!F132 -> 46545.18499 | G61: =Inputs!G132 -> 47488.35882
B62: =IF(Inputs!B133="Vector Lines","Vector Limited","ERROR:check labels") -> Vector Limited | C62: =Inputs!C133 -> 128568.6903 | D62: =Inputs!D133 -> 133812.7745 | E62: =Inputs!E133 -> 139088.9347 | F62: =Inputs!F133 -> 143907.6248 | G62: =Inputs!G133 -> 147804.197
A65: Table 2.2.2 | B65: Table 2.2.2: Forecast aggregate value of commissioned assets for non-exempt EDBs for the DPP regulatory period 1 April 2020 – 31 March 2025
B66: (All amounts in $000)
B67: Non-exempt EDB | C67: Assessment period
C68: 2020/21 | D68: 2021/22 | E68: 2022/23 | F68: 2023/24 | G68: 2024/25
B69: =IF(Inputs!B159="Alpine Energy","Alpine Energy Limited","ERROR:check labels") -> Alpine Energy Limited | C69: =Inputs!C159 -> 16681.11344 | D69: =Inputs!D159 -> 16097.18299 | E69: =Inputs!E159 -> 13450.52029 | F69: =Inputs!F159 -> 14062.53155 | G69: =Inputs!G159 -> 11411.98307
B70: =IF(Inputs!B160="Aurora Energy","Aurora Energy Limited","ERROR:check labels") -> Aurora Energy Limited | C70: =Inputs!C160 -> 29927.53016 | D70: =Inputs!D160 -> 30649.84492 | E70: =Inputs!E160 -> 30012.27049 | F70: =Inputs!F160 -> 28159.61044 | G70: =Inputs!G160 -> 29245.39047
B71: =IF(Inputs!B161="Centralines","Centralines Limited","ERROR:check labels") -> Centralines Limited | C71: =Inputs!C161 -> 2840.160078 | D71: =Inputs!D161 -> 2668.165337 | E71: =Inputs!E161 -> 2700.887345 | F71: =Inputs!F161 -> 3232.563804 | G71: =Inputs!G161 -> 3322.328046
B72: =IF(Inputs!B162="EA Networks","Electricity Ashburton Limited","ERROR:check labels") -> Electricity Ashburton Limited | C72: =Inputs!C162 -> 19238.7558 | D72: =Inputs!D162 -> 19088.25832 | E72: =Inputs!E162 -> 18058.85735 | F72: =Inputs!F162 -> 15819.04408 | G72: =Inputs!G162 -> 16277.87495
B73: =IF(Inputs!B163="Eastland Network","Eastland Network Limited","ERROR:check labels") -> Eastland Network Limited | C73: =Inputs!C163 -> 8521.103953 | D73: =Inputs!D163 -> 7729.775832 | E73: =Inputs!E163 -> 7311.317123 | F73: =Inputs!F163 -> 8261.253855 | G73: =Inputs!G163 -> 9078.485682
B74: =IF(Inputs!B164="Electricity Invercargill","Electricity Invercargill Limited","ERROR:check labels") -> Electricity Invercargill Limited | C74: =Inputs!C164 -> 4512.976058 | D74: =Inputs!D164 -> 3804.700931 | E74: =Inputs!E164 -> 4167.923621 | F74: =Inputs!F164 -> 4125.952791 | G74: =Inputs!G164 -> 4192.018008
B75: =IF(Inputs!B165="Horizon Energy","Horizon Energy Distribution Limited","ERROR:check labels") -> Horizon Energy Distribution Limited | C75: =Inputs!C165 -> 8241.896502 | D75: =Inputs!D165 -> 6286.986161 | E75: =Inputs!E165 -> 6750.024192 | F75: =Inputs!F165 -> 7480.150931 | G75: =Inputs!G165 -> 8079.859231
B76: =IF(Inputs!B166="Nelson Electricity","Nelson Electricity Limited","ERROR:check labels") -> Nelson Electricity Limited | C76: =Inputs!C166 -> 1491.012419 | D76: =Inputs!D166 -> 1617.788593 | E76: =Inputs!E166 -> 1652.103257 | F76: =Inputs!F166 -> 1843.280188 | G76: =Inputs!G166 -> 1670.123921
B77: =IF(Inputs!B167="Network Tasman","Network Tasman Limited","ERROR:check labels") -> Network Tasman Limited | C77: =Inputs!C167 -> 5449.356954 | D77: =Inputs!D167 -> 6787.65066 | E77: =Inputs!E167 -> 6445.362832 | F77: =Inputs!F167 -> 4310.233232 | G77: =Inputs!G167 -> 4688.713208
B78: =IF(Inputs!B168="Orion NZ","Orion New Zealand Limited","ERROR:check labels") -> Orion New Zealand Limited | C78: =Inputs!C168 -> 60621.18221 | D78: =Inputs!D168 -> 64785.6191 | E78: =Inputs!E168 -> 69550.18462 | F78: =Inputs!F168 -> 66466.17943 | G78: =Inputs!G168 -> 78731.04057
B79: =IF(Inputs!B169="OtagoNet","OtagoNet Joint Venture","ERROR:check labels") -> OtagoNet Joint Venture | C79: =Inputs!C169 -> 14983.40975 | D79: =Inputs!D169 -> 15216.95455 | E79: =Inputs!E169 -> 15966.67854 | F79: =Inputs!F169 -> 16984.19237 | G79: =Inputs!G169 -> 16670.84603
B80: =IF(Inputs!B170="The Lines Company","The Lines Company Limited","ERROR:check labels") -> The Lines Company Limited | C80: =Inputs!C170 -> 12186.89563 | D80: =Inputs!D170 -> 12286.82356 | E80: =Inputs!E170 -> 11928.51651 | F80: =Inputs!F170 -> 11690.56427 | G80: =Inputs!G170 -> 12254.51766
B81: =IF(Inputs!B171="Top Energy","Top Energy Limited","ERROR:check labels") -> Top Energy Limited | C81: =Inputs!C171 -> 22807.15378 | D81: =Inputs!D171 -> 16698.18597 | E81: =Inputs!E171 -> 16364.169 | F81: =Inputs!F171 -> 16657.70283 | G81: =Inputs!G171 -> 17735.53137
B82: =IF(Inputs!B172="Unison Networks","Unison Networks Limited","ERROR:check labels") -> Unison Networks Limited | C82: =Inputs!C172 -> 45181.92748 | D82: =Inputs!D172 -> 44799.4973 | E82: =Inputs!E172 -> 44115.77441 | F82: =Inputs!F172 -> 49989.79844 | G82: =Inputs!G172 -> 48856.4802
B83: =IF(Inputs!B173="Vector Lines","Vector Limited","ERROR:check labels") -> Vector Limited | C83: =Inputs!C173 -> 169613.4004 | D83: =Inputs!D173 -> 190827.1429 | E83: =Inputs!E173 -> 204070.2506 | F83: =Inputs!F173 -> 199263.7933 | G83: =Inputs!G173 -> 189811.2063
A86: =Inputs!A881 -> Table 3.1.1 | B86: =Inputs!B881 -> Table 3.1.1: Accumulated SAIDI limits and accumulated SAIFI limits for planned interruptions for non-exempt EDBs for the
B87: =Inputs!B882 -> DPP regulatory period 1 April 2020 – 31 March 2025
B88: =Inputs!B883 -> Non-exempt EDB
C89: =Inputs!C884 -> Accumulated SAIDI limit for the assessment period ending 31 March 2025 | D89: =Inputs!D884 -> Accumulated SAIFI limit for the assessment period ending 31 March 2025
B90: =Inputs!B885 -> Alpine Energy Limited | C90: =Inputs!C885 -> 857.072 | D90: =Inputs!D885 -> 3.703456
B91: =Inputs!B886 -> Aurora Energy Limited | C91: =Inputs!C886 -> 762.8765 | D91: =Inputs!D886 -> 3.982672
B92: =Inputs!B887 -> Centralines Limited | C92: =Inputs!C887 -> 515.4175 | D92: =Inputs!D887 -> 2.4793995
B93: =Inputs!B888 -> Electricity Ashburton Limited | C93: =Inputs!C888 -> 1319.452 | D93: =Inputs!D888 -> 4.861036
B94: =Inputs!B889 -> Eastland Network Limited | C94: =Inputs!C889 -> 1336.6 | D94: =Inputs!D889 -> 7.722375
B95: =Inputs!B890 -> Electricity Invercargill Limited | C95: =Inputs!C890 -> 109.52465 | D95: =Inputs!D890 -> 0.4925295
B96: =Inputs!B891 -> Horizon Energy Distribution Limited | C96: =Inputs!C891 -> 528.729 | D96: =Inputs!D891 -> 3.4349535
B97: =Inputs!B892 -> Nelson Electricity Limited | C97: =Inputs!C892 -> 197.92365 | D97: =Inputs!D892 -> 2.620141
B98: =Inputs!B893 -> Network Tasman Limited | C98: =Inputs!C893 -> 1027.9125 | D98: =Inputs!D893 -> 4.5881285
B99: =Inputs!B894 -> Orion New Zealand Limited | C99: =Inputs!C894 -> 198.8107 | D99: =Inputs!D894 -> 0.7605445
B100: =Inputs!B895 -> OtagoNet Joint Venture | C100: =Inputs!C895 -> 2076.5765 | D100: =Inputs!D895 -> 9.37043
B101: =Inputs!B896 -> Powerco Limited | C101: =Inputs!C896 -> 598.257 | D101: =Inputs!D896 -> 2.8354425
B102: =Inputs!B897 -> The Lines Company Limited | C102: =Inputs!C897 -> 1228.323 | D102: =Inputs!D897 -> 8.641515
B103: =Inputs!B898 -> Top Energy Limited | C103: =Inputs!C898 -> 1959.629 | D103: =Inputs!D898 -> 7.625225
B104: =Inputs!B899 -> Unison Networks Limited | C104: =Inputs!C899 -> 604.5155 | D104: =Inputs!D899 -> 3.962119
B105: =Inputs!B900 -> Vector Limited | C105: =Inputs!C900 -> 460.44715 | D105: =Inputs!D900 -> 2.3685815
B106: =Inputs!B901 -> Wellington Electricity Lines Limited | C106: =Inputs!C901 -> 58.9918 | D106: =Inputs!D901 -> 0.4478915
A109: =Inputs!A904 -> Table 3.2.1 | B109: =Inputs!B904 -> Table 3.2.1: SAIDI limits, SAIFI limits, SAIDI unplanned boundary values and SAIFI unplanned boundary values for unplanned interruptions for non-exempt EDBs for the
B110: =Inputs!B905 -> DPP regulatory period 1 April 2020 – 31 March 2025
B111: =Inputs!B906 -> Non-exempt EDB | C111: Non-exempt EDB
C112: =Inputs!C907 -> SAIDI limit | D112: =Inputs!D907 -> SAIFI limit | E112: =Inputs!E907 -> Unplanned SAIDI boundary value | F112: =Inputs!F907 -> Unplanned SAIFI boundary value
B113: =Inputs!B908 -> Alpine Energy Limited | C113: =Inputs!C908 -> 128.3705084 | D113: =Inputs!D908 -> 1.205623 | E113: =Inputs!E908 -> 9.246155 | F113: =Inputs!F908 -> 0.0610729
B114: =Inputs!B909 -> Aurora Energy Limited | C114: =Inputs!C909 -> 78.97601519 | D114: =Inputs!D909 -> 1.374841 | E114: =Inputs!E909 -> 4.142548 | F114: =Inputs!F909 -> 0.0557508
B115: =Inputs!B910 -> Centralines Limited | C115: =Inputs!C910 -> 85.23767257 | D115: =Inputs!D910 -> 3.000805031 | E115: =Inputs!E910 -> 7.214294 | F115: =Inputs!F910 -> 0.144516
B116: =Inputs!B911 -> Electricity Ashburton Limited | C116: =Inputs!C911 -> 103.6177 | D116: =Inputs!D911 -> 1.362023 | E116: =Inputs!E911 -> 7.6129 | F116: =Inputs!F911 -> 0.0702305
B117: =Inputs!B912 -> Eastland Network Limited | C117: =Inputs!C912 -> 246.5573 | D117: =Inputs!D912 -> 3.327256 | E117: =Inputs!E912 -> 13.62604 | F117: =Inputs!F912 -> 0.1970596
B118: =Inputs!B913 -> Electricity Invercargill Limited | C118: =Inputs!C913 -> 24.67004606 | D118: =Inputs!D913 -> 0.6335847 | E118: =Inputs!E913 -> 3.404305 | F118: =Inputs!F913 -> 0.0688004
B119: =Inputs!B914 -> Horizon Energy Distribution Limited | C119: =Inputs!C914 -> 169.8372908 | D119: =Inputs!D914 -> 2.237389783 | E119: =Inputs!E914 -> 9.535278 | F119: =Inputs!F914 -> 0.0832138
B120: =Inputs!B915 -> Nelson Electricity Limited | C120: =Inputs!C915 -> 17.90754268 | D120: =Inputs!D915 -> 0.2204544 | E120: =Inputs!E915 -> 8.241133 | F120: =Inputs!F915 -> 0.1208195
B121: =Inputs!B916 -> Network Tasman Limited | C121: =Inputs!C916 -> 100.6883 | D121: =Inputs!D916 -> 1.210669409 | E121: =Inputs!E916 -> 6.78717 | F121: =Inputs!F916 -> 0.067328
B122: =Inputs!B917 -> Orion New Zealand Limited | C122: =Inputs!C917 -> 88.73252 | D122: =Inputs!D917 -> 0.9798281 | E122: =Inputs!E917 -> 6.794434 | F122: =Inputs!F917 -> 0.0600967
B123: =Inputs!B918 -> OtagoNet Joint Venture | C123: =Inputs!C918 -> 162.1496 | D123: =Inputs!D918 -> 2.225816 | E123: =Inputs!E918 -> 9.708374 | F123: =Inputs!F918 -> 0.1232028
B124: =Inputs!B919 -> Powerco Limited | C124: =Inputs!C919 -> 161.135648 | D124: =Inputs!D919 -> 2.194614156 | E124: =Inputs!E919 -> 3.269104 | F124: =Inputs!F919 -> 0.0371051
B125: =Inputs!B920 -> The Lines Company Limited | C125: =Inputs!C920 -> 185.5639357 | D125: =Inputs!D920 -> 3.190046036 | E125: =Inputs!E920 -> 8.202972 | F125: =Inputs!F920 -> 0.1308403
B126: =Inputs!B921 -> Top Energy Limited | C126: =Inputs!C921 -> 441.7878 | D126: =Inputs!D921 -> 5.54357 | E126: =Inputs!E921 -> 27.40662 | F126: =Inputs!F921 -> 0.2161322
B127: =Inputs!B922 -> Unison Networks Limited | C127: =Inputs!C922 -> 89.10336832 | D127: =Inputs!D922 -> 1.824587127 | E127: =Inputs!E922 -> 6.301758 | F127: =Inputs!F922 -> 0.0659342
B128: =Inputs!B923 -> Vector Limited | C128: =Inputs!C923 -> 102.1263986 | D128: =Inputs!D923 -> 1.359099 | E128: =Inputs!E923 -> 4.543335 | F128: =Inputs!F923 -> 0.0345402
B129: =Inputs!B924 -> Wellington Electricity Lines Limited | C129: =Inputs!C924 -> 39.8809737 | D129: =Inputs!D924 -> 0.617797233 | E129: =Inputs!E924 -> 1.764641 | F129: =Inputs!F924 -> 0.0291996
A132: =Inputs!A927 -> Table 3.3.1 | B132: =Inputs!B927 -> Table 3.3.1: Extreme event interruptions reliability assessment limits for unplanned interruptions for non-exempt EDBs for the
B133: =Inputs!B928 -> DPP regulatory period 1 April 2020 – 31 March 2025
B134: =Inputs!B929 -> Non-exempt EDB
C135: =Inputs!C930 -> Extreme event interruptions reliability assessment limit
B136: =Inputs!B931 -> Alpine Energy Limited | C136: =Inputs!C931 -> 27.738465
B137: =Inputs!B932 -> Aurora Energy Limited | C137: =Inputs!C932 -> 12.427644
B138: =Inputs!B933 -> Centralines Limited | C138: =Inputs!C933 -> 21.642882
B139: =Inputs!B934 -> Electricity Ashburton Limited | C139: =Inputs!C934 -> 22.8387
B140: =Inputs!B935 -> Eastland Network Limited | C140: =Inputs!C935 -> 40.87812
B141: =Inputs!B936 -> Electricity Invercargill Limited | C141: =Inputs!C936 -> 10.212915
B142: =Inputs!B937 -> Horizon Energy Distribution Limited | C142: =Inputs!C937 -> 28.605834
B143: =Inputs!B938 -> Nelson Electricity Limited | C143: =Inputs!C938 -> 24.723399
B144: =Inputs!B939 -> Network Tasman Limited | C144: =Inputs!C939 -> 20.36151
B145: =Inputs!B940 -> Orion New Zealand Limited | C145: =Inputs!C940 -> 20.383302
B146: =Inputs!B941 -> OtagoNet Joint Venture | C146: =Inputs!C941 -> 29.125122
B147: =Inputs!B942 -> Powerco Limited | C147: =Inputs!C942 -> 9.807312
B148: =Inputs!B943 -> The Lines Company Limited | C148: =Inputs!C943 -> 24.608916
B149: =Inputs!B944 -> Top Energy Limited | C149: =Inputs!C944 -> 82.21986
B150: =Inputs!B945 -> Unison Networks Limited | C150: =Inputs!C945 -> 18.905274
B151: =Inputs!B946 -> Vector Limited | C151: =Inputs!C946 -> 13.630005
B152: =Inputs!B947 -> Wellington Electricity Lines Limited | C152: =Inputs!C947 -> 5.293923
A155: =Inputs!A950 -> Table 4.1 | B155: =Inputs!B950 -> Table 4.1: SAIDI unplanned interruption targets, SAIDI unplanned interruption collars and SAIDI unplanned interruption caps for the
B156: =Inputs!B951 -> DPP regulatory period 1 April 2020 – 31 March 2025
B157: =Inputs!B952 -> Non-exempt EDB
C158: =Inputs!C953 -> SAIDI unplanned interruption collar | D158: =Inputs!D953 -> SAIDI unplanned interruption target | E158: =Inputs!E953 -> SAIDI unplanned interruption cap
B159: =Inputs!B954 -> Alpine Energy Limited | C159: =Inputs!C954 -> 0 | D159: =Inputs!D954 -> 104.0550922 | E159: =Inputs!E954 -> 128.3705084
B160: =Inputs!B955 -> Aurora Energy Limited | C160: =Inputs!C955 -> 0 | D160: =Inputs!D955 -> 68.08369992 | E160: =Inputs!E955 -> 78.97601519
B161: =Inputs!B956 -> Centralines Limited | C161: =Inputs!C956 -> 0 | D161: =Inputs!D956 -> 67.15666475 | E161: =Inputs!E956 -> 85.23767257
B162: =Inputs!B957 -> Electricity Ashburton Limited | C162: =Inputs!C957 -> 0 | D162: =Inputs!D957 -> 86.62983 | E162: =Inputs!E957 -> 103.6177
B163: =Inputs!B958 -> Eastland Network Limited | C163: =Inputs!C958 -> 0 | D163: =Inputs!D958 -> 210.1172 | E163: =Inputs!E958 -> 246.5573
B164: =Inputs!B959 -> Electricity Invercargill Limited | C164: =Inputs!C959 -> 0 | D164: =Inputs!D959 -> 16.92424763 | E164: =Inputs!E959 -> 24.67004606
B165: =Inputs!B960 -> Horizon Energy Distribution Limited | C165: =Inputs!C960 -> 0 | D165: =Inputs!D960 -> 138.1843799 | E165: =Inputs!E960 -> 169.8372908
B166: =Inputs!B961 -> Nelson Electricity Limited | C166: =Inputs!C961 -> 0 | D166: =Inputs!D961 -> 9.774246961 | E166: =Inputs!E961 -> 17.90754268
B167: =Inputs!B962 -> Network Tasman Limited | C167: =Inputs!C962 -> 0 | D167: =Inputs!D962 -> 81.29431 | E167: =Inputs!E962 -> 100.6883
B168: =Inputs!B963 -> Orion New Zealand Limited | C168: =Inputs!C963 -> 0 | D168: =Inputs!D963 -> 76.37737 | E168: =Inputs!E963 -> 88.73252
B169: =Inputs!B964 -> OtagoNet Joint Venture | C169: =Inputs!C964 -> 0 | D169: =Inputs!D964 -> 133.2553 | E169: =Inputs!E964 -> 162.1496
B170: =Inputs!B965 -> Powerco Limited | C170: =Inputs!C965 -> 0 | D170: =Inputs!D965 -> 149.5053225 | E170: =Inputs!E965 -> 161.135648
B171: =Inputs!B966 -> The Lines Company Limited | C171: =Inputs!C966 -> 0 | D171: =Inputs!D966 -> 159.9666043 | E171: =Inputs!E966 -> 185.5639357
B172: =Inputs!B967 -> Top Energy Limited | C172: =Inputs!C967 -> 0 | D172: =Inputs!D967 -> 377.92 | E172: =Inputs!E967 -> 441.7878
B173: =Inputs!B968 -> Unison Networks Limited | C173: =Inputs!C968 -> 0 | D173: =Inputs!D968 -> 77.49350967 | E173: =Inputs!E968 -> 89.10336832
B174: =Inputs!B969 -> Vector Limited | C174: =Inputs!C969 -> 0 | D174: =Inputs!D969 -> 93.80466345 | E174: =Inputs!E969 -> 102.1263986
B175: =Inputs!B970 -> Wellington Electricity Lines Limited | C175: =Inputs!C970 -> 0 | D175: =Inputs!D970 -> 33.82110616 | E175: =Inputs!E970 -> 39.8809737
A178: =Inputs!A973 -> Table 4.2 | B178: =Inputs!B973 -> Table 4.2: SAIDI planned interruption targets, SAIDI planned interruption collars, and SAIDI planned interruption cap for the
B179: =Inputs!B974 -> DPP regulatory period 1 April 2020 – 31 March 2025
B180: =Inputs!B975 -> Non-exempt EDB
C181: =Inputs!C976 -> SAIDI planned interruption collar | D181: =Inputs!D976 -> SAIDI planned interruption Target | E181: =Inputs!E976 -> SAIDI planned interruption cap
B182: =Inputs!B977 -> Alpine Energy Limited | C182: =Inputs!C977 -> 0 | D182: =Inputs!D977 -> 57.13813 | E182: =Inputs!E977 -> 171.4144
B183: =Inputs!B978 -> Aurora Energy Limited | C183: =Inputs!C978 -> 0 | D183: =Inputs!D978 -> 50.85845 | E183: =Inputs!E978 -> 152.5753
B184: =Inputs!B979 -> Centralines Limited | C184: =Inputs!C979 -> 0 | D184: =Inputs!D979 -> 34.36118 | E184: =Inputs!E979 -> 103.0835
B185: =Inputs!B980 -> Electricity Ashburton Limited | C185: =Inputs!C980 -> 0 | D185: =Inputs!D980 -> 87.96346 | E185: =Inputs!E980 -> 263.8904
B186: =Inputs!B981 -> Eastland Network Limited | C186: =Inputs!C981 -> 0 | D186: =Inputs!D981 -> 89.10668 | E186: =Inputs!E981 -> 267.32
B187: =Inputs!B982 -> Electricity Invercargill Limited | C187: =Inputs!C982 -> 0 | D187: =Inputs!D982 -> 7.301645 | E187: =Inputs!E982 -> 21.90493
B188: =Inputs!B983 -> Horizon Energy Distribution Limited | C188: =Inputs!C983 -> 0 | D188: =Inputs!D983 -> 35.24859 | E188: =Inputs!E983 -> 105.7458
B189: =Inputs!B984 -> Nelson Electricity Limited | C189: =Inputs!C984 -> 0 | D189: =Inputs!D984 -> 13.19491 | E189: =Inputs!E984 -> 39.58473
B190: =Inputs!B985 -> Network Tasman Limited | C190: =Inputs!C985 -> 0 | D190: =Inputs!D985 -> 68.52749 | E190: =Inputs!E985 -> 205.5825
B191: =Inputs!B986 -> Orion New Zealand Limited | C191: =Inputs!C986 -> 0 | D191: =Inputs!D986 -> 13.25405 | E191: =Inputs!E986 -> 39.76214
B192: =Inputs!B987 -> OtagoNet Joint Venture | C192: =Inputs!C987 -> 0 | D192: =Inputs!D987 -> 138.4384 | E192: =Inputs!E987 -> 415.3153
B193: =Inputs!B988 -> Powerco Limited | C193: =Inputs!C988 -> 0 | D193: =Inputs!D988 -> 39.88379 | E193: =Inputs!E988 -> 119.6514
B194: =Inputs!B989 -> The Lines Company Limited | C194: =Inputs!C989 -> 0 | D194: =Inputs!D989 -> 81.88821 | E194: =Inputs!E989 -> 245.6646
B195: =Inputs!B990 -> Top Energy Limited | C195: =Inputs!C990 -> 0 | D195: =Inputs!D990 -> 130.6419 | E195: =Inputs!E990 -> 391.9258
B196: =Inputs!B991 -> Unison Networks Limited | C196: =Inputs!C991 -> 0 | D196: =Inputs!D991 -> 40.30103 | E196: =Inputs!E991 -> 120.9031
B197: =Inputs!B992 -> Vector Limited | C197: =Inputs!C992 -> 0 | D197: =Inputs!D992 -> 30.69648 | E197: =Inputs!E992 -> 92.08943
B198: =Inputs!B993 -> Wellington Electricity Lines Limited | C198: =Inputs!C993 -> 0 | D198: =Inputs!D993 -> 3.932786 | E198: =Inputs!E993 -> 11.79836
A201: =Inputs!A996 -> Table 4.3 | B201: =Inputs!B996 -> Table 4.3: Incentive rates for the
B202: =Inputs!B997 -> DPP regulatory period 1 April 2020 – 31 March 2025
B203: =Inputs!B998 -> Non-exempt EDB
C204: =Inputs!C999 -> Incentive rate
B205: =Inputs!B1000 -> Alpine Energy Limited | C205: =Inputs!C1000 -> 7753.392713
B206: =Inputs!B1001 -> Aurora Energy Limited | C206: =Inputs!C1001 -> 12848.0107
B207: =Inputs!B1002 -> Centralines Limited | C207: =Inputs!C1002 -> 1045.143187
B208: =Inputs!B1003 -> Electricity Ashburton Limited | C208: =Inputs!C1003 -> 5636.761216
B209: =Inputs!B1004 -> Eastland Network Limited | C209: =Inputs!C1004 -> 2745.088647
B210: =Inputs!B1005 -> Electricity Invercargill Limited | C210: =Inputs!C1005 -> 2539.386496
B211: =Inputs!B1006 -> Horizon Energy Distribution Limited | C211: =Inputs!C1006 -> 5267.48745
B212: =Inputs!B1007 -> Nelson Electricity Limited | C212: =Inputs!C1007 -> 1385.986173
B213: =Inputs!B1008 -> Network Tasman Limited | C213: =Inputs!C1008 -> 6052.785213
B214: =Inputs!B1009 -> Orion New Zealand Limited | C214: =Inputs!C1009 -> 31062.58057
B215: =Inputs!B1010 -> OtagoNet Joint Venture | C215: =Inputs!C1010 -> 4247.83507
B216: =Inputs!B1011 -> Powerco Limited | C216: =Inputs!C1011 -> 45869.83437
B217: =Inputs!B1012 -> The Lines Company Limited | C217: =Inputs!C1012 -> 3724.009427
B218: =Inputs!B1013 -> Top Energy Limited | C218: =Inputs!C1013 -> 3203.022285
B219: =Inputs!B1014 -> Unison Networks Limited | C219: =Inputs!C1014 -> 15776.72091
B220: =Inputs!B1015 -> Vector Limited | C220: =Inputs!C1015 -> 82900.3965
... 1 more rows
